Workbook

Sheet PRESENTACIÓN
C7: Autoridades: | G7: Esta publicación ha sido elaborada por los Integrantes del Departamento de Estadística Educativa y de las Secciones de Reportes Internacionales e Investigación Educativa de la División de Investigación y Estadística de la Dirección de Educación:

Sheet RESUMEN DE ESTADÍSTICAS EDUCATI
B3: RESUMEN DE ESTADISTICAS EDUCATIVAS
A10: Organigrama 1.1 | B10: SISTEMA NACIONAL DE EDUCACIÓN
A11: Organigrama 1.2 | B11: ESTRUCTURA ORGANIZACIONAL DEL SISTEMA NACIONAL DE EDUCACIÓN
A12: Organigrama 2.1 | B12: ESTRUCTURA ORGANIZACIONAL DEL SISTEMA NACIONAL DE EDUCACIÓN EN LA PRIMERA INFANCIA
A14: Cuadro 2.1 | B14: MATRÍCULA DEL SISTEMA EDUCATIVO POR AÑO LECTIVO SEGÚN NIVEL, FORMA DE ADMINISTRACIÓN Y MODALIDAD

Sheet Organigrama 1.1
B2: Organigrama 1.1 SISTEMA NACIONAL DE EDUCACIÓN - 2016
BO4: SISTEMA NACIONAL DE EDUCACIÓN - 2012
K6: ESCOLARIDAD OBLIGATORIA
BI7: CAMPO LABORAL
K11: EDUC. INICIAL | P11: EDUCACIÓN PRIMARIA | Y11: EDUCACIÓN MEDIA | AX11: EDUCACIÓN TERCIARIA
C14: 0 | D14: 1 | E14: 2 | F14: 3 | K14: 4 | L14: 5 | P14: 1º | Q14: 2º | R14: 3º | S14: 4º | T14: 5º | U14: 6º | AH14: Formación profesional técnica y tecnológica | AX14: EDUCACIÓN UNIVERSITARIA
C15: EDUCACIÓN EN LA PRIMERA INFANCIA | K15: EDUCACIÓN INICIAL | P15: EDUCACIÓN PRIMARIA | R15: Incluye: - Urbana común - Rural común - T.C. - Especial - Escuelas Aprender - Práctica
AA16: 1º | AB16: 2º | AC16: 3º
Y17: EDUCACIÓN MEDIA BÁSICA | Z17: Educación media básica general (incluye 7º, 8º y 9º rural)
AL19: 1º | AM19: 2º | AN19: 3º
AH20: EDUCACIÓN MEDIA SUPERIOR | AL20: Educación media tecnológica superior
AZ21: 1º | BA21: 2º | BB21: 3º | BC21: 4º
AX22: FORMACIÓN EN EDUCACIÓN
AA26: 1º | AB26: 2º | AC26: 3º
Z27: Educación media básica tecnológica | AZ27: 1º | BA27: 2º | BB27: 3º | BC27: 4º
AL28: 4º | AM28: 5º | AN28: 6º | AX28: EDUCACIÓN TERCIARIA NO UNIVERSITARIA (técnicas, policial, militar, artística, etc.)
AL29: Educación media general superior
C35: 0-3 años | K35: 4-5 años | P35: 6 años | Y35: 12 años | AH35: 15 años | AX35: 18 años
C38: EDUCACIÓN NO FORMAL
B47: Fuente: | C47: Elaboración propia. División de Investigación y Estadística, Dirección de Educación, MEC.

Sheet Organigrama 1.2
A79: Fuente: Elaboración propia. División de Investigación y Estadística, Dirección de Educación, MEC.

Sheet Organigrama 2.1
A1: Ministerio de Educación y Cultura Dirección de Educación
A5: Organigrama 2.1
A6: ESTRUCTURA ORGANIZACIONAL DEL SISTEMA NACIONAL DE EDUCACIÓN EN LA PRIMERA INFANCIA Y EN EDUCACIÓN INICIAL - 2012
Z10: EDUCACIÓN EN LA PRIMERA INFANCIA | AH10: EDUCACIÓN INICIAL
Z12: 0 a 24 meses | AC12: 2 años | AH12: 3 a 5 años
U15: Experiencias Oportunas | Z15: Talleres
L16: CAIF
G18: INAU | U18: Modalidad Diaria | Z18: Diseño Básico Curricular (0 a 36 meses)
B20: EDUCACIÓN EN LA PRIMERA INFANCIA E INICIAL
Z21: Diseño Básico Curricular (0 a 36 meses)
L22: Centros Diurnos
U23: Modalidad Diaria
AH24: Programa de Educación Inicial y Primaria
Z28: Diseño Básico Curricular (0 a 36 meses)
L29: Centros Educativos Privados | P29: Colegios y Jardines de Infantes Habilitados o Autorizados
AH31: Programa de Educación Inicial y Primaria
P35: Centros Educativos Primera Infancia (CEPI) | Z35: Diseño Básico Curricular (0 a 36 meses)
U38: Común
G40: ANEP CEIP
U41: Tiempo extendido
P42: Grupos de Educación Inicial en Escuelas (urbanas y rurales)
L44: Centros Educativos Públicos | U44: Tiempo completo
AH45: Programa de Educación Inicial y Primaria
P48: Grupos de Educación Inicial en Jardines de Infantes | U48: APRENDER
U51: JICI
U54: Práctica o Hab. de Prác.
G57: Primera Infancia MEC | L57: Centros de Educación Infantil Privados (incluye Programa Nuestros Niños - IM y otros) | Z57: Diseño Básico Curricular (0 a 36 meses)
AH58: Programa de Educación Inicial y Primaria

Sheet Cuadro 2.1
A1: Ministerio de Educación y Cultura Dirección de Educación
A6: Cuadro 2.1
A7: MATRÍCULA DEL SISTEMA EDUCATIVO POR AÑO LECTIVO SEGÚN NIVEL, FORMA DE ADMINISTRACIÓN Y MODALIDAD
A8: NIVEL/FORMA DE ADMINISTRACIÓN/MODALIDAD | D8: AÑO LECTIVO
D9: 2002 | E9: 2003 | F9: 2004 | G9: 2005 | H9: 2006 | I9: 2007 | J9: 2008 | K9: 2009 | L9: 2010 | M9: 2011 | N9: 2012 | O9: 2013 | P9: 2014 | Q9: 2015 | R9: 2016
A11: TOTAL SISTEMA | D11: =D13+D18+D30+D44+D46 -> 942084 | E11: 948314 | F11: 953588 | G11: 937694 | H11: 947477 | I11: 949746 | J11: 973172 | K11: 986125 | L11: =K13+L18+L30+L44+L46 -> 983258 | M11: =M13+M18+M30+M44+M46 -> 966785 | N11: 992485 | O11: 993510 | P11: 996591 | Q11: 990998 | R11: 1000372
A13: Total Edu. en la Primera Infancia e Inicial 1 | D13: 144319 | E13: 133964 | F13: 140628 | G13: 133640 | H13: 141065 | I13: 141307 | J13: 160934 | K13: 173003 | L13: 160504 | M13: 156089 | N13: =N15+N16 -> 176477 | O13: =O15+O16 -> 177733 | P13: =P15+P16 -> 181517 | Q13: =Q15+Q16 -> 185497 | R13: =R15+R16 -> 188134
B15: Inicial de 0a 2 años | D15: S/D | E15: S/D | F15: S/D | G15: S/D | H15: S/D | I15: S/D | J15: S/D | K15: S/D | L15: S/D | M15: S/D | N15: 47500 | O15: 48530 | P15: 52269 | Q15: 54231 | R15: 56701
B16: Primera Infancia de 3 a 5 años | N16: 128977 | O16: 129203 | P16: 129248 | Q16: 131266 | R16: 131433
A18: Total Educación Primaria | D18: =D20+D23+D26 -> 365004 | E18: 365495 | F18: 367428 | G18: 365840 | H18: 365879 | I18: 360653 | J18: 354852 | K18: 349271 | L18: 347207 | M18: 341607 | N18: 334130 | O18: 329000 | P18: 323695 | Q18: =Q20+Q23+Q26 -> 318338 | R18: =R20+R23+R26 -> 314236
B20: Primaria Común | D20: =D21+D22 -> 353826 | E20: 354843 | F20: 355568 | G20: 354777 | H20: 353528 | I20: 348579 | J20: 342498 | K20: 336865 | L20: 330548 | M20: =M21+M22 -> 325509 | N20: 319238 | O20: 314760 | P20: 309409 | Q20: 304060 | R20: 299908
C21: Común pública 2 | D21: 307756 | E21: 311141 | F21: 311350 | G21: 309286 | H21: 306030 | I21: 300143 | J21: 292542 | K21: 286092 | L21: 279445 | M21: 273440 | N21: 266349 | O21: 261188 | P21: 255451 | Q21: 250483 | R21: 246382
C22: Común privada | D22: 46070 | E22: 43702 | F22: 44218 | G22: 45491 | H22: 47498 | I22: 48436 | J22: 49956 | K22: 50773 | L22: 51103 | M22: 52069 | N22: 52889 | O22: 53572 | P22: 53958 | Q22: 53577 | R22: 53526
B23: Primaria Especial | D23: =D24+D25 -> 11178 | E23: 10652 | F23: 11860 | G23: 11063 | H23: 12351 | I23: 12074 | J23: 12354 | K23: 12406 | L23: 11808 | M23: =M24+M25 -> 11253 | N23: 10504 | O23: 9953 | P23: 9999 | Q23: 9991 | R23: 10041
C24: Especial pública | D24: 9076 | E24: 8884 | F24: 8553 | G24: 8379 | H24: 8221 | I24: 7913 | J24: 7778 | K24: 7535 | L24: 7416 | M24: 7286 | N24: 6910 | O24: 6813 | P24: 6638 | Q24: 6586 | R24: 6437
C25: Especial privada | D25: 2102 | E25: 1768 | F25: 3307 | G25: 2684 | H25: 4130 | I25: 4161 | J25: 4576 | K25: 4871 | L25: 4392 | M25: 3967 | N25: 3594 | O25: 3140 | P25: 3361 | Q25: 3405 | R25: 3604
B26: Programa Jóvenes y Adultos ANEP8 | L26: =L27+L28 -> 4851 | M26: 4845 | N26: 4388 | O26: 4287 | P26: 4287 | Q26: 4287 | R26: =R27+R28 -> 4287
C27: Educación Primaria (Niveles I y II y Programa de Alfabetización) | L27: 3827 | M27: 3804 | N27: 3234 | O27: 3136 | P27: 3136 | Q27: 3136 | R27: 3136
C28: Pruebas de Acreditación | L28: 1024 | M28: 1041 | N28: 1154 | O28: 1151 | P28: 1151 | Q28: 1151 | R28: 1151
A30: Total Educación Media | D30: =D32+D38 -> 295399 | E30: 306417 | F30: 306778 | G30: 302311 | H30: 300681 | I30: 298925 | J30: 310128 | K30: 320420 | L30: 322977 | M30: 331659 | N30: 335126 | O30: 337634 | P30: 339271 | Q30: =Q32+Q38 -> 340853 | R30: =R32+R38 -> 348024
B32: Total Educación Media Básica | D32: =D33+D34+D37 -> 162664 | E32: 164180 | F32: 161736 | G32: 158131 | H32: 160028 | I32: 160367 | J32: 171502 | K32: 177015 | L32: 177619 | M32: =M33+M34+M37 -> 182175 | N32: 181444 | O32: 182087 | P32: 182236 | Q32: 180582 | R32: 182319
C33: Ciclo Básico Rural (7º, 8º y 9º) | D33: 1498 | E33: 1771 | F33: 1869 | G33: 1797 | H33: 1818 | I33: 1784 | J33: 2028 | K33: 1991 | L33: 1934 | M33: 1966 | N33: 1916 | O33: 1812 | P33: 1798 | Q33: 1730 | R33: 1583
C34: Total Media Básica General | D34: 146588 | E34: 147146 | F34: 144374 | G34: 140743 | H34: 142350 | I34: 142420 | J34: 151798 | K34: 155409 | L34: 155444 | M34: =M35+M36 -> 156418 | N34: 153287 | O34: 151201 | P34: 149622 | Q34: 147165 | R34: 148486
A35: Pública | D35: 125367 | E35: 127162 | F35: 123869 | G35: 120487 | H35: 121195 | I35: 120960 | J35: 127681 | K35: 130013 | L35: 130073 | M35: 130978 | N35: 127593 | O35: 124749 | P35: 122896 | Q35: 120749 | R35: 122764
A36: Privada3 | D36: 21221 | E36: 19984 | F36: 20505 | G36: 20256 | H36: 21155 | I36: 21460 | J36: 24117 | K36: 25396 | L36: 25371 | M36: 25440 | N36: 25694 | O36: 26452 | P36: 26726 | Q36: 26416 | R36: 25722
C37: Media Básica Tecnológica | D37: 14578 | E37: 15263 | F37: 15493 | G37: 15591 | H37: 15860 | I37: 16163 | J37: 17676 | K37: 19615 | L37: 20241 | M37: 23791 | N37: 26241 | O37: 29074 | P37: 30816 | Q37: 31687 | R37: 32250
B38: Total Educación Media Superior | D38: =D39+D42 -> 132735 | E38: 142237 | F38: 145042 | G38: 144180 | H38: 140653 | I38: 138558 | J38: 138626 | K38: 143405 | L38: 145358 | M38: 149484 | N38: 153682 | O38: 155547 | P38: 157035 | Q38: =Q39+Q42 -> 160271 | R38: =R39+R42 -> 165705
C39: Total Media Superior General | D39: 122617 | E39: 129454 | F39: 127356 | G39: 124512 | H39: 119418 | I39: 112877 | J39: 110507 | K39: 112664 | L39: 113327 | M39: =M40+M41 -> 116117 | N39: 117497 | O39: 116552 | P39: 115619 | Q39: 116793 | R39: 120525
A40: Pública | D40: 108589 | E40: 115157 | F40: 112669 | G40: 108459 | H40: 103938 | I40: 97136 | J40: 94506 | K40: 96319 | L40: 96902 | M40: 99175 | N40: 100265 | O40: 99510 | P40: 98241 | Q40: 99617 | R40: 103751
A41: Privada3 | D41: 14028 | E41: 14297 | F41: 14687 | G41: 16053 | H41: 15480 | I41: 15741 | J41: 16001 | K41: 16345 | L41: 16425 | M41: 16942 | N41: 17232 | O41: 17042 | P41: 17378 | Q41: 17176 | R41: 16774
C42: Total Media Superior Tecnológica | D42: 10118 | E42: 12783 | F42: 17686 | G42: 19668 | H42: 21235 | I42: 25681 | J42: 28119 | K42: 30741 | L42: 32031 | M42: 33367 | N42: 36185 | O42: 38995 | P42: 41416 | Q42: 43478 | R42: 45180
A44: Total Edu. Técnica (s/cont. educativa) | D44: 36416 | E44: 37219 | F44: 32372 | G44: 27146 | H44: 28840 | I44: 24419 | J44: 19957 | K44: 16769 | L44: 11912 | M44: 7546 | N44: 9859 | O44: 8632 | P44: 9092 | Q44: 7302 | R44: 5249
L45: .
A46: Total Educación Terciaria | D46: =D48+D55+D61 -> 100946 | E46: 105219 | F46: 106382 | G46: 108757 | H46: 111012 | I46: 124442 | J46: 127301 | K46: 126662 | L46: 128159 | M46: 129884 | N46: 136893 | O46: 140511 | P46: 143016 | Q46: =Q48+Q55+Q61 -> 139008 | R46: 144729
B48: Terciaria No Universitaria | D48: =D49+D53 -> 5496 | E48: =E49+E53 -> 7238 | F48: =F49+F53 -> 6437 | G48: =G49+G53 -> 5454 | H48: =H49 -> 5726 | I48: =I49 -> 5786 | J48: 6718 | K48: 7179 | L48: 7560 | M48: 7339 | N48: 8308 | O48: 9253 | P48: 10384 | Q48: 11470 | R48: =+R50+R51+R52 -> 11547
C49: Terciaria No Universitaria Pública | D49: =D50+D51+D52 -> 5148 | E49: 6107 | F49: 6129 | G49: 5297 | H49: 5726 | I49: 5786 | J49: 6718 | K49: 7179 | L49: 7560 | M49: =M50+M51+M52 -> 7339 | N49: =N50+N51+N52 -> 8308 | O49: =O50+O51+O52 -> 9253 | P49: =P50+P51+P52 -> 10384 | Q49: =Q50+Q51+Q52 -> 11470 | R49: 11547
A50: CETP | D50: 2564 | E50: 3514 | F50: 3671 | G50: 4024 | H50: 3961 | I50: 3896 | J50: 4650 | K50: 4964 | L50: 6158 | M50: 6780 | N50: 7610 | O50: 8511 | P50: 9489 | Q50: 10555 | R50: 10580
A51: Terciaria Policial o Militar | D51: 620 | E51: 623 | F51: 653 | G51: 679 | H51: 724 | I51: 652 | J51: 557 | K51: 649 | L51: 603 | M51: 470 | N51: 572 | O51: 626 | P51: 777 | Q51: 766 | R51: 865
A52: Otras terciaria pública4 | D52: 1964 | E52: 1970 | F52: 1805 | G52: 594 | H52: 1041 | I52: 1238 | J52: 1511 | K52: 1566 | L52: 799 | M52: 89 | N52: 126 | O52: 116 | P52: 118 | Q52: 149 | R52: 102
C53: Terciaria No Universitaria Privada7 | D53: 348 | E53: 1131 | F53: 308 | G53: 157 | H53: n/c | I53: n/c | J53: n/c | K53: n/c | L53: n/c | M53: n/c | N53: n/c | O53: n/c | P53: n/c | Q53: n/c | R53: n/c
B55: Formación en Educación | D55: =D56+D59 -> 16735 | E55: =E56+E59 -> 19411 | F55: 21397 | G55: 20779 | H55: 21537 | I55: 22609 | J55: 22747 | K55: 20951 | L55: 20703 | M55: 21242 | N55: 22754 | O55: 24239 | P55: 24966 | Q55: =Q56+Q59 -> 19956 | R55: =R56+R59 -> 24566
C56: Publica | D56: =D57 -> 16610 | E56: =E57 -> 19298 | F56: =F57+F58 -> 21260 | G56: =G57+G58 -> 20631 | H56: 21406 | I56: 22456 | J56: 22572 | K56: 20855 | L56: 20655 | M56: 21149 | N56: 22649 | O56: 24120 | P56: 24886 | Q56: =Q57+Q58 -> 19884 | R56: =R57+R58 -> 24524
A57: Consejo de Formación en Educación (CFE) | D57: 16610 | E57: 19298 | F57: 20968 | G57: 20435 | H57: 21175 | I57: 21992 | J57: 22108 | K57: 20391 | L57: 20191 | M57: 20919 | N57: 22331 | O57: 24067 | P57: 24729 | Q57: 19716 | R57: 24369
A58: CENFORES - INAU | D58: n/c | E58: n/c | F58: 292 | G58: 196 | H58: 231 | I58: 464 | J58: 464 | K58: 464 | L58: 464 | M58: 230 | N58: 318 | O58: 53 | P58: 157 | Q58: 168 | R58: 155
C59: Privada | D59: =D60 -> 125 | E59: =E60 -> 113 | F59: 137 | G59: 148 | H59: 131 | I59: 153 | J59: 175 | K59: 96 | L59: 48 | M59: 93 | N59: 105 | O59: 119 | P59: 80 | Q59: 72 | R59: =R60 -> 42
A60: Centro de Inv. y Experim. Pedagógica (CIEP) | D60: 125 | E60: 113 | F60: 137 | G60: 148 | H60: 131 | I60: 153 | J60: 175 | K60: 96 | L60: 48 | M60: 93 | N60: 105 | O60: 119 | P60: 80 | Q60: 72 | R60: 42
B61: Total Educación Universitaria6 | D61: =D62+D64 -> 78715 | E61: 78570 | F61: 78548 | G61: 82524 | H61: 83749 | I61: 96047 | J61: 97836 | K61: 98532 | L61: 99896 | M61: 101303 | N61: =N62+N64+N65 -> 105831 | O61: =O62+O64+O65 -> 107019 | P61: =P62+P63+P64+P65 -> 107666 | Q61: =Q62+Q63+Q64 -> 107582 | R61: =R62+R63+R64 -> 108616
C62: Universitaria Pública (UdelaR)7 | D62: 70156 | E62: 70156 | F62: 70156 | G62: 70156 | H62: 70156 | I62: 81774 | J62: 81774 | K62: 81774 | L62: 81774 | M62: 81774 | N62: 85905 | O62: 85905 | P62: 85905 | Q62: 85905 | R62: 85905
C63: Universidad Tecnológica (UTEC) | D63: n/c | E63: n/c | F63: n/c | G63: n/c | H63: n/c | I63: n/c | J63: n/c | K63: n/c | L63: n/c | M63: n/c | N63: n/c | O63: n/c | P63: 55 | Q63: 169 | R63: 358
C64: Universitaria Privada | D64: 8559 | E64: 8414 | F64: 8392 | G64: 12368 | H64: 13593 | I64: 14273 | J64: 16062 | K64: 16758 | L64: 18122 | M64: 19529 | N64: 19824 | O64: 21062 | P64: 21679 | Q64: 21508 | R64: 22353
C65: Seguridad y Defensa | D65: n/c | E65: n/c | F65: n/c | G65: n/c | H65: n/c | I65: n/c | J65: n/c | K65: n/c | L65: n/c | M65: s/d | N65: 102 | O65: 52 | P65: 27 | Q65: n/c * | R65: n/c*
B67: Fuentes: Departamentos de Estadística (u oficinas productoras de información) del CEIP, CES y CETP y de la Universidad de la República, Dirección de Formación y Perfeccionamiento Docente, e instituciones privadas de educación terciaria Notas: 1-A partir de 2012, Primera Infancia incluye niños de 0 y 1 año de CAIF. 2-El dato de Educación Primaria Común Pública para 2011 incluyen 1.041 acreditados por el Programa Nacional de Jóvenes y Adultos de ANEP(Acreditación de Primaria). 3-Los datos de secundaria privada corresponden a la educación secundaria habilitada, que se componen en su gran mayoría por liceos privados a los que se suma el Liceo Militar y el bachillerato de la Escuela Naval. 4-La baja significativa de matriculados en la categoría “Otras terciaria pública” en 2005, responde a que el ISEF no reportó información para dicho año sí lo había hecho en 2004 (1181 matriculados). En 2006 y 2007 reportó en UdelaR, institución a la pasó a formar parte. 5-Algunas instituciones de educación terciaria no universitaria privada fueron reportadas en distintos niveles a lo largo de la serie o bien no reportaron en algunos de los años, lo que explica la irregularidad de la evolución de la matrícula en este nivel. 6-Los datos de enseñanza terciaria universitaria pública y privada corresponden a carreras cortas y de grado (excluyen carreras de postgrado). 7-Los datos de UdelaR del 2000 a 2006 corresponden a una proyección realizada del Censo 1999 de carreras de grado. El dato de 2007 corresponde al Censo 2007 y los datos 2008 a 2011 responden a la proyección del Censo 2007. El dato de 2012 corresponde al VII Censo de Estudiantes Universitarios de Grado 2012 (no incluyen carreras de postgrado). 8- Los datos de 2014 corresponden a 2013 dado que son los últimos disponibles
A68: * Nota: En la Escuela Nacional de Policía la Licenciatura en Seguridad Pública no fue dictada en el año 2015.

Sheet ESTADÍSTICAS POR NIVEL
B3: ESTADÍSTICAS POR NIVEL
B9: 2. PRIMERA INFANCIA E INICIAL | E9: 6. TÉCNICO PROFESIONAL
B11: 3. EDUCACIÓN PRIMARIA | E11: 7. TERCIARIA NO UNIVERSITARIA
B13: 4. EDUCACIÓN MEDIA BÁSICA | E13: 8. FORMACIÓN EN EDUCACIÓN
B15: 5. EDUCACIÓN MEDIA SUPERIOR | E15: 9. EDUCACIÓN UNIVERSITARIA
E17: 10. EDUCACIÓN JÓVENES Y ADULTOS

Sheet 2. PRIMERA INFANCIA E INICIAL
B2: PRIMERA INFANCIA E INICIAL
A9: Gráfico 2.2.1 | B9: EVOLUCIÓN DE LA MATRÍCULA EN PRIMERA INFANCIA Y EDUCACIÓN INICIAL (2005- 2016)
A10: Gráfico 2.2.2 | B10: TASA DE ASISTENCIA Y MATRÍCULA EN EDUCACIÓN EN PRIMERA INFANCIA Y EDUCACIÓN INICIAL (2009-2016)
A11: Gráfico 2.2.3 | B11: MATRÍCULA DE LA EDUCACIÓN EN LA PRIMERA INFANCIA E INICIAL POR MODALIDAD SEGÚN AÑO LECTIVO (2008-2016)
A12: Gráfico 2.2.4 | B12: MATRÍCULA DE EDUCACIÓN EN LA PRIMERA INFANCIA E INICIAL POR MODALIDAD SEGÚN EDAD (2016)
A13: Gráfico 2.2.5 | B13: MATRÍCULA DE NIÑOS DE 0 A 5 AÑOS DE EDAD POR MODALIDAD SEGÚN GRANDES ÁREAS (AÑO 2015)

Sheet Gráfico 2.2.1
A1: Ministerio de Educación y Cultura Dirección de Educación
A3: Gráfico 2.2.1
A28: Fuente: Elaboración propia en base en datos del Departamento de Estadística del CEIP, Sistema de Información para la Infancia de INAU y Área de Primera Infancia del MEC.
A29: Nota: A partir del año 2007 se incluye la matrícula de CAIF y de Diurnos del INAU.

Sheet Gráfico 2.2.2
A1: Ministerio de Educación y Cultura Dirección de Educación
A3: Gráfico 2.2.2
A35: Fuente: Elaboración propia en base en datos del Departamento de Estadística del CEIP, Sistema de Información para la Infancia de INAU y Área de Primera Infancia del MEC y ECH 2015

Sheet Gráfico 2.2.3
A1: Ministerio de Educación y Cultura Dirección de Educación
A5: Gráfico 2.2.3
A30: Fuente: Elaboración propia en base a datos del Departamento de Estadística del CEIP, Sistema de Información para la Infancia de INAU y Área de Primera Infancia del MEC.

Sheet Gráfico 2.2.4
A1: Ministerio de Educación y Cultura Dirección de Educación
A5: Gráfico 2.2.4
A31: Fuente: Elaboración propia en base en datos del Departamento de Estadística del CEIP, Sistema de Información para la Infancia de INAU y Área de Primera Infancia del MEC.
A33: DATOS REVISADOS AL 31 DE MAYO

Sheet Gráfico 2.2.5
A1: Ministerio de Educación y Cultura Dirección de Educación
A5: Gráfico 2.2.5
A34: Fuente: Elaboración propia en base a datos del Departamento de Estadística del CEIP, Sistema de Información para la Infancia de INAU y Área de Primera Infancia del MEC.

Sheet 3. EDUCACIÓN PRIMARIA
B8: PRIMARIA
A14: Gráfico 2.3.1 | B14: TASA DE ASISTENCIA, TASA NETA DE ASISTENCIA AJUSTADA Y MATRÍCULA EN EDUCACIÓN PRIMARIA (2006-2016)
A15: Gráfico 2.3.2 | B15: RAZÓN PÚBLICO – PRIVADO Y MATRÍCULA DE EDUCACIÓN PRIMARIA COMÚN POR FORMA DE ADMINISTRACIÓN (2000-2016)
A16: Gráfico 2.3.3 | B16: PORCENTAJE DE NO PROMOVIDOS EN PRIMER AÑO Y DE PRIMERO A SEXTO (Escuelas públicas, 2000- 2016)

Sheet Gráfico 2.3.1
A1: Ministerio de Educación y Cultura Dirección de Educación
A5: Gráfico 2.3.1
A32: Fuente: Elaboración propia en base a datos del Departamento de Estadística del CEIP y ECH.
A33: Nota: Incluye establecimientos públicos y privados. Educación Primaria común pública incluye la matrícula de educación en Jardines de Infantes con Ciclo Inicial (JICI).

Sheet Gráfico 2.3.2
A1: Ministerio de Educación y Cultura Dirección de Educación
A3: Gráfico 2.3.2
A40: Fuente: | B40: Elaboración propia con base a datos del Departamento de Estadística del CEIP.
A41: Nota: | B41: Educación Primaria Común incluye la matrícula de educación en Jardines de Infantes con Ciclo Inicial (JICI).

Sheet Gráfico 2.3.3
A1: Ministerio de Educación y Cultura Dirección de Educación
A5: Gráfico 2.3.3
A29: Fuente: Monitor Educativo de Enseñanza Primaria,ANEP.

Sheet 4. EDUCACIÓN MEDIA BÁSICA
C2: EDUCACIÓN MEDIA BÁSICA
A6: Gráfico 2.4.1 | B6: TASA DE ASISTENCIA Y TASA NETA AJUSTADA, ENTRE JÓVENES DE 12 A 14 AÑOS Y MATRÍCULA EN EDUCACIÓN MEDIA BÁSICA (2006-2016)
A8: Gráfico 2.4.2 | B8: PORCENTAJE DE ALUMNOS CON EXTRAEDAD DE EDUCACIÓN MEDIA BÁSICA GENERAL PÚBLICA (años 2015 y 2016)
A10: Gráfico 2.4.3 | B10: EXTRAEDAD DE EDUCACIÓN MEDIA BÁSICA CETP (Años 2011 a 2016)

Sheet Gráfico 2.4.1
A1: Ministerio de Educación y Cultura Dirección de Educación
A5: Gráfico 2.4.1
A29: Fuente: Departamentos de Estadística del CEIP, CES y del CETP y ECH del INE.
A30: Nota: Media Básica General incluye matrícula pública, privada y Ciclo Básico Rural

Sheet Infografía 2.4.1
A1: Ministerio de Educación y Cultura Dirección de Educación
A5: Infografía 2.4.1
A45: Fuente: Elaboración propia con base en información de los departamentos de Estadística del CES y del CETP.
A46: Notas:
A47: Matrícula no incluye liceos privados del CES ni Ciclo Básico Rural del CEIP
A48: No promoción no incluye liceos nocturnos, liceos privados del CES ni Ciclo Básico Rural del CEIP. No incluye exámenes libres
A49: Extraedad no incluye liceos nocturnos, liceos privados del CES ni Ciclo Básico Rural del CEIP. Para el caso del CES, cambios en los sistemas de información no permiten la comparación entre todos los años de la serie.
A50: Desafiliación se calcula solo para CETP dado que CES no dispone de información para la desafiliación interanual

Sheet Gráfico 2.4.2
A1: Ministerio de Educación y Cultura Dirección de Educación
A3: Gráfico 2.4.2
A21: Fuente: Departamento de Estadística del CES.
A22: Nota: La extraedad se calcula como el porcentaje de estudiantes que poseen al menos dos años más que la edad teórica estipulada en determinado grado.

Sheet Gráfico 2.4.3
A1: Ministerio de Educación y Cultura Dirección de Educación
A5: Gráfico 2.4.3
A32: Fuente: Departamento de Estadística del CETP.
A33: Nota: La extraedad se calcula como el porcentaje de estudiantes que poseen al menos dos años más que la edad teórica estipulada en determinado grado.

Sheet 5. EDUCACIÓN MEDIA SUPERIOR
A2: EDUCACIÓN MEDIA SUPERIOR
A6: Gráfico 2.5.1 TASA DE ASISTENCIA Y TASA NETA AJUSTADA, ENTRE JÓVENES DE 15 A 17 AÑOS Y MATRÍCULA EN EDUCACIÓN MEDIA SUPERIOR (2006-2016)
A7: Gráfico 2.5.2 PORCENTAJE DE NO PROMOVIDOS SOBRE EL TOTAL DE MATRICULADOS EN SEGUNDO DE BACHILLERATO SEGÚN ORIENTACIÓN POR AÑO LECTIVO. LICEOS OFICIALES DIURNOS (Todo el país, años 2011 a 2016)
A8: Gráfico 2.5.3 PORCENTAJE DE APROBACIÓN DE ASIGNATURAS EN SEGUNDO DE BACHILLERATO, SEGÚN ORIENTACIONES. LICEOS OFICIALES DIURNOS (Todo el país, años 2014 a 2016
A9: Gráfico 2.5.4 CANTIDAD DE EGRESADOS DE BACHILLERATO POR AÑO LECTIVO EN LICEOS OFICIALES DIURNOS (Total del país, años 2011 a 2016)
A10: Gráfico 2.5.5 PORCENTAJE DE APROBACIÓN DE ASIGNATURAS EN TERCERO DE BACHILLERATO, SEGÚN ORIENTACIONES. LICEOS OFICIALES DIURNOS (Todo el país, años 2014 a 2016)

Sheet Gráfico 2.5.1
A1: Ministerio de Educación y Cultura Dirección de Educación
A5: Gráfico 2.5.1
A32: Fuente: Departamentos de Estadística del CES y del CETP y ECH del INE.
A33: Nota: Media Superior incluye matrícula pública y privada.

Sheet Infografìa 2.5.1
A1: Ministerio de Educación y Cultura Dirección de Educación
A5: Infografía 2.5.1
A37: Fuente: Elaboración propia con base en información de los departamentos de Estadística del CES y del CETP.
A38: Notas:
A39: Matrícula no incluye liceos privados del CES.
A40: No promoción no incluye liceos nocturnos ni liceos privados del CES.
A41: Extraedad no incluye liceos nocturnos ni liceos privados del CES. Para el caso del CES, cambios en los sistemas de información no permiten la comparación entre todos los años de la serie.
A42: Desafiliación se calcula solo para CETP dado que CES no dispone de información para la desafiliación interanual

Sheet Gráfico 2.5.2
A1: Ministerio de Educación y Cultura Dirección de Educación
A5: Gráfico 2.5.2
A28: Fuente: Departamento de Estadística del CES.
A33: Fuentes: Elaboración propia con base en información del Departamento de Estadística del CES (año 2016), Dirección de Desarrollo y Gestión Informática (años 2014 y 2015) y del Monitor Educativo del CES (años 2011 a 2013).
A35: Notas: Por No Promoción se entiende a alumnos con más de tres materias pendientes de aprobación.
A36: La matrícula refiere a liceos diurnos de educación pública

Sheet Gráfico 2.5.3
A1: Ministerio de Educación y Cultura Dirección de Educación
A5: Gráfico 2.5.3
A25: Fuente: Departamento de Estadística del CES.
A34: Fuente: Elaboración propia con base en información del Departamento de Estadística del CES (año 2016) y Dirección de Desarrollo y Gestión Informática (años 2014 y 2015).
A36: Nota: La matrícula refiere a liceos diurnos de educación pública

Sheet Gráfico 2.5.4
A1: Ministerio de Educación y Cultura Dirección de Educación
A5: Gráfico2.5.4
A27: Fuente: Departamento de Estadística del CES.
A32: Fuentes: Elaboración propia con base en información del Departamento de Estadística del CES (año 2016), Dirección de Desarrollo y Gestión Informática (años 2014 y 2015) y del Monitor Educativo del CES (años 2011 a 2013).
A33: Nota: La matrícula refiere a liceos diurnos de educación pública
A34: Egresados: alumnos que culminaron Bachillerato a Mayo del año t+1
A35: Egresados Matriculados: Alumnos que registraron inscripción reglamentaria en el curso del año t.
A36: Egresados No Matriculados: Alumnos que rindieron los exámenes pendientes sin haber registrado inscripción al curso en t.

Sheet Gráfico 2.5.5
A1: Ministerio de Educación y Cultura Dirección de Educación
A5: Gráfico 2.5.5
A26: Fuente: Departamento de Estadística del CES.
A32: Fuente: Elaboración propia con base en información del Departamento de Estadística del CES (año 2016) y Dirección de Desarrollo y Gestión Informática (años 2014 y 2015).
A34: Nota: La matrícula refiere a liceos diurnos de educación pública

Sheet 6. TÉCNICO PROFESIONAL
B21: EDUCACIÓN TÉCNICO - PROFESIONAL
A28: Gráfico 2.6.1 | B28: MATRÍCULA DE CONSEJO DE EDUCACIÓN TÉCNICO PROFESIONAL POR NIVEL EDUCATIVO (2000 – 2016).

Sheet Gráfico2.6.1
A1: Ministerio de Educación y Cultura Dirección de Educación
A5: Gráfico 2.6.1
A40: Fuente: Elaboración propia en base a información del Departamento de Estadística del CETP.

Sheet 7. TERCIARIA NO UNIVERSITARIA
C3: TERCIARIA NO UNIVERSITARIA
A9: Gráfico 2.7.1 | B9: ALUMNOS MATRICULADOS EN EDUCACIÓN TERCIARIA NO UNIVERSITARIA DEL CETP SEGÚN AÑO LECTIVO (Todo el país 2000-2016)
B11: ALUMNOS MATRICULADOS EN EDUCACIÓN TERCIARIA NO UNIVERSITARIA DE OTRAS PÚBLICAS Y PRIVADAS SEGÚN AÑO LECTIVO (Todo el país 2000-2016)
A12: Gráfico2.7.2
B13: MATRÍCULA DE NIVEL TERCIARIO NO UNIVERSITARIO DEL ÁREA DE SEGURIDAD Y DEFENSA POR MINISTERIOS SEGÚN AÑO (2000-2016).
A14: Gráfico 2.7.3
B15: MATRÍCULA DE NIVEL TERCIARIO NO UNIVERSITARIO DEL ÁREA DE SEGURIDAD Y DEFENSA POR INSTITUCIÓN SEGÚN AÑO (2000-2016).
A16: Gráfico2.7.4

Sheet Gráfico 2.7.1
A1: Ministerio de Educación y Cultura Dirección de Educación
A5: Gráfico 2.7.1
A34: Fuente: Elaboración propia con base en información proporcionada por el Departamento de Estadística del CETP.

Sheet Gráfico 2.7.2
A1: Ministerio de Educación y Cultura Dirección de Educación
A5: Gráfico 2.7.2
A32: Fuente: Elaboración propia en base a información proporcionada por las oficinas productoras de estadísticas de cada una de las instituciones.
A33: Notas: No incluye las ofertas del Consejo de Formación en Educación (CFE) de ANEP ni Seguridad y Defensa, que se presentan aparte más adelante.
A34: A partir del 2010 el CDI integra la matrícula de la UdelaR, por lo cual disminuye por esta vía la categoría “Otras públicas”.
A35: En 2001 la EMAD no proporcionó información, razón por la cual el dato de dicho año se corresponde con la matrícula del CDI.
A36: Privada sólo incluye CIEP.

Sheet Gráfico 2.7.3
A1: Ministerio de Educación y Cultura Dirección de Educación
A5: Gráfico 2.7.3
A23: Fuente: Elaboración propia en base a información proporcionada por las oficinas productoras de estadísticas de cada una de las instituciones

Sheet Gráfico 2.7.4
A1: Ministerio de Educación y Cultura Dirección de Educación
A5: Gráfico 2.7.4
A24: Fuente: Elaboración propia en base a información proporcionada por las oficinas productoras de estadísticas de cada una de las instituciones.

Sheet 8. FORMACIÓN EN EDUCACIÓN
E4: FORMACIÓN EN EDUCACIÓN
A9: Gráfico 2.8.1 | C9: ALUMNOS MATRICULADOS EN FORMACIÓN EN EDUCACIÓN POR AÑO LECTIVO SEGÚN TIPO DE OFERTA (TODO EL PAÍS, AÑOS 2000-2014).
A13: Gráfico 2.8.2 | C13: EGRESOS DE FORMACIÓN EN EDUCACIÓN POR AÑO LECTIVO SEGÚN TIPO DE CURSO (TODO EL PAÍS AÑOS 2000-2015)

Sheet Gráfico 2.8.1
A1: Ministerio de Educación y Cultura
A2: Dirección de Educación
A5: Gráfico 2.8.1
A36: Fuente: Consejo de Formación en Educación de ANEP
A37: Nota: "A partir del año 2015 se registran dos cambios importantes en el sistema de reportes de matrículas que modifican la serie histórica presentada hasta el año 2014. Estos cambios son: 1) se pasa del sistema anterior de reporte administrativo a nivel de bedelía de cada centro por un nuevo sistema único de inscripción WEB y 2) En 2015 para las estadísticas se consideran únicamente las inscripciones del año en curso (independiente si cada inscripto es o no un estudiante activo); hasta el año 2014 eran reportadas las nuevas incripciones y además todas las personas con actividad estudiantil en los últimos 24 meses." Tomado del Observatorio de la Educación de la División de Investigación, Evaluación y Estadística de CODICEN

Sheet Gráfico 2.8.2
A1: Ministerio de Educación y Cultura
A2: Dirección de Educación
A5: Gráfico 2.8.2
A30: Fuente: Consejo de Formación en Educación de ANEP

Sheet 9. EDUCACIÓN UNIVERSITARIA
B2: EDUCACIÓN UNIVERSITARIA
A5: Cuadro 2.9.1 | B5: INGRESOS A INSTITUCIONES UNIVERSITARIAS POR AÑO LECTIVO SEGÚN ÁREA DE CONOCIMIENTO. AÑOS 2000 A 2016
A6: Cuadro 2.9.2 | B6: EGRESOS DE INSTITUCIONES UNIVERSITARIAS POR AÑO LECTIVO SEGÚN ÁREA DE CONOCIMIENTO. AÑOS 2000 A 2016
A7: Cuadro 2.9.3 | B7: INGRESOS A INSTITUCIONES UNIVERSITARIAS POR NIVEL ACADÉMICO Y SEXO SEGÚN ÁREA DE CONOCIMIENTO (AÑO 2016).
A8: Cuadro 2.9.4 | B8: EGRESOS A INSTITUCIONES UNIVERSITARIAS POR NIVEL ACADÉMICO Y SEXO SEGÚN ÁREA DE CONOCIMIENTO (AÑO 2016).
A9: Cuadro 2.9.5 | B9: INGRESOS, MATRÍCULA Y EGRESOS SEGÚN FORMA DE ADMINISTRACIÓN EN CANTIDADES ABSOLUTAS Y PORCENTAJES (AÑO 2016).
A10: Cuadro 2.9.6 | B10: PORCENTAJE DE EGRESADOS DE GRADO POR NIVEL Y SEXO SEGÚN TRAMOS DE EDAD .AÑO 2016.
A11: Cuadro 2.9.7 | B11: PORCENTAJE DE EGRESADOS DE POSGRADO POR NIVEL Y SEXO SEGÚN TRAMOS DE EDAD .AÑO 2016.
A13: Gráfico 2.9.1 | B13: EVOLUCIÓN COMPARADA DE LA MATRICULA DE GRADO Y POSTGRADO POR UNIVERSIDADES E INSTITUTOS UNIVERSITARIOS PRIVADOS SEGÚN AÑO LECTIVO ( 2000-2016)
A14: Gráfico 2.9.2 | B14: PORCENTAJE DE MATRICULADOS EN LAS UNIVERSIDADES E INSTITUTOS UNIVERSITARIOS PRIVADOS SEGÚN INSTITUCIÓN (AÑO 2016)
A15: Gráfico 2.9.3 | B15: EVOLUCIÓN COMPARADA DEL INGRESO Y DEL EGRESO EN CARRERAS DE GRADO EN LA UDELAR (2000-2016).
A16: Gráfico 2.9.4 | B16: EVOLUCIÓN COMPARADA DEL INGRESO DE GRADO EN UDELAR Y UNIVERSIDADES E INSTITUTOS UNIVERSITARIOS PRIVADOS (2000-2016).
A17: Gráfico 2.9.5 | B17: EVOLUCIÓN COMPARADA DEL INGRESO Y DEL EGRESO EN CARRERAS DE GRADO EN UNIVERSIDADES E INSTITUTOS UNIVERSITARIOS PRIVADOS (2000-2016).
A18: Gráfico 2.9.6 | B18: EVOLUCIÓN COMPARADA DEL EGRESO EN CARRERAS DE GRADO EN LA UDELAR Y EN UNIVERSIDADES E INSTITUTOS UNIVERSITARIOS PRIVADOS (2000 -2016)
A19: Gráfico 2.9.7 | B19: PORCENTAJES DE INGRESOS Y EGRESOS A CURSOS DE GRADO EN UNIVERSIDADES E INSTITUTOS UNIVERSITARIOS SEGÚN ÁREA GEOGRÁFICA (2010-2016).
A20: Gráfico 2.9.8 | B20: PORCENTAJE DE EGRESADOS DE CARRERAS DE GRADO SEGÚN TRAMOS DE EDAD (AÑO 2016).
A21: Gráfico 2.9.9 | B21: PORCENTAJE DE EGRESADOS DE GRADO SEGÚN TRAMOS DE EDAD Y SEXO (AÑO 2016).
A22: Gráfico 2.9.10 | B22: EVOLUCIÓN COMPARADA DEL INGRESO Y DEL EGRESO DE POSTGRADO –INSTITUCIONES PÚBLICAS Y PRIVADAS- (2000-2016)
A23: Gráfico 2.9.11 | B23: EVOLUCIÓN COMPARADA DEL INGRESO Y DEL EGRESO DE POSTGRADO EN INSTITUCIONES UNIVERSITARIAS PÚBLICAS (2000-2016)
A24: Gráfico 2.9.12 | B24: EVOLUCIÓN COMPARADA DEL INGRESO Y DEL EGRESO DE POSTGRADO EN UNIVERSIDADES E INSTITUTOS UNIVERSITARIOS PRIVADOS (2000-2016)
A25: Gráfico 2.9.13 | B25: PORCENTAJE DE EGRESADOS DE CARRERAS DE POSGRADO SEGÚN TRAMOS DE EDAD (AÑO 2016)
A26: Gráfico 2.9.14 | B26: PORCENTAJE DE EGRESADOS DE POSGRADO SEGÚN TRAMOS DE EDAD Y SEXO (AÑO 2016).

Sheet Cuadro 2.9.1
A1: Ministerio de Educación y Cultura Dirección de Educación
A3: Cuadro 2.9.1
A4: INGRESOS A INSTITUCIONES UNIVERSITARIAS PÚBLICAS Y PRIVADAS DE GRADO POSTGRADO, POR AÑO LECTIVO SEGÚN ÁREA DE CONOCIMIENTO. AÑOS 2000 A 2016.
A5: ÁREA DE CONOCIMIENTO | B5: AÑO LECTIVO
B6: 2000 | C6: 2001 | D6: 2002 | E6: 2003 | F6: 2004 | G6: 2005 | H6: 2006 | I6: 2007 | J6: 2008 | K6: 2009 | L6: 2010 | M6: 2011 | N6: 2012 | O6: 2013 | P6: 2014 | Q6: 2015 | R6: 2016
A7: TOTAL | B7: =SUM(B8:B29) -> 18131 | C7: 19265 | D7: 20090 | E7: 21169 | F7: 21558 | G7: 21964 | H7: 22798 | I7: 23014 | J7: 23566 | K7: 24981 | L7: =SUM(L8:L30) -> 26357 | M7: 26283 | N7: 26854 | O7: =SUM(O8:O30) -> 32178 | P7: =SUM(P8:P30) -> 33321 | Q7: =SUM(Q8:Q30) -> 33952 | R7: =SUM(R8:R30) -> 36396
A8: Agricultura, silvicultura y pesca | B8: 210 | C8: 225 | D8: 176 | E8: 252 | F8: 283 | G8: 398 | H8: 362 | I8: 414 | J8: 436 | K8: 638 | L8: 806 | M8: 864 | N8: 608 | O8: 724 | P8: 779 | Q8: 635 | R8: 695
A9: Arquitectura y construcción | B9: 788 | C9: 704 | D9: 756 | E9: 645 | F9: 602 | G9: 628 | H9: 648 | I9: 665 | J9: 646 | K9: 832 | L9: 770 | M9: 754 | N9: 688 | O9: 932 | P9: 876 | Q9: 904 | R9: 935
A10: Artes | B10: 488 | C10: 539 | D10: 574 | E10: 642 | F10: 710 | G10: 809 | H10: 744 | I10: 752 | J10: 746 | K10: 839 | L10: 1219 | M10: 997 | N10: 895 | O10: 1205 | P10: 1167 | Q10: 1353 | R10: 1227
A11: Ciencias de la vida | B11: 474 | C11: 492 | D11: 515 | E11: 633 | F11: 815 | G11: 785 | H11: 955 | I11: 939 | J11: 818 | K11: 581 | L11: 650 | M11: 649 | N11: 473 | O11: 489 | P11: 625 | Q11: 593 | R11: 662
A12: Ciencias físicas | B12: 505 | C12: 374 | D12: 545 | E12: 540 | F12: 653 | G12: 624 | H12: 771 | I12: 653 | J12: 687 | K12: 760 | L12: 636 | M12: 667 | N12: 711 | O12: 877 | P12: 777 | Q12: 708 | R12: 680
A13: Ciencias sociales y del comportamiento | B13: 2965 | C13: 2466 | D13: 3152 | E13: 2933 | F13: 3126 | G13: 3353 | H13: 2987 | I13: 3057 | J13: 4830 | K13: 5692 | L13: 5936 | M13: 5399 | N13: 3774 | O13: 5044 | P13: 3638 | Q13: 3727 | R13: 4235
A14: Derecho | B14: 2378 | C14: 2033 | D14: 2047 | E14: 2087 | F14: 1828 | G14: 2000 | H14: 1837 | I14: 1754 | J14: 1850 | K14: 1855 | L14: 2031 | M14: 2005 | N14: 2911 | O14: 3104 | P14: 3296 | Q14: 3245 | R14: 3078
A15: Enseñanza comercial y administración | B15: 2546 | C15: 4252 | D15: 3903 | E15: 4132 | F15: 3942 | G15: 3828 | H15: 4292 | I15: 4885 | J15: 3127 | K15: 3253 | L15: 4176 | M15: 3661 | N15: 5462 | O15: 5657 | P15: 5517 | Q15: 6998 | R15: 7401
A16: Formación de personal docente y ciencias de la educación | B16: 315 | C16: 505 | D16: 542 | E16: 588 | F16: 515 | G16: 766 | H16: 911 | I16: 901 | J16: 941 | K16: 709 | L16: 800 | M16: 785 | N16: 957 | O16: 769 | P16: 712 | Q16: 1140 | R16: 870
A17: Humanidades | B17: 568 | C17: 663 | D17: 709 | E17: 803 | F17: 899 | G17: 967 | H17: 1038 | I17: 889 | J17: 909 | K17: 791 | L17: 541 | M17: 707 | N17: 806 | O17: 1100 | P17: 1487 | Q17: 1021 | R17: 1247
A18: Industria y producción | B18: 43 | C18: 151 | D18: 172 | E18: 214 | F18: 247 | G18: 114 | H18: 141 | I18: 104 | J18: 111 | K18: 115 | L18: 116 | M18: 219 | N18: 383 | O18: 441 | P18: 444 | Q18: 468 | R18: 431
A19: Informática | B19: 792 | C19: 701 | D19: 749 | E19: 790 | F19: 813 | G19: 843 | H19: 917 | I19: 962 | J19: 1186 | K19: 1248 | L19: 1319 | M19: 1280 | N19: 1128 | O19: 1366 | P19: 1319 | Q19: 1312 | R19: 1404
A20: Ingeniería y profesiones afines | B20: 720 | C20: 676 | D20: 672 | E20: 752 | F20: 767 | G20: 570 | H20: 701 | I20: 633 | J20: 671 | K20: 686 | L20: 856 | M20: 828 | N20: 891 | O20: 1494 | P20: 1518 | Q20: 1567 | R20: 1645
A21: Matemáticas y estadística | B21: 107 | C21: 142 | D21: 113 | E21: 131 | F21: 324 | G21: 244 | H21: 328 | I21: 329 | J21: 238 | K21: 218 | L21: 155 | M21: 176 | N21: 132 | O21: 171 | P21: 135 | Q21: 196 | R21: 219
A22: Medicina | B22: 3673 | C22: 3817 | D22: 3573 | E22: 3960 | F22: 4135 | G22: 3633 | H22: 3572 | I22: 3562 | J22: 3888 | K22: 4823 | L22: 4361 | M22: 4656 | N22: 4785 | O22: 6307 | P22: 6563 | Q22: 6229 | R22: 6629
A23: Periodismo e información | B23: 945 | C23: 838 | D23: 1118 | E23: 1174 | F23: 972 | G23: 1170 | H23: 1219 | I23: 1036 | J23: 1038 | K23: 1049 | L23: 816 | M23: 1218 | N23: 1027 | O23: 1026 | P23: 1036 | Q23: 1049 | R23: 1092
A24: Protección del medio ambiente | B24: n/c | C24: n/c | D24: n/c | E24: n/c | F24: n/c | G24: n/c | H24: n/c | I24: n/c | J24: n/c | K24: n/c | L24: n/c | M24: 6 | N24: 43 | O24: 151 | P24: 127 | Q24: 159 | R24: 170
A25: Servicios de seguridad | B25: n/c | C25: n/c | D25: n/c | E25: n/c | F25: n/c | G25: n/c | H25: n/c | I25: n/c | J25: n/c | K25: n/c | L25: n/c | M25: s/d | N25: 102 | O25: 639 | P25: 185 | Q25: 59 | R25: 169
A26: Servicios de transporte | B26: n/c | C26: n/c | D26: n/c | E26: n/c | F26: n/c | G26: n/c | H26: n/c | I26: n/c | J26: n/c | K26: n/c | L26: n/c | M26: n/c | N26: n/c | O26: n/c | P26: n/c | Q26: n/c | R26: 240
A27: Servicios personales | B27: 8 | C27: 0 | D27: 0 | E27: 14 | F27: 8 | G27: 0 | H27: 318 | I27: 328 | J27: 331 | K27: 272 | L27: 411 | M27: 327 | N27: 491 | O27: 128 | P27: 763 | Q27: 993 | R27: 1390
A28: Servicios sociales | B28: 311 | C28: 367 | D28: 457 | E28: 498 | F28: 508 | G28: 724 | H28: 573 | I28: 626 | J28: 594 | K28: 87 | L28: 146 | M28: 82 | N28: 0 | O28: 19 | P28: 39 | Q28: 0 | R28: 15
A29: Veterinaria | B29: 295 | C29: 320 | D29: 317 | E29: 381 | F29: 411 | G29: 508 | H29: 484 | I29: 525 | J29: 519 | K29: 533 | L29: 508 | M29: 578 | N29: 555 | O29: 535 | P29: 611 | Q29: 654 | R29: 673
A30: Otros * | B30: n/c | C30: n/c | D30: n/c | E30: n/c | F30: n/c | G30: n/c | H30: n/c | I30: n/c | J30: n/c | K30: n/c | L30: 104 | M30: 327 | N30: 32 | O30: 0 | P30: 1707 | Q30: 942 | R30: 1289
A31: Fuente:Elaboración propia en base información de las oficinas productoras de las instituciones. Nota:Las áreas corresponden a la clasificación CINE 1997 de UNESCO.
A32: * En Otros se incluyen los cursos CIO (Ciclo Inicial Optativo) y estudios iniciales en Ciencias Sociales, dictados por la UDELAR

Sheet Cuadro 2.9.2
A1: Ministerio de Educación y Cultura Dirección de Educación
A3: Cuadro 2.9.2 EGRESOS DE INSTITUCIONES UNIVERSITARIAS PÚBLICAS Y PRIVADAS DE GRADO Y POSTGRADO, POR AÑO LECTIVO SEGÚN ÁREA DE CONOCIMIENTO. AÑOS 2000 A 2016.
A4: INSTITUCIONES UNIVERSITARIAS | B4: AÑO LECTIVO
B5: 2000 | C5: 2001 | D5: 2002 | E5: 2003 | F5: 2004 | G5: 2005 | H5: 2006 | I5: 2007 | J5: 2008 | K5: 2009 | L5: 2010 | M5: 2011 | N5: 2012 | O5: 2013 | P5: 2014 | Q5: 2015 | R5: 2016
A6: TOTAL | B6: =SUM(B7:B28) -> 4646 | C6: 4402 | D6: 5902 | E6: 5697 | F6: 6177 | G6: 5514 | H6: 6151 | I6: 6381 | J6: 7018 | K6: 7185 | L6: 7223 | M6: =SUM(M7:M28) -> 7808 | N6: 9101 | O6: =SUM(O7:O28) -> 9766 | P6: =SUM(P7:P28) -> 8882 | Q6: =SUM(Q7:Q28) -> 10129 | R6: =SUM(R7:R28) -> 10817
A7: Agricultura, silvicultura y pesca | B7: 226 | C7: 145 | D7: 164 | E7: 161 | F7: 213 | G7: 123 | H7: 126 | I7: 111 | J7: 164 | K7: 301 | L7: 279 | M7: 294 | N7: 216 | O7: 219 | P7: 239 | Q7: 251 | R7: 214
A8: Arquitectura y construcción | B8: 233 | C8: 136 | D8: 294 | E8: 208 | F8: 308 | G8: 437 | H8: 324 | I8: 303 | J8: 280 | K8: 275 | L8: 341 | M8: 349 | N8: 362 | O8: 401 | P8: 356 | Q8: 424 | R8: 434
A9: Artes | B9: 40 | C9: 33 | D9: 39 | E9: 60 | F9: 46 | G9: 42 | H9: 104 | I9: 120 | J9: 181 | K9: 184 | L9: 211 | M9: 162 | N9: 184 | O9: 177 | P9: 126 | Q9: 123 | R9: 124
A10: Ciencias de la vida | B10: 97 | C10: 62 | D10: 72 | E10: 73 | F10: 107 | G10: 108 | H10: 141 | I10: 137 | J10: 183 | K10: 169 | L10: 166 | M10: 240 | N10: 242 | O10: 177 | P10: 221 | Q10: 234 | R10: 177
A11: Ciencias físicas | B11: 110 | C11: 94 | D11: 153 | E11: 118 | F11: 162 | G11: 140 | H11: 105 | I11: 125 | J11: 143 | K11: 154 | L11: 158 | M11: 158 | N11: 141 | O11: 145 | P11: 136 | Q11: 160 | R11: 183
A12: Ciencias sociales y del comportamiento | B12: 381 | C12: 534 | D12: 739 | E12: 671 | F12: 655 | G12: 634 | H12: 689 | I12: 641 | J12: 923 | K12: 720 | L12: 746 | M12: 930 | N12: 1262 | O12: 1043 | P12: 1094 | Q12: 1186 | R12: 1268
A13: Derecho | B13: 500 | C13: 613 | D13: 686 | E13: 676 | F13: 816 | G13: 781 | H13: 838 | I13: 777 | J13: 886 | K13: 806 | L13: 786 | M13: 910 | N13: 1013 | O13: 1041 | P13: 910 | Q13: 1051 | R13: 1087
A14: Enseñanza comercial y administración | B14: 914 | C14: 865 | D14: 1328 | E14: 1509 | F14: 1205 | G14: 918 | H14: 1032 | I14: 1071 | J14: 1135 | K14: 1289 | L14: 1280 | M14: 1239 | N14: 1999 | O14: 1869 | P14: 1587 | Q14: 2235 | R14: 2212
A15: Formación de personal docente y ciencias de la educación | B15: 66 | C15: 61 | D15: 81 | E15: 120 | F15: 113 | G15: 136 | H15: 291 | I15: 372 | J15: 399 | K15: 275 | L15: 235 | M15: 246 | N15: 241 | O15: 397 | P15: 182 | Q15: 328 | R15: 291
A16: Humanidades | B16: 80 | C16: 33 | D16: 74 | E16: 33 | F16: 73 | G16: 64 | H16: 76 | I16: 75 | J16: 92 | K16: 90 | L16: 66 | M16: 75 | N16: 68 | O16: 115 | P16: 138 | Q16: 131 | R16: 130
A17: Industria y producción | B17: 0 | C17: 12 | D17: 8 | E17: 16 | F17: 10 | G17: 26 | H17: 16 | I17: 31 | J17: 33 | K17: 24 | L17: 27 | M17: 25 | N17: 45 | O17: 117 | P17: 71 | Q17: 119 | R17: 49
A18: Informática | B18: 285 | C18: 234 | D18: 257 | E18: 194 | F18: 237 | G18: 277 | H18: 235 | I18: 215 | J18: 242 | K18: 260 | L18: 250 | M18: 277 | N18: 288 | O18: 381 | P18: 354 | Q18: 403 | R18: 414
A19: Ingeniería y profesiones afines | B19: 133 | C19: 124 | D19: 187 | E19: 201 | F19: 224 | G19: 214 | H19: 200 | I19: 204 | J19: 194 | K19: 257 | L19: 222 | M19: 232 | N19: 275 | O19: 345 | P19: 348 | Q19: 368 | R19: 394
A20: Matemáticas y estadística | B20: 9 | C20: 4 | D20: 6 | E20: 9 | F20: 10 | G20: 12 | H20: 5 | I20: 13 | J20: 27 | K20: 19 | L20: 14 | M20: 11 | N20: 21 | O20: 19 | P20: 11 | Q20: 14 | R20: 14
A21: Medicina | B21: 1323 | C21: 1311 | D21: 1476 | E21: 1276 | F21: 1578 | G21: 1243 | H21: 1537 | I21: 1726 | J21: 1532 | K21: 1874 | L21: 1962 | M21: 1953 | N21: 2027 | O21: 2462 | P21: 2147 | Q21: 2060 | R21: 2433
A22: Periodismo e información | B22: 120 | C22: 78 | D22: 208 | E22: 249 | F22: 289 | G22: 174 | H22: 191 | I22: 213 | J22: 234 | K22: 242 | L22: 201 | M22: 241 | N22: 280 | O22: 260 | P22: 325 | Q22: 378 | R22: 350
A23: Protección del medio ambiente | B23: s/d | C23: s/d | D23: s/d | E23: s/d | F23: s/d | G23: s/d | H23: s/d | I23: s/d | J23: s/d | K23: s/d | L23: s/d | M23: 5 | N23: 12 | O23: 10 | P23: 10 | Q23: 9 | R23: 8
A24: Servicios de Seguridad | B24: n/c | C24: n/c | D24: n/c | E24: n/c | F24: n/c | G24: n/c | H24: n/c | I24: n/c | J24: n/c | K24: n/c | L24: n/c | M24: s/d | N24: 41 | O24: 81 | P24: 111 | Q24: 114 | R24: 80
A25: Serviciosde transporte | B25: n/c | C25: n/c | D25: n/c | E25: n/c | F25: n/c | G25: n/c | H25: n/c | I25: n/c | J25: n/c | K25: n/c | L25: n/c | M25: n/c | N25: n/c | O25: n/c | P25: n/c | Q25: n/c | R25: 240
A26: Servicios personales | B26: 0 | C26: 0 | D26: 0 | E26: 16 | F26: 7 | G26: 19 | H26: 96 | I26: 145 | J26: 194 | K26: 67 | L26: 51 | M26: 181 | N26: 125 | O26: 210 | P26: 255 | Q26: 247 | R26: 361
A27: Servicios sociales | B27: 17 | C27: 14 | D27: 23 | E27: 18 | F27: 33 | G27: 48 | H27: 51 | I27: 47 | J27: 106 | K27: 88 | L27: 123 | M27: 148 | N27: 139 | O27: 151 | P27: 154 | Q27: 148 | R27: 176
A28: Veterinaria | B28: 112 | C28: 49 | D28: 107 | E28: 89 | F28: 91 | G28: 118 | H28: 94 | I28: 55 | J28: 70 | K28: 91 | L28: 105 | M28: 132 | N28: 120 | O28: 146 | P28: 107 | Q28: 146 | R28: 178
A29: Fuente: Elaboración propia en base a información brindada por las oficinas productoras de las instituciones. Nota: Las áreas corresponden a la clasificación CINE 1997 de UNESCO.

Sheet Cuadro 2.9.3
A1: Ministerio de Educación y Cultura Dirección de Educación
A3: Cuadro 2.9.3 INGRESOS A INSTITUCIONES UNIVERSITARIAS PÚBLICAS Y PRIVADAS DE GRADO POSTGRADO, POR NIVEL ACADÉMICO SEGÚN ÁREA DE CONOCIMIENTO. AÑO 2016.
A4: INSTITUCIONES UNIVERSITARIAS | B4: NIVEL ACADÉMICO
B5: TOTAL | D5: Carrera corta o tecnicatura | F5: Carrera de grado o Licenciatura | H5: Posgrado de especialización | J5: Maestría | L5: Doctorado
D6: Masculino | E6: Femenino | F6: Masculino | G6: Femenino | H6: Masculino | I6: Femenino | J6: Masculino | K6: Femenino | L6: Masculino | M6: Femenino
A7: TOTAL * | B7: =SUM(D7:M7) -> 35107 | C7: =SUM(C8:C29) -> 100 | D7: =SUM(D8:D29) -> 1761 | E7: =SUM(E8:E29) -> 3115 | F7: 10346 | G7: 15368 | H7: 852 | I7: 1457 | J7: 895 | K7: 1112 | L7: 87 | M7: 114
A8: Agricultura, silvicultura y pesca | B8: 695 | C8: =(B8*100)/$B$7 -> 1.979662176 | D8: 7 | E8: 6 | F8: 393 | G8: 216 | H8: 4 | I8: 4 | J8: 27 | K8: 32 | L8: 2 | M8: 4
A9: Arquitectura y construcción | B9: 935 | C9: 2.663286524 | D9: 17 | E9: 13 | F9: 310 | G9: 488 | H9: 7 | I9: 19 | J9: 25 | K9: 29 | L9: 13 | M9: 14
A10: Artes | B10: 1227 | C10: 3.495029481 | D10: 16 | E10: 47 | F10: 426 | G10: 738 | H10: 0 | I10: 0 | J10: 0 | K10: 0 | L10: 0 | M10: 0
A11: Ciencias de la vida | B11: 662 | C11: 1.885663828 | D11: 0 | E11: 0 | F11: 183 | G11: 277 | H11: 0 | I11: 0 | J11: 37 | K11: 99 | L11: 27 | M11: 39
A12: Ciencias físicas | B12: 680 | C12: 1.936935654 | D12: 40 | E12: 61 | F12: 233 | G12: 269 | H12: 0 | I12: 0 | J12: 21 | K12: 20 | L12: 14 | M12: 22
A13: Ciencias sociales y del comportamiento | B13: 4235 | C13: 12.06312131 | D13: 11 | E13: 30 | F13: 1108 | G13: 2332 | H13: 102 | I13: 298 | J13: 148 | K13: 166 | L13: 20 | M13: 20
A14: Derecho | B14: 3078 | C14: 8.767482268 | D14: 0 | E14: 0 | F14: 955 | G14: 1949 | H14: 10 | I14: 9 | J14: 62 | K14: 93 | L14: 0 | M14: 0
A15: Enseñanza comercial y administración | B15: 7401 | C15: 21.08126584 | D15: 884 | E15: 1989 | F15: 1798 | G15: 2044 | H15: 101 | I15: 187 | J15: 211 | K15: 187 | L15: 0 | M15: 0
A16: Formación de personal docente y ciencias de la educación | B16: 870 | C16: 2.478138263 | D16: 6 | E16: 4 | F16: 96 | G16: 273 | H16: 52 | I16: 182 | J16: 79 | K16: 178 | L16: 0 | M16: 0
A17: Humanidades | B17: 1247 | C17: 3.551998177 | D17: 46 | E17: 291 | F17: 300 | G17: 374 | H17: 2 | I17: 20 | J17: 106 | K17: 108 | L17: 0 | M17: 0
A18: Industria y producción | B18: 431 | C18: 1.227675392 | D18: 5 | E18: 4 | F18: 97 | G18: 325 | H18: 0 | I18: 0 | J18: 0 | K18: 0 | L18: 0 | M18: 0
A19: Informática | B19: 1404 | C19: 3.999202438 | D19: 229 | E19: 61 | F19: 875 | G19: 180 | H19: 15 | I19: 9 | J19: 23 | K19: 9 | L19: 3 | M19: 0
A20: Ingeniería y profesiones afines | B20: 1645 | C20: 4.685675221 | D20: 146 | E20: 16 | F20: 941 | G20: 438 | H20: 28 | I20: 8 | J20: 40 | K20: 21 | L20: 3 | M20: 4
A21: Matemáticas y estadística | B21: 219 | C21: 0.6238072179 | D21: 0 | E21: 0 | F21: 91 | G21: 98 | H21: 0 | I21: 0 | J21: 21 | K21: 7 | L21: 1 | M21: 1
A22: Medicina | B22: 6629 | C22: 18.88227419 | D22: 100 | E22: 470 | F22: 1266 | G22: 3807 | H22: 212 | I22: 651 | J22: 44 | K22: 71 | L22: 2 | M22: 6
A23: Periodismo e información | B23: 1092 | C23: 3.110490785 | D23: 10 | E23: 28 | F23: 404 | G23: 583 | H23: 3 | I23: 16 | J23: 8 | K23: 40 | L23: 0 | M23: 0
A24: Protección del medio ambiente | B24: 170 | C24: 0.4842339135 | D24: 10 | E24: 12 | F24: 52 | G24: 68 | H24: 4 | I24: 16 | J24: 3 | K24: 5 | L24: 0 | M24: 0
A25: Servicios de seguridad | B25: 169 | C25: 0.4813854787 | D25: 0 | E25: 0 | F25: 0 | G25: 0 | H25: 99 | I25: 11 | J25: 34 | K25: 25 | L25: 0 | M25: 0
A26: Servicios de transporte | B26: 240 | C26: 0.6836243484 | D26: 0 | E26: 0 | F26: 0 | G26: 0 | H26: 213 | I26: 27 | J26: 0 | K26: 0 | L26: 0 | M26: 0
A27: Servicios personales | B27: 1390 | C27: 3.959324351 | D27: 234 | E27: 83 | F27: 590 | G27: 483 | H27: 0 | I27: 0 | J27: 0 | K27: 0 | L27: 0 | M27: 0
A28: Servicios sociales | B28: 15 | C28: 0.04272652178 | D28: 0 | E28: 0 | F28: 0 | G28: 0 | H28: 0 | I28: 0 | J28: 2 | K28: 13 | L28: 0 | M28: 0
A29: Veterinaria | B29: 673 | C29: 1.91699661 | D29: 0 | E29: 0 | F29: 228 | G29: 426 | H29: 0 | I29: 0 | J29: 4 | K29: 9 | L29: 2 | M29: 4
A30: Fuente: Elaboración propia en base información de las oficinas productoras de las instituciones
A31: Nota: Las áreas corresponden a la clasificación CINE 1997 de UNESCO.
A32: * En el total de Ingreso no se tiene en cuenta a 1.289 estudiantes que ingresaron a los CIOs (Ciclo Inicial Optativos)

Sheet Cuadro 2.9.4
A1: Ministerio de Educación y Cultura Dirección de Educación
A3: Cuadro 2.9.4 EGRESOS DE INSTITUCIONES UNIVERSITARIAS PÚBLICAS Y PRIVADAS DE GRADO POSTGRADO, POR NIVEL ACADÉMICO SEGÚN ÁREA DE CONOCIMIENTO. AÑO 2016.
A5: INSTITUCIONES UNIVERSITARIAS | B5: TOTAL | C5: % | D5: NIVEL ACADÉMICO
D6: Carrera corta o tecnicatura | F6: Carrera de grado, licenciatura | H6: Postgrado de especialización | J6: Maestría | L6: Doctorado
D7: Masculino | E7: Femenino | F7: Masculino | G7: Femenino | H7: Masculino | I7: Femenino | J7: Masculino | K7: Femenino | L7: Masculino | M7: Femenino
A8: TOTAL | B8: =SUM(D8:M8) -> 10817 | C8: =SUM(C9:C30) -> 100 | D8: =SUM(D9:D30) -> 201 | E8: =SUM(E9:E30) -> 393 | F8: 2916 | G8: 5193 | H8: 597 | I8: 817 | J8: 289 | K8: 348 | L8: 35 | M8: 28
A9: Agricultura, silvicultura y pesca | B9: 214 | C9: =(B9*100)/$B$8 -> 1.978367385 | D9: 0 | E9: 0 | F9: 141 | G9: 45 | H9: 0 | I9: 2 | J9: 11 | K9: 13 | L9: 1 | M9: 1
A10: Arquitectura y construcción | B10: 434 | C10: 4.012203014 | D10: 1 | E10: 0 | F10: 152 | G10: 247 | H10: 11 | I10: 18 | J10: 2 | K10: 3 | L10: 0 | M10: 0
A11: Artes | B11: 124 | C11: 1.146343718 | D11: 0 | E11: 0 | F11: 42 | G11: 82 | H11: 0 | I11: 0 | J11: 0 | K11: 0 | L11: 0 | M11: 0
A12: Ciencias de la vida | B12: 177 | C12: 1.636313211 | D12: 4 | E12: 3 | F12: 32 | G12: 61 | H12: 0 | I12: 0 | J12: 24 | K12: 31 | L12: 11 | M12: 11
A13: Ciencias físicas | B13: 183 | C13: 1.691781455 | D13: 12 | E13: 37 | F13: 28 | G13: 78 | H13: 0 | I13: 0 | J13: 5 | K13: 8 | L13: 7 | M13: 8
A14: Ciencias sociales y del comportamiento | B14: 1268 | C14: 11.72228899 | D14: 1 | E14: 3 | F14: 282 | G14: 775 | H14: 21 | I14: 83 | J14: 32 | K14: 66 | L14: 3 | M14: 2
A15: Derecho | B15: 1087 | C15: 10.04899695 | D15: 2 | E15: 7 | F15: 275 | G15: 756 | H15: 3 | I15: 13 | J15: 12 | K15: 19 | L15: 0 | M15: 0
A16: Enseñanza comercial y administración | B16: 2212 | C16: 20.44929278 | D16: 37 | E16: 102 | F16: 669 | G16: 956 | H16: 84 | I16: 161 | J16: 115 | K16: 88 | L16: 0 | M16: 0
A17: Formación de personal docente y ciencias de la educación | B17: 291 | C17: 2.690209855 | D17: 3 | E17: 4 | F17: 18 | G17: 93 | H17: 19 | I17: 99 | J17: 16 | K17: 37 | L17: 1 | M17: 1
A18: Humanidades | B18: 130 | C18: 1.201811963 | D18: 6 | E18: 23 | F18: 25 | G18: 49 | H18: 3 | I18: 0 | J18: 10 | K18: 14 | L18: 0 | M18: 0
A19: Industria y producción | B19: 49 | C19: 0.4529906628 | D19: 0 | E19: 0 | F19: 9 | G19: 40 | H19: 0 | I19: 0 | J19: 0 | K19: 0 | L19: 0 | M19: 0
A20: Informática | B20: 414 | C20: 3.827308866 | D20: 36 | E20: 6 | F20: 268 | G20: 67 | H20: 9 | I20: 5 | J20: 16 | K20: 4 | L20: 3 | M20: 0
A21: Ingeniería y profesiones afines | B21: 394 | C21: 3.642414718 | D21: 27 | E21: 1 | F21: 226 | G21: 98 | H21: 18 | I21: 3 | J21: 8 | K21: 8 | L21: 3 | M21: 2
A22: Matemáticas y estadística | B22: 14 | C22: 0.1294259037 | D22: 0 | E22: 0 | F22: 8 | G22: 2 | H22: 0 | I22: 0 | J22: 1 | K22: 1 | L22: 2 | M22: 0
A23: Medicina | B23: 2433 | C23: 22.49237312 | D23: 19 | E23: 179 | F23: 366 | G23: 1268 | H23: 158 | I23: 383 | J23: 21 | K23: 33 | L23: 3 | M23: 3
A24: Periodismo e información | B24: 350 | C24: 3.235647592 | D24: 5 | E24: 10 | F24: 99 | G24: 227 | H24: 1 | I24: 3 | J24: 0 | K24: 5 | L24: 0 | M24: 0
A25: Protección del medio ambiente | B25: 8 | C25: 0.07395765924 | D25: 0 | E25: 1 | F25: 2 | G25: 0 | H25: 0 | I25: 0 | J25: 2 | K25: 3 | L25: 0 | M25: 0
A26: Servicios de seguridad | B26: 80 | C26: 0.7395765924 | D26: 0 | E26: 0 | F26: 0 | G26: 0 | H26: 57 | I26: 6 | J26: 10 | K26: 7 | L26: 0 | M26: 0
A27: Servicios de transporte | B27: 240 | C27: 2.218729777 | D27: 0 | E27: 0 | F27: 0 | G27: 0 | H27: 213 | I27: 27 | J27: 0 | K27: 0 | L27: 0 | M27: 0
A28: Servicios personales | B28: 361 | C28: 3.337339373 | D28: 48 | E28: 17 | F28: 184 | G28: 112 | H28: 0 | I28: 0 | J28: 0 | K28: 0 | L28: 0 | M28: 0
A29: Servicios sociales | B29: 176 | C29: 1.627068503 | D29: 0 | E29: 0 | F29: 16 | G29: 146 | H29: 0 | I29: 14 | J29: 0 | K29: 0 | L29: 0 | M29: 0
A30: Veterinaria | B30: 178 | C30: 1.645557918 | D30: 0 | E30: 0 | F30: 74 | G30: 91 | H30: 0 | I30: 0 | J30: 4 | K30: 8 | L30: 1 | M30: 0
A31: Fuente: Elaboración propia en base información de las oficinas productoras de las instituciones Nota: Las áreas corresponden a la clasificación CINE 1997 de UNESCO.

Sheet Cuadro 2.9.5
A1: Ministerio de Educación y Cultura Dirección de Educación
A3: Cuadro 2.9.5 INGRESOS, MATRÍCULA Y EGRESOS DE OFERTAS DE GRADO SEGÚN FORMA DE ADMINISTRACIÓN EN CANTIDADES ABSOLUTAS Y PORCENTAJES. AÑO 2016.
A4: FORMA DE ADMINISTRACIÓN | B4: INGRESOS | C4: MATRÍCULA | D4: EGRESOS
A5: TOTAL VALORES ABSOLUTOS | B5: =SUM(B6:B9) -> 28725 | C5: =SUM(C6:C9) -> 153652 | D5: =SUM(D6:D9) -> 8703
A6: Universidad de la República * | B6: 24876 | C6: 130941 | D6: 6630
A7: UTEC | B7: 224 | C7: 358 | D7: 0
A8: Instituciones Universitarias Privadas | B8: 3625 | C8: 22353 | D8: 2073
A9: Área seguridad y defensa (oferta pública universitaria) ** | B9: - | C9: - | D9: -
A10: TOTAL PORCENTAJES | B10: 1 | C10: 1 | D10: 1
A11: Universidad de la República | B11: =B6/B5*100% -> 0.8660052219 | C11: =C6/C5*100% -> 0.8521919663 | D11: =D6/D5*100% -> 0.7618062737
A12: UTEC | B12: =B7/B5*100% -> 0.007798085292 | C12: =C7/C5*100% -> 0.002329940385 | D12: =D7/D5*100% -> 0
A13: Instituciones Universitarias Privadas | B13: =B8/B5*100% -> 0.1261966928 | C13: =C8/C5*100% -> 0.1454780934 | D13: =D8/D5*100% -> 0.2381937263
A14: Área seguridad y defensa (oferta pública universitaria) | B14: - | C14: - | D14: -
A15: Fuentes: Elaboración propia en base a información brindada por las oficinas productoras de las instituciones.
A16: La matrícula de UdelaR corresponde al dato del VII Censo de estudiantes de grado 2012.
A17: La Proyección de Matrícula de Estudiantes de Grado de la UdelaR publicada por la División General de Planeamiento para el año 2015, estima 142.211 estudiantes.
A18: Los datos de egreso de UdelaR en el 2016 son preliminares
A19: ** En 2016 la Licenciatura en Seguridad Pública de la Escuela Nacional de Policía no fue dictada.

Sheet Cuadro 2.9.6
A1: Ministerio de Educación y Cultura Dirección de Educación
A3: Cuadro 2.9.6 PORCENTAJE DE EGRESADOS DE GRADO POR NIVEL Y SEXO SEGÚN TRAMOS DE EDAD. AÑO 2016.
A4: Tramos de edad | B4: Carrera corta o tecnicatura | E4: Carrera de Grado o Licenciatura
B5: TOTAL | C5: Masculino | D5: Femenino | E5: TOTAL | F5: Masculino | G5: Femenino
A6: Total | B6: =C6+D6 -> 100 | C6: =SUM(C7:C12) -> 33.8 | D6: =SUM(D7:D12) -> 66.2 | E6: =F6+G6 -> 99.9 | F6: =SUM(F7:F12) -> 35.9 | G6: =SUM(G7:G12) -> 64
A7: Hasta 24 años | B7: =C7+D7 -> 31.5 | C7: 10.1 | D7: 21.4 | E7: =F7+G7 -> 27 | F7: 9.3 | G7: 17.7
A8: 25 a 29 años | B8: 33.1 | C8: 10.4 | D8: 22.7 | E8: 44.6 | F8: 16.5 | G8: 28.1
A9: 30 a 34 años | B9: 16 | C9: 4.4 | D9: 11.6 | E9: 14.5 | F9: 5.1 | G9: 9.4
A10: 35 a 39 años | B10: 6.6 | C10: 3.2 | D10: 3.4 | E10: 5.9 | F10: 2.2 | G10: 3.7
A11: más de 39 años | B11: 8.3 | C11: 3.2 | D11: 5.1 | E11: 5.3 | F11: 1.8 | G11: 3.5
A12: S/D | B12: 4.5 | C12: 2.5 | D12: 2 | E12: 2.6 | F12: 1 | G12: 1.6
A13: Fuente: Elaboración propia en base a información proporcionada por las oficinas productoras de estadísticas de cada una de las instituciones.

Sheet Cuadro 2.9.7
A1: Ministerio de Educación y Cultura Dirección de Educación
A3: Cuadro 2.9.7 PORCENTAJE DE EGRESADOS DE POSGRADO POR NIVEL Y SEXO SEGÚN TRAMOS DE EDAD. AÑO 2016.
A4: Tramos de edad | B4: Postgrado o especialización | E4: Maestría | H4: Doctorado
B5: TOTAL | C5: Masculino | D5: Femenino | E5: TOTAL | F5: Masculino | G5: Femenino | H5: TOTAL | I5: Masculino | J5: Femenino
A6: Total | B6: =C6+D6 -> 100 | C6: =SUM(C7:C11) -> 32.65306122 | D6: =SUM(D7:D11) -> 67.34693878 | E6: =F6+G6 -> 100 | F6: =SUM(F7:F11) -> 45.3689168 | G6: =SUM(G7:G11) -> 54.6310832 | H6: =I6+J6 -> 100 | I6: =SUM(I7:I11) -> 55.55555556 | J6: =SUM(J7:J11) -> 44.44444444
A7: Hasta 29 años | B7: 15.56122449 | C7: 4.846938776 | D7: 10.71428571 | E7: 17.26844584 | F7: 7.064364207 | G7: 10.20408163 | H7: 4.761904762 | I7: 3.174603175 | J7: 1.587301587
A8: 30 a 34 años | B8: 37.32993197 | C8: 11.98979592 | D8: 25.34013605 | E8: 29.82731554 | F8: 14.44270016 | G8: 15.38461538 | H8: 34.92063492 | I8: 19.04761905 | J8: 15.87301587
A9: 35 a 39 años | B9: 21.08843537 | C9: 7.993197279 | D9: 13.0952381 | E9: 19.62323391 | F9: 10.51805338 | G9: 9.105180534 | H9: 26.98412698 | I9: 12.6984127 | J9: 14.28571429
A10: más de 39 años | B10: 23.63945578 | C10: 7.227891156 | D10: 16.41156463 | E10: 29.82731554 | F10: 12.08791209 | G10: 17.73940345 | H10: 22.22222222 | I10: 14.28571429 | J10: 7.936507937
A11: S/D | B11: 2.380952381 | C11: 0.5952380952 | D11: 1.785714286 | E11: 3.453689168 | F11: 1.25588697 | G11: 2.197802198 | H11: 11.11111111 | I11: 6.349206349 | J11: 4.761904762
A12: Fuente: Elaboración propia en base a información proporcionada por las oficinas productoras de estadísticas de cada una de las instituciones.

Sheet Gráfico 2.9.1
A1: Ministerio de Educación y Cultura Dirección de Educación
A5: Gráfico 2.9.1
A36: Fuente: Elaboración propia en base a información proporcionada por las oficinas productoras de estadísticas de cada una de las instituciones.

Sheet Gráfico 2.9.2
A1: Ministerio de Educación y Cultura Dirección de Educación
A5: Gráfico 2.9.2
A36: Fuente: Elaboración propia en base a información proporcionada por las oficinas productoras de estadísticas de cada una de las instituciones.

Sheet Gráfico 2.9.3
A1: Ministerio de Educación y Cultura Dirección de Educación
A5: Gráfico 2.9.3
A23: Fuente: Elaboración propia en base a información proporcionada por UdelaR.
A24: Nota: (*) “Según Res. N°15 del CDC de fecha 23/10/12, se entiende por Generación de Ingreso a Servicio a todos los estudiantes que ingresan por primera vez al Servicio, en un año dado, a alguna carrera terciaria y/o de grado. Se considera cada carrera compartida y C.I.O. como un servicio aparte.” Los datos de egresos de UdelaR son preliminares.

Sheet Gráfico 2.9.4
A1: Ministerio de Educación y Cultura Dirección de Educación
A5: Gráfico 2.9.4
A24: Fuente: Elaboración propia en base a información proporcionada por las oficinas productoras de estadísticas de cada una de las instituciones.

Sheet Gráfico 2.9.5
A1: Ministerio de Educación y Cultura Dirección de Educación
A5: Gráfico 2.9.5
A23: Fuente: Elaboración propia en base a información proporcionada las oficinas productoras de estadísticas educativas de los Institutos Universitarios y de las Universidades Privadas.

Sheet Gráfico 2.9.6
A1: Ministerio de Educación y Cultura Dirección de Educación
A5: Gráfico 2.9.6
A23: Fuente: Elaboración propia en base a información proporcionada por la UdelaR y las oficinas productoras de estadísticas educativas de los Institutos Universitarios y de las Universidades Privadas
A25: Notas: Los datos de egresos de UdelaR son preliminares.

Sheet Gráfico 2.9.7
A1: Ministerio de Educación y Cultura Dirección de Educación
A5: Gráfico 2.9.7
A23: Fuente: Elaboración propia en base a información proporcionada por las Universidades e Institutos Universitarios
A25: Notas: Los datos de egresos de UdelaR son preliminares.

Sheet Gráfico 2.9.8
A1: Ministerio de Educación y Cultura Dirección de Educación
A5: Gráfico 2.9.8
A26: Fuente: Elaboración propia en base a información proporcionada por las Universidaes e Institutos Universitarios
A28: Notas: Los datos de egresos de UdelaR son preliminares.

Sheet Gráfico 2.9.9
A1: Ministerio de Educación y Cultura Dirección de Educación
A5: Gráfico 2.9.9
A25: Fuente: Elaboración propia en base a información proporcionada por las Universidades e Institutos Universitarios
A27: Notas: Los datos de egresos de UdelaR son preliminares.

Sheet Gráfico 2.9.10
A1: Ministerio de Educación y Cultura Dirección de Educación
A5: Gráfico 2.9.10
A25: Fuente: Elaboración propia en base a información reportada por las oficinas productoras de estadísticas de las instituciones

Sheet Gráfico 2.9.11
A1: Ministerio de Educación y Cultura Dirección de Educación
A5: Gráfico 2.9.11
A24: Fuente: Elaboración propia en base a información reportada por las oficinas productoras de estadísticas de las instituciones.

Sheet Gráfico 2.9.12
A1: Ministerio de Educación y Cultura Dirección de Educación
A5: Gráfico 2.9.12
A24: Fuente: Elaboración propia en base a información reportada por las oficinas productoras de estadísticas de las instituciones.

Sheet Gráfico 2.9.13
A1: Ministerio de Educación y Cultura Dirección de Educación
A5: Gráfico 2.9.13
A27: Fuente: Elaboración propia en base a información reportada por las oficinas productoras de estadísticas de las instituciones.

Sheet Gráfico 2.9.14
A1: Ministerio de Educación y Cultura Dirección de Educación
A5: Gráfico 2.9.14
A26: Fuente: Elaboración propia en base a información reportada por las oficinas productoras de estadísticas de las instituciones.

Sheet 10. EDUCACIÓN JÓVENES Y ADULTOS
C2: EDUCACIÓN DE JÓVENES Y ADULTOS
A7: Cuadro 2.10.1 | B7: TOTAL DE INSTITUCIONES Y CURSOS DEL RELEVAMIENTO TÉCNICO-PROFESIONAL POR FORMA DE ADMINISTRACIÓN, GRANDES ÁREAS SEGÚN ÁREA DE CONOCIMIENTO. AÑO 2015
A8: Cuadro 2.10.2 | B8: ALUMNOS MATRICULADOS EN CUROS DEL RELEVAMIENTO TÉCNICO PROFESIONAL POR ÁREAS DE CONOCIMIENTO, SEGÚN FORMAS DE ADMINISTRACIÓN Y GRANDES ÁREAS. 2015
A9: Cuadro 2.10.3 | B9: CANTIDAD DE CURSOS POR TRAMOS DE DURACIÓN EN HORAS SEGÚN ÁREA DE CONOCIMIENTO. AÑO 2015.
A10: Cuadro 2.10.4 | B10: ALUMNOS MATRICULADOS EN CURSOS DE EDUCACIÓN TÉCNICA PARA JÓVENES Y ADULTOS POR GRANDES ÁREAS Y SEXO SEGÚN TIPO DE CURSO. AÑO 2015
A11: Cuadro 2.10.5 | B11: ALUMNOS INGRESADOS Y MATRICULADOS EN CECAP POR SEXO SEGÚN GRANDES ÁREAS. AÑO 2015.
A12: Cuadro 2.10.6 | B12: ALUMNOS MATRICULADOS DEL COCAP SEGÚN TIPO DE CURSO Y ÁREA DE FORMACIÓN. AÑO 2015.
A13: Cuadro 2.10.7 | B13: ALUMNOS MATRICULADOS DEL COCAP SEGÚN SEGÚN SEXO Y ÁREA DE CONOCIMIENTO (PORCENTAJES) AÑO 2015.
A14: Cuadro 2.10.8 | B14: FUNCIONARIOS PARTICIPANTES EN LOS CURSOS DE LA ENAP DR. AQUILES LANZA, CANTIDAD DE CURSOS Y HORAS TIPO DE CURSO. AÑO 2014.
A15: Cuadro 2.10.9 | B15: ALUMNOS INGRESADOS Y MATRICULADOS EN CARRERAS NO TERCIARIAS EN UNIVERSIDADES E INSTITUTOS UNIVERSITARIOS. AÑO 2015.
A18: Gráfico 2.10.1 | B18: EVOLUCIÓN DE LA MATRÍCULA DE CECAP SEGÚN AÑO LECTIVO (2000 - 2015)

Sheet Cuadro 2.10.1
A1: Ministerio de Educación y Cultura
A2: Dirección de Educación
A5: Cuadro 2.10.1
A6: TOTAL DE INSTITUCIONES Y CURSOS DEL RELEVAMIENTO TÉCNICO-PROFESIONAL POR FORMA DE ADMINISTRACIÓN, GRANDES ÁREAS SEGÚN ÁREA DE CONOCIMIENTO. AÑO 2016
A7: AREA DE CONOCIMIENTO | B7: TOTAL | C7: FORMA DE ADMINISTRACIÓN | E7: ÁREA GEOGRÁFICA
C8: PRIVADO | D8: PÚBLICA | E8: MONTEVIDEO | F8: RESTO DEL PAÍS
A9: TOTAL INSTITUCIONES | B9: 231 | C9: 221 | D9: 10 | E9: 139 | F9: 92
A11: TOTAL CURSOS | B11: 2417 | C11: 2256 | D11: 161 | E11: 1578 | F11: 839
A12: ADMINISTRACIÓN -COMERCIALIZACIÓN | B12: 336 | C12: 336 | D12: 0 | E12: 268 | F12: 68
A13: AERONÁUTICA | B13: 34 | C13: 11 | D13: 23 | E13: 14 | F13: 20
A14: AGRARIA | B14: 19 | C14: 19 | D14: 0 | E14: 9 | F14: 10
A15: ARTES-ARTESANÍAS | B15: 147 | C15: 147 | D15: 0 | E15: 104 | F15: 43
A16: COMUNICACIONES | B16: 28 | C16: 28 | D16: 0 | E16: 25 | F16: 3
A17: CONSTRUCCIÓN -ARQUITECTURA | B17: 36 | C17: 36 | D17: 0 | E17: 34 | F17: 2
A18: DEPORTES Y AFINES | B18: 48 | C18: 48 | D18: 0 | E18: 38 | F18: 10
A19: DISEÑOS | B19: 34 | C19: 34 | D19: 0 | E19: 28 | F19: 6
A20: ELECTROTECNIA Y ELECTRÓNICA | B20: 16 | C20: 16 | D20: 0 | E20: 13 | F20: 3
A21: GASTRONOMÍA | B21: 94 | C21: 94 | D21: 0 | E21: 83 | F21: 11
A22: GRÁFICOS | B22: 3 | C22: 3 | D22: 0 | E22: 2 | F22: 1
A23: HOTELERÍA Y TURISMO | B23: 39 | C23: 39 | D23: 0 | E23: 30 | F23: 9
A24: IDIOMAS | B24: 822 | C24: 822 | D24: 0 | E24: 419 | F24: 403
A25: INFORMÁTICA | B25: 185 | C25: 184 | D25: 1 | E25: 86 | F25: 99
A26: MARÍTIMA | B26: 53 | C26: 2 | D26: 51 | E26: 53 | F26: 0
A27: METAL-MECÁNICA | B27: 18 | C27: 18 | D27: 0 | E27: 14 | F27: 4
A28: LÚDICA | B28: 3 | C28: 3 | D28: 0 | E28: 3 | F28: 0
A29: SALUD SEGURIDAD E HIGIENE | B29: 162 | C29: 144 | D29: 18 | E29: 85 | F29: 77
A30: SEGURIDAD Y DEFENSA | B30: 87 | C30: 19 | D30: 68 | E30: 82 | F30: 5
A31: SERVICIOS PERSONALES -ESTÉTICA | B31: 45 | C31: 45 | D31: 0 | E31: 42 | F31: 3
A32: TECNOLÓGICA | B32: 13 | C32: 13 | D32: 0 | E32: 12 | F32: 1
A33: EDUCACIÓN | B33: 53 | C33: 53 | D33: 0 | E33: 26 | F33: 27
A34: VESTIMENTA | B34: 38 | C34: 38 | D34: 0 | E34: 38 | F34: 0
A35: OTROS | B35: 104 | C35: 104 | D35: 0 | E35: 70 | F35: 34
A36: Fuente: Elaboración propia en base a la información del Relevamiento de Instituciones de Formación Técnico-Profesional. Realizado por el División de Investigación y Estadística.
A37: Nota: Debe sumarse datos obtenidos del Ministerio de Defensa sin desagregar por área de conocimiento. 18 Institutos públicos, 14 en Montevideo y 4 resto del país.
A38: 133 cursos públicos, 85 en Montevideo y 48 resto del país

Sheet Cuadro 2.10.2
A1: Ministerio de Educación y Cultura
A2: Dirección de Educación
A5: Cuadro 2.10.2
A6: ALUMNOS MATRICULADOS EN CUROS DEL RELEVAMIENTO TÉCNICO PROFESIONAL POR ÁREAS DE CONOCIMIENTO, SEGÚN FORMAS DE ADMINISTRACIÓN Y GRANDES ÁREAS. 2016
A8: ÁREAS DE CONOCIMIENTO | B8: TOTAL | C8: FORMA DE ADMINISTRACIÓN | E8: ÁREA GEOGRÁFICA
C9: PRIVADA | D9: PÚBLICA | E9: MONTEVIDEO | F9: INTERIOR
A10: TOTAL | B10: 93423 | C10: 89099 | D10: 4324 | E10: 64886 | F10: 28537
A11: ADMINISTRACIÓN -COMERCIALIZACIÓN | B11: 10363 | C11: 10363 | D11: 0 | E11: 9225 | F11: 1138
A12: AERONÁUTICA | B12: 505 | C12: 56 | D12: 449 | E12: 291 | F12: 214
A13: AGRARIA | B13: 620 | C13: 620 | D13: 0 | E13: 425 | F13: 195
A14: ARTES-ARTESANÍAS | B14: 5197 | C14: 5197 | D14: 0 | E14: 4169 | F14: 1028
A15: COMUNICACIONES | B15: 1168 | C15: 1168 | D15: 0 | E15: 1061 | F15: 107
A16: CONSTRUCCIÓN -ARQUITECTURA | B16: 1166 | C16: 1166 | D16: 0 | E16: 1161 | F16: 5
A17: DEPORTES Y AFINES | B17: 1156 | C17: 1156 | D17: 0 | E17: 692 | F17: 464
A18: DISEÑOS | B18: 1548 | C18: 1548 | D18: 0 | E18: 1355 | F18: 193
A19: ELECTROTECNIA Y ELECTRÓNICA | B19: 439 | C19: 439 | D19: 0 | E19: 409 | F19: 30
A20: GASTRONOMÍA | B20: 2986 | C20: 2986 | D20: 0 | E20: 2594 | F20: 392
A21: GRÁFICOS | B21: 13 | C21: 13 | D21: 0 | E21: 10 | F21: 3
A22: HOTELERÍA Y TURISMO | B22: 966 | C22: 966 | D22: 0 | E22: 733 | F22: 233
A23: IDIOMAS | B23: 24249 | C23: 24249 | D23: 0 | E23: 12495 | F23: 11754
A24: INFORMÁTICA | B24: 6809 | C24: 6753 | D24: 56 | E24: 5109 | F24: 1700
A25: MARÍTIMA | B25: 1769 | C25: 31 | D25: 1738 | E25: 1769 | F25: 0
A26: METAL-MECÁNICA | B26: 863 | C26: 863 | D26: 0 | E26: 840 | F26: 23
A27: SALUD SEGURIDAD E HIGIENE | B27: 14953 | C27: 14382 | D27: 571 | E27: 9914 | F27: 5039
A28: SEGURIDAD Y DEFENSA | B28: 2339 | C28: 829 | D28: 1510 | E28: 2230 | F28: 109
A29: SERVICIOS PERSONALES -ESTÉTICA | B29: 1783 | C29: 1783 | D29: 0 | E29: 1780 | F29: 3
A30: TECNOLÓGICA | B30: 344 | C30: 344 | D30: 0 | E30: 344 | F30: 0
A31: LÚDICA | B31: 88 | C31: 88 | D31: 0 | E31: 88 | F31: 0
A32: EDUCACIÓN | B32: 2627 | C32: 2627 | D32: 0 | E32: 1700 | F32: 927
A33: VESTIMENTA | B33: 288 | C33: 288 | D33: 0 | E33: 288 | F33: 0
A34: OTROS | B34: 11184 | C34: 11184 | D34: 0 | E34: 6204 | F34: 4980
A35: Fuente: Elaboración propia en base a la información del Relevamiento de Instituciones de Formación Técnico-Profesional. Realizado por el Área de Investigación y Estadística.
A36: Nota: Debe sumarse datos obtenidos del Ministerio de Defensa sin desagregar por área de conocimiento. 2457 alumnos matrículados público, 1419 en Montevideo, 1038 resto del país.

Sheet Cuadro 2.10.3
A1: Ministerio de Educación y Cultura
A2: Dirección de Educación
A6: Cuadro 2.10.3
A7: CANTIDAD DE CURSOS POR TRAMOS DE DURACIÓN EN HORAS SEGÚN ÁREA DE CONOCIMIENTO. AÑO 2016
A8: ÁREA DE | B8: TOTAL | C8: 0 a 40 | D8: 41 a 140 | E8: 141 a 320 | F8: 321 a 440 | G8: 441 y más
A9: CONOCIMIENTO
A10: TOTAL | B10: 2417 | C10: 790 | D10: 1022 | E10: 414 | F10: 75 | G10: 116
A11: ADMINISTRACIÓN -COMERCIALIZACIÓN | B11: 336 | C11: 144 | D11: 105 | E11: 76 | F11: 5 | G11: 6
A12: AERONÁUTICA | B12: 34 | C12: 16 | D12: 4 | E12: 2 | F12: 0 | G12: 12
A13: AGRARIA | B13: 19 | C13: 6 | D13: 9 | E13: 4 | F13: 0 | G13: 0
A14: ARTES-ARTESANIAS | B14: 147 | C14: 82 | D14: 38 | E14: 14 | F14: 0 | G14: 13
A15: COMUNICACIONES | B15: 28 | C15: 10 | D15: 3 | E15: 10 | F15: 4 | G15: 1
A16: CONSTRUCCIÓN -ARQUITECTURA | B16: 36 | C16: 13 | D16: 19 | E16: 3 | F16: 1 | G16: 0
A17: DEPORTES Y AFINES | B17: 48 | C17: 21 | D17: 21 | E17: 0 | F17: 3 | G17: 3
A18: DISEÑOS | B18: 34 | C18: 4 | D18: 14 | E18: 12 | F18: 0 | G18: 4
A19: ELECTROTECNIA Y ELECTRÓNICA | B19: 16 | C19: 3 | D19: 7 | E19: 6 | F19: 0 | G19: 0
A20: GASTRONOMÍA | B20: 94 | C20: 23 | D20: 39 | E20: 13 | F20: 10 | G20: 9
A21: GRÁFICOS | B21: 3 | C21: 2 | D21: 1 | E21: 0 | F21: 0 | G21: 0
A22: HOTELERÍA Y TURISMO | B22: 39 | C22: 5 | D22: 15 | E22: 13 | F22: 2 | G22: 4
A23: IDIOMAS | B23: 822 | C23: 138 | D23: 518 | E23: 154 | F23: 9 | G23: 3
A24: INFORMÁTICA | B24: 185 | C24: 58 | D24: 108 | E24: 13 | F24: 4 | G24: 2
A25: MARÍTIMA | B25: 53 | C25: 36 | D25: 17 | E25: 0 | F25: 0 | G25: 0
A26: METAL-MECÁNICA | B26: 18 | C26: 1 | D26: 14 | E26: 2 | F26: 1 | G26: 0
A27: LÚDICA | B27: 3 | C27: 2 | D27: 1 | E27: 0 | F27: 0 | G27: 0
A28: SALUD SEGURIDAD E HIGIENE | B28: 162 | C28: 54 | D28: 8 | E28: 27 | F28: 33 | G28: 40
A29: SEGURIDAD Y DEFENSA | B29: 87 | C29: 78 | D29: 1 | E29: 7 | F29: 0 | G29: 1
A30: SERVICIOS PERSONALES -ESTÉTICA | B30: 45 | C30: 16 | D30: 17 | E30: 12 | F30: 0 | G30: 0
A31: TECNOLÓGICA | B31: 13 | C31: 2 | D31: 5 | E31: 6 | F31: 0 | G31: 0
A32: EDUCACIÓN | B32: 53 | C32: 20 | D32: 13 | E32: 16 | F32: 0 | G32: 4
A33: VESTIMENTA | B33: 38 | C33: 9 | D33: 23 | E33: 5 | F33: 0 | G33: 1
A34: OTROS | B34: 104 | C34: 47 | D34: 22 | E34: 19 | F34: 3 | G34: 13
A35: Fuente: Elaboración propia en base a la información del Primer Censo Nacional de Instituciones de Formación Técnica Profesional.
A36: Nota: Las áreas de conocimiento corresponden a la clasificación CINE 1997 de UNESCO
A37: Debe sumarse datos obtenidos del Ministerio de Defensa sin desagregación por área de conocimiento
A38: 0 a 40:31
A39: 41 a 140:42
A40: 141 a 320:46
A41: 321 a 440:1
A42: 441 y más: 13

Sheet Cuadro 2.10.4
A1: Ministerio de Educación y Cultura
A2: Dirección de Educación
A5: Cuadro 2.10.4
A6: CONSEJO DE EDUCACIÓN TÉCNICO PROFESIONAL (U.T.U.)
A9: ALUMNOS MATRICULADOS EN CURSOS DE EDUCACIÓN TÉCNICA PARA JÓVENES Y ADULTOS POR GRANDES ÁREAS Y SEXO SEGÚN TIPO DE CURSO. AÑO 2016.
A12: TIPO DE CURSO | B12: TOTAL | C12: TOTAL | F12: GRANDES ÁREAS
G14: MONTEVIDEO | J14: RESTO DEL PAÍS
C15: Total | D15: SEXO | G15: SEXO | J15: SEXO
D16: Masculino | E16: Femenino | F16: Total | G16: Masculino | H16: Femenino | I16: Total | J16: Masculino | K16: Femenino
A17: TOTAL | C17: =SUM(C20:C29) -> 5249 | D17: 2511 | E17: 2738 | F17: 3171 | G17: 1529 | H17: 1642 | I17: 2078 | J17: 982 | K17: 1096
A19: Nivel Formación profesional
A20: CAP. PROFUNDIZACIÓN PROFESIONAL | C20: =+D20+E20 -> 366 | D20: =G20+J20 -> 199 | E20: =H20+K20 -> 167 | F20: =+G20+H20 -> 103 | G20: 66 | H20: 37 | I20: =+J20+K20 -> 263 | J20: 133 | K20: 130
A21: CAPACITACIÓN PROFESIONAL | C21: =+D21+E21 -> 52 | D21: =G21+J21 -> 35 | E21: 17 | F21: =+G21+H21 -> 47 | G21: 34 | H21: 13 | I21: =+J21+K21 -> 5 | J21: 1 | K21: 4
A22: CAPACITACIÓN PROFESIONAL INICIAL | C22: 2831 | D22: 1358 | E22: 1473 | F22: 1294 | G22: 643 | H22: 651 | I22: 1537 | J22: 715 | K22: 822
A23: CAPACITACIÓN TÉCNICA | C23: 37 | D23: 32 | E23: 5 | F23: 37 | G23: 32 | H23: 5 | I23: 0 | J23: 0 | K23: 0
A24: CURSO BÁSICO | C24: 428 | D24: 169 | E24: 259 | F24: 359 | G24: 122 | H24: 237 | I24: 69 | J24: 47 | K24: 22
A25: CURSO BÁSICO ESPECIALIZACIÓN | C25: 286 | D25: 110 | E25: 176 | F25: 215 | G25: 79 | H25: 136 | I25: 71 | J25: 31 | K25: 40
A26: FORM. PROFES. EN ARTES Y ARTESANÍAS | C26: 554 | D26: 188 | E26: 366 | F26: 552 | G26: 187 | H26: 365 | I26: 2 | J26: 1 | K26: 1
A27: FORMACIÓN PROFESIONAL BÁSICA | C27: 553 | D27: 316 | E27: 237 | F27: 440 | G27: 275 | H27: 165 | I27: 113 | J27: 41 | K27: 72
A28: FORMACIÓN PROFESIONAL ESPECIALIZADA | C28: 119 | D28: 88 | E28: 31 | F28: 119 | G28: 88 | H28: 31 | I28: 0 | J28: 0 | K28: 0
A29: PROYECTOS DE EXTENSIÓN | C29: 23 | D29: 16 | E29: 7 | F29: 5 | G29: 3 | H29: 2 | I29: 18 | J29: 13 | K29: 5
A30: Fuente: CETP-UTU

Sheet Gráfico 2.10.1
A1: Ministerio de Educación y Cultura Dirección de Educación
A3: Gráfico 2.10.1
A32: Fuente: Área de Educación No Formal de la Dirección de Educación - MEC

Sheet Cuadro 2.10.5
A1: Ministerio de Educación y Cultura Dirección de Educación
A3: Cuadro 2.10.5 ALUMNOS INGRESADOS Y MATRICULADOS EN CECAP POR SEXO SEGÚN GRANDES ÁREAS. AÑO 2016.
A4: ÁREA GEOGRÁFICA | B4: TOTAL | C4: INGRESADOS | F4: MATRICULADOS
C5: Masculino | D5: Femenino | E5: TOTAL | F5: Masculino | G5: Femenino
A6: TOTAL | B6: =B7+B8 -> 1491 | C6: 830 | D6: 661 | E6: 2360 | F6: 1357 | G6: 1003
A7: Montevideo | B7: =C7+D7 -> 363 | C7: 192 | D7: 171 | E7: =F7+G7 -> 549 | F7: 294 | G7: 255
A8: Resto del país | B8: =C8+D8 -> 1128 | C8: 638 | D8: 490 | E8: =F8+G8 -> 1811 | F8: 1063 | G8: 748
A9: Fuente: Área de Educación No Formal de la Dirección de Educación - MEC

Sheet Cuadro 2.10.6
A1: Ministerio de Educación y Cultura Dirección de Educación
A3: Cuadro 2.10.6
A4: ALUMNOS MATRICULADOS DEL COCAP SEGÚN TIPO DE CURSO Y ÁREA DE FORMACIÓN. AÑO 2016.
A5: TIPO DE CURSO | C5: TOTAL | D5: SEXO
D6: Masculino | E6: Femenino
A7: TOTAL | C7: =C8+C9 -> 1617 | D7: =D8+D9 -> 1391 | E7: =E8+E9 -> 226
A8: Cursos Abiertos | C8: =D8+E8 -> 1510 | D8: 1294 | E8: 216
A9: Cursos Cerrados | C9: =D9+E9 -> 107 | D9: 97 | E9: 10
A10: Fuente: COCAP

Sheet Cuadro 2.10.7
A1: Ministerio de Educación y Cultura Dirección de Educación
A3: Cuadro 2.10.7
A4: ALUMNOS MATRICULADOS EN COCAP SEGÚN SEXO Y ÁREA DE CONOCIMIENTO (PORCENTAJES). AÑO 2016.
A6: ÁREA DE CONOCIMIENTO | E6: SEXO
D7: Total | E7: Masculino | F7: Femenino
A8: TOTAL | D8: 100 | E8: 100 | F8: 100
A9: Administración y Comercialización | D9: 23.5 | E9: 13.6 | F9: 81.3
A10: Agraria | D10: 2.8 | E10: 2.6 | F10: 4.1
A11: Construcción - Arquitectura | D11: 0.9 | E11: 0.9 | F11: 0.4
A12: Electrotecnia - Electrónica | D12: 29.8 | E12: 34.4 | F12: 2.9
A13: Informática | D13: 4.3 | E13: 4.6 | F13: 2.9
A14: Metal-Mecánica | D14: 38.8 | E14: 44 | F14: 8.3
A16: Fuente: COCAP
A17: Nota: Los datos son de los cursos Abiertos y Cerrados.

Sheet Cuadro 2.10.8
A1: Ministerio de Educación y Cultura Dirección de Educación
A4: Cuadro 2.10.8 FUNCIONARIOS PARTICIPANTES EN LOS CURSOS DE LA ENAP DR. AQUILES LANZA, CANTIDAD DE CURSOS Y HORAS TIPO DE CURSO. AÑO 2014. (último dato disponible)
A5: GRANDES ÁREAS | C5: FUNCIONARIOS PARTICIPANTES | D5: CANTIDAD DE CURSOS | E5: HORAS
A6: TOTAL | C6: =SUM(C7:C9) -> 11297 | D6: =SUM(D7:D9) -> 382 | E6: =SUM(E7:E9) -> 14388
A7: Programas de Formación: Programa de Dirección Media, Diploma en Gestión Humana y Programa de Desarrollo Administrativo | C7: 178 | D7: 7 | E7: 2271
A8: Cursos y Seminarios | C8: 5943 | D8: 215 | E8: 6900
A9: Cursos e-learning | C9: 5176 | D9: 160 | E9: 5217
A10: Fuentes: Oficina Nacional del Servicio Civil - Escuela Nacional de Administración Pública "Dr. Aquiles Lanza"
A11: Nota: Por no contar con información, no se incluye la "Maestría en Políticas y Gestión Pública".

Sheet Cuadro 2.10.9
A1: Ministerio de Educación y Cultura Dirección de Educación
A3: Cuadro 2.10.9 ALUMNOS MATRICULADOS E INGRESADOS EN CARRERAS NO TERCIARIAS EN UNIVERSIDADES E INSTITUTOS UNIVERSITARIOS. AÑO 2016.
A4: UNIVERSIDADES E INSTITUTOS UNIVERSITARIOS | D4: MATRICULADOS | G4: INGRESADOS
C5: TOTAL | D5: SEXO | F5: TOTAL | G5: SEXO
D6: Masculino | E6: Femenino | G6: Masculino | H6: Femenino
A7: TOTAL | C7: =D7+E7 -> 7013 | D7: =SUM(D8:D15) -> 3721 | E7: =SUM(E8:E15) -> 3292 | F7: =G7+H7 -> 4970 | G7: =SUM(G8:G15) -> 2395 | H7: =SUM(H8:H15) -> 2575
A8: Universidad ORT Uruguay | C8: 2551 | D8: 1761 | E8: 790 | F8: 868 | G8: 616 | H8: 252
A9: Universidad de la Empresa | C9: 703 | D9: 367 | E9: 336 | F9: 481 | G9: 225 | H9: 256
A10: UCUDAL | C10: 2235 | D10: 836 | E10: 1399 | F10: 2166 | G10: 817 | H10: 1349
A11: UDELAR | C11: 638 | D11: 157 | E11: 481 | F11: 638 | G11: 157 | H11: 481
A12: IPES | C12: 1845 | D12: s/d | E12: s/d | F12: 1845 | G12: s/d | H12: s/d
A13: Instituto Metodista Universitario Crandon | C13: 51 | D13: 1 | E13: 50 | F13: 23 | G13: 1 | H13: 22
A14: Instituto Universitario Asociación Cristiana de Jóvenes | C14: 399 | D14: 344 | E14: 55 | F14: 358 | G14: 324 | H14: 34
A15: CALEN | C15: 436 | D15: 255 | E15: 181 | F15: 436 | G15: 255 | H15: 181
A16: Fuente: Oficinas productoras de las instituciones.

Sheet CONTEXTO NACIONAL
B3: CONTEXTO NACIONAL
A8: Cuadro 3.1.1 ESCUELAS, MAESTROS Y ALUMNOS ATENDIDOS POR EL PROGRAMA MAESTROS COMUNITARIOS SEGÚN AÑO LECTIVO. AÑO 2015
A9: Cuadro 3.1.2ESCUELAS, PROFESORES Y ALUMNOS ATENDIDOS POR EL PROGRAMA DE EDUCACIÓN FÍSICA ESCOLAR SEGÚN AÑO LECTIVO 2015
A10: Cuadro 3.1.3 CANTIDAD DE BECAS MEC OTROGADAS POR NIVEL Y SEXO SEGÚN DEPARTAMENTO. (Todo el país-año 2016)
A11: Cuadro 3.1.4 CANTIDAD DE BECAS OTORGADAS POR EL PROGRAMA COMPROMISO EDUCATIVO SEGÚN SEXO Y DEPARTAMENTO (Todo el país, año 2016)
A12: Cuadro 3.1.5 EVOLUCIÓN DE LA CANTIDAD DE BECAS OTORGADAS POR EL FONDO DE SOLIDARIDAD (Todo el país, años 2002-2016)
A13: Cuadro 3.1.6 CANTIDAD DE BECAS OTORGADAS POR EL CONSEJO DE FORMACIÓN DOCENTE. AÑO 2016
A14: Cuadro 3.1.7 BECAS DEL PROGRAMA URUGUAY ESTUDIA POR MODALIDAD SEGÚN AÑO LECTIVO. AÑO 2015
A15: Cuadro 3.1.8 CANTIDAD DE BENEFICIARIOS POR EL PROGRAMA RUMBO (Todo el país -año 2016)
A16: Cuadro 3.1.9 Cantidad de Alfabetizados digitalmente (Todo el país -año 2016)
A17: Cuadro 3.1.10 PORCENTAJE DE BENEFICIARIOS DEL PROGRAMA YO ESTUDIO YO TRABAJO POR SEXO, ÁREA GEOGRÁFICA, EDAD Y NIVEL EDUCATIVO (Todo el país, año 2016)
A19: Cuadro 3.1.11 CANTIDAD DE BENEFICIARIOS DEL PROGRAMA JÓVENES EN RED, SEGÚN SEXO, EDAD Y ÁREA GEOGRÁFICA (Todo el país datos historicos a 2016)
A20: Cuadro 3.1.12 CANTIDAD DE BENEFICIARIOS POR EL PROGRAMA FORTALECIMIENTO EDUCATIVO SEGÚN SEXO Y EDAD PARA EL PERÍODO 2014.2015
A21: Cuadro 3.1.13 CANTIDAD DE BENEFICIARIOS DEL PROGRAMA INTER - IN (Todo el país -año 2015)
A22: Cuadro 3.1.14 CANTIDAD DE DOCENTES Y ESTUDIANTES DEL PLAN CEIBAL POR TIPO DE INSTITUCIÓN (Todo el país año, 2016)
A23: Cuadro 3.1.15 CANTIDAD DE EQUIPOS OTORGADOS POR PLAN CEIBAL SEGÚN TIPO DE INSTITUCIÓN (Todo el país, año 2016)
A24: Cuadro 3.1.16 CANTIDAD DE CENTROS QUE PARTICIPARON EN EL PROGRAMA APRENDER TODOS (Todo el país, año 2016)
A25: Cuadro 3.1.17 CANTIDAD DE EQUIPOS Y LABORATORIOS TECNOLOGICOS POR SUBISTEMA (Todo el país, año 2016)
A26: Cuadro 3.1.18 PLATAFORMAS EN CEIBAL PARA MATEMÁTICAS E INGLÉS SEGÚN SUBSISTEMA (Todo el país, año 2016)
A27: Cuadro 3.1.19 CANTIDAD DE ALUMNOS CON ATENCIÓN EN ESCUELA ESPECIAL CON DOBLE ESCOLARIDAD POR TIPO DE DISCAPACIDAD Y MODALIDAD (Todo el país, año 2015)
A28: Cuadro 3.1.20 CANTIDAD DE ALUMNOS CON APOYO EN LAS ESCUELAS ESPECIALES Y ESCOLARIZACIÓN COMPARTIDA POR NIVEL Y MODADLIDAD (Todo el País, año 2015)
A29: Cuadro 3.1.21 CANTIDAD DE ESTUDIANTES DE DIVERSAS SUB-ÁREAS APOYADOS EN ESCUELAS CENTROS DE ZONA (Todo el País, año 2015)
A30: Cuadro 3.1.22 ESTUDIANTES ITINERADOS EN ESCUELAS DONDE SE ENCUENTRAN INSCRIPTOS POR TIPO DE DISCAPACIDAD Y NIVEL. (Todo el país, año 2015)
A31: Cuadro 3.1.23 CANTIDAD DE NIÑOS ATENDIDOS POR MAESTROS DE APOYO POR CICLO Y TIPO DE ESCUELA. (Todo el país, año 2015)
A32: Cuadro 3.1.24 TOTAL DE ESTUDIANTES ATENDIDOS EN EDUCACIÓN ESPECIAL POR TIPO DE MODALIDAD (Todo el país, año 2015)
A33: Cuadro 3.1.25 CANTIDAD DE JÓVENES ATENDIDOS EN INISA POR SEXO Y EDAD (Todo el país año 2016)
A34: Cuadro 3.1.26 Programa Aprender Siempre (PAS) por tipo de actividad y cantidad de propuestas. Año 2016
A35: Cuadro 3.1.27 Programa ESQUINAS DEL MAÑANA 2016
A36: Cuadro 3.1.28 CANTIDAD DE BENEFICIARIOS DEL PROGRAMA AULAS COMUNITARIAS, SEGÚN SEXO, EDAD Y ÁREA GEOGRÁFICA (Todo el país datos historicos a 2016)
A37: Cuadro 3.1.29 PORCENTAJE DE INSCRIPTOS SEGÚN SEXO, CANTIDAD DE EGRESADOS POR NIVEL DE SECUNDARIA, Y EDAD PROMEDIO DE EDAD SEGÚN ORGANISMO AL PROGRAMA DE CULMINACIÓN DE EDUCACIÓN MEDIA (PROCES). TODO EL PAÍS (AÑO 2016)
A39: Cuadro 3.1.30 CANTIDAD DE JUGADORES DE LAS SUBDIVISIONES FORMATIVAS SEGÚN CONDICIÓN DE ESTUDIANTE (Todo el país, año 2016)
A40: Cuadro 3.1.31 CANTIDAD DE BECAS OTORGADAS POR LA ANII POR TIPO DE BECA POR SEXO, MONTO Y REGIÓN (Todo el país, año 2016)
A42: Cuadro 3.1.32 CANTIDAD DE BECAS OTORGADAS POR BIENESTAR UNIVERSITARIO SEGÚN TIPO DE BECA (Todo el país, año 2016)
A43: Cuadro 3.1.33 CANTIDAD DE BECAS DE INCLUSIÓN SOCIOEDUCATIVA (BIS). Todo el país, año 2015
A44: Cuadro 3.1.34 CANTIDAD DE BECAS OTORGADAS POR FUNDACIÓN CHAMANGÁ SEGÚN DEPARTAMENTO (Todo el país, año 2016) | K44: Cuadro 3.1.33 CANTIDAD DE BECAS DE INCLUSIÓN SOCIOEDUCATIVA (BIS). Todo el país, año 2015
A45: Cuadro 3.1.34 CANTIDAD DE BECAS OTORGADAS POR FUNDACIÓN CHAMANGÁ SEGÚN DEPARTAMENTO (Todo el país, año 2016)
A46: Cuadro 3.1.35 CANTIDAD DE PLAZAS OFRECIDAS DE EDUCACIÓN FORMAL PARA POBLACIÓN PRIVADA DE LIBERTAD POR UNIDAD PENITENCIARIA SEGÚN NIVEL Y SEXO. AÑO 2016
A48: Cuadro 3.1.36 CANTIDAD DE PLAZAS OFRECIDAS DE EDUCACIÓN FORMAL PARA POBLACIÓN PRIVADA DE LIBERTAD POR UNIDAD PENITENCIARIA SEGÚN NIVEL Y SEXO. AÑO 2016
A50: Cuadro 3.1.37 CANTIDAD DE POBLACIÓN PRIVADA DE LIBERTAD ATENDIDA EN EDUCACION FORMAL POR UNIDAD PENITENCIARIA SEGÚN NIVEL Y SEXO. AÑO 2016
A51: Cuadro 3.1.38 CANTIDAD DE POBLACIÓN PRIVADA DE LIBERTAD ATENDIDA EN EDUCACIÓN NO FORMALPOR UNIDAD PENITENCIARIA SEGÚN NIVEL Y SEXO. AÑO 2016
A53: Cuadro 3.1.39 CANTIDAD DE ESTUDIANTES Y EXÁMENES RENDIDOS EN CENTROS INISA EN EL AÑO 2016
A54: Cuadro 3.1.40 GASTO PÚBLICO EN EDUCACIÓN (millones de pesos constantes de 2016)
A55: Cuadro 3.1.41 CANTIDAD DE ASPIRANTES A EDUCACIÓN NO FORMAL DE POBLACIÓN PRIVADA DE LIBERTAD POR UNIDAD PENITENCIARIA SEGÚN TIPO DE PROGRAMA Y SEXO. AÑO 2016
A57: Cuadro 3.1.42 CANTIDAD DE ASPIRANTES A EDUCACIÓN FORMAL DE POBLACIÓN PRIVADA DE LIBERTAD POR UNIDAD PENITENCIARIA SEGÚN NIVEL Y SEXO. AÑO 2016
A60: Gráfico 3.1.1 BECAS OTORGADAS SEGÚN PROGRAMA POR AÑO LECTIVO ( Todo el país,años 2005-2016)
A61: Gráfico 3.1.2 PORCENTAJE DE BECAS OTORGADAS POR EL FONDO DE SOLIDARIDAD SEGÚN GRANDES ÁREAS POR AÑO LECTIVO 2011-2016
A62: Gráfico 3.1.3 PORCENTAJE DE BECAS OTORGADAS POR EL FONDO DE SOLIDARIDAD SEGÚN SEXO POR AÑO LECTIVO 2011-2016
A63: Gráfico 3.1.4 BENEFICIARIOS CON EQUIPO CEIBAL POR CATEGORÍA SEGÚN AÑO LECTIVO 2007 Y 2016
A64: Gráfico 3.1.5 CANTIDAD DE ESCUELAS ESPECIALES PÚBLICAS SEGÚN GRANDES ÁREAS (Todo el país años 1990-2016)
A65: Gráfico 3.1.6 EVOLUCIÓN DE LA CANTIDAD DE ESTABLECIMIENTOS PÚBLICOS DE EDUCACIÓN ESPECIAL POR TIPO DE DISCAPACIDAD (Todo el país años 1990-2016)
A66: Gráfico 3.1.7MATRÍCULA EN EDUCACIÓN PÚBLICA ESPECIAL SEGÚN GRANDES ÁREAS (Todo el país 1990-2016)
A67: Gráfico 3.1.8 MATRÍCULA EN EDUCACIÓN PÚBLICA ESPECIAL SEGÚN FORMAS DE ADMINISTRACÓN (Todo el país 1990-2016)
A68: Gráfico 3.1.9 ALUMNOS MATRICULADOS EN EDUCACIÓN PRIMARIA PÚBLICA POR TIPO DE DISCAPACIDAD(Todo el país años 1990-2016)
A69: Gráfico 3.1.10 MATRÍCULA DE EDUCACIÓN ESPÉCIAL PÚBLICA POR EDADES SIMPLES SEGÚN SEXO (Todo el país año 2016)
A70: Gráfico 3.1.11 EVOLUCIÓN DEL GASTO PÚBLICO EN EDUCACIÓN Y DEL PIB EN MILLONES DE PESOS CONSTANTES DEL 2016 (2004-2016)
A71: Gráfico 3.1.12 EVOLUCIÓN CONJUNTA DEL GASTO PÚBLICO EN EDUCACIÓN COMO PORCENTAJE DEL PIB Y DEL GASTO DEL GOBIERNO CENTRAL (2004-2016)
A72: Gráfico 3.1.13 DISTRIBUCIÓN DEL GASTO PÚBLICO EN EDUCACIÓN SEGÚN COMPONENTES EN 2016 (%)
A73: Gráfico 3.1.14 GASTO PÚBLICO EN EDUCACIÓN DE ANEP Y UDELAR COMO PORCENTAJE DEL PIB (2004-2016)
A74: Gráfico 3.1.15 DISTRIBUCIÓN DEL GASTO DE ANEP SEGÚN CONSEJOS DE ENSEÑANZA EN 2016
A75: Gráfico 3.1.16 EVOLUCIÓN DEL GASTO DE ANEP SEGÚN CONSEJOS DE ENSEÑANZA EN MILLONES DE PESOS CONSTATNES EN 2016 (2004-2016)
A76: Gráfico 3.1.17 EVOLUCIÓN DEL SALARIO DOCENTE DE LOS MAESTROS 20 HORAS EFECTIVO POR GRADO A VALORES CONSTANTES DE 2016 ( 2004-2016)
A77: Gráfico 3.1.18 EVOLUCIÓN DEL SALARIO DOCENTE DE LOS PROFESORES DE PRIMER CICLO 20 HORAS EFECTIVO POR GRADO A VALORES CONSTANTES DE 2016 (2004-2016)
A78: Gráfico 3.1.19 EVOLUCIÓN DEL SALARIO DOCENTE DE LOS PROFESORES DE SEGUNDO CICLO 20 HORAS EFECTIVO POR GRADO A VALORES CONSTANTES A 2016(2004-2016)
A79: Gráfico 3.1.20 COSTO POR ALUMNO TOTAL Y POR CONSEJO DESCONCENTRADO DE LA ANEP SEGÚN AÑO LECTIVO (2004-2016)
A80: Gráfico 3.1.21 GASTO DE UDELAR SEGÚN UNIDADES EJECUTORAS EN 2016 MILLONES DE PESOS
A82: Organigrama 3.1 OFERTAS EDUCATIVAS PARA EGRESADOS DE LA ESCUELA ESPECIAL.

Sheet 3.1 (hidden)
A1: apart

Sheet gRÁFICO 3.1.7 b (hidden)
B2: Egresos
C3: 2011 | D3: 2012 | E3: 2013 | F3: 2014 | G3: 2015
B4: Auxiliar de Enfermería | C4: 725 | D4: 762 | E4: 879 | F4: 916 | G4: 1098
B5: Auxiliar de Farmacia Hospitalaria | C5: 622 | D5: 581 | E5: 580 | F5: 637 | G5: 588
B6: Auxiliar de Servicio Ayudante de Cocina y Tisanería | C6: 1932 | D6: 1516 | E6: 1507 | F6: 1772 | G6: 2081
B7: Auxiliar de Estadística Salud y Registros Médicos | C7: 1170 | D7: 1438 | E7: 1392 | F7: 1251 | G7: 890
B8: Auxiliar de Laboratorio Clínico | C8: 22 | D8: 22 | E8: 14 | F8: 27 | G8: 20

Sheet 3.3 (hidden)

Sheet NO FOR (hidden)
B1: ABRIL | C1: MAYO | D1: JUNIO | E1: JULIO | F1: AGOSTO | G1: SEPTIEMBRE | H1: OCTUBRE | I1: NOVIEMBRE | J1: PROMEDIO
A2: DSEA | B2: 155 | C2: 261 | D2: 256 | E2: 245 | F2: 256 | G2: 375 | H2: 206 | I2: 167 | J2: 240
A3: MEC-PAS | B3: 206 | C3: 226 | D3: 233 | E3: 229 | F3: 221 | G3: 223 | H3: 236 | I3: 146 | J3: 215
A4: MEC-CIUDAD | B4: 36 | C4: 70 | D4: 78 | F4: 77 | G4: 85 | H4: 94 | I4: 71 | J4: 73 | N4: 105
A5: EDUACIOÓN NO FORMAL OTROS | C5: 449 | D5: 522 | E5: 560 | F5: 594 | H5: 617 | I5: 492 | J5: 538
A6: EVENTOS EDUCATIVOS | B6: 15 | C6: 283 | D6: 496 | E6: 51 | F6: 287 | G6: 202 | H6: 312 | J6: 235
A7: PROYECTOS CULTURALES | B7: 43 | C7: 45 | D7: 81 | E7: 23 | F7: 9 | G7: 7 | H7: 44 | J7: 36
B8: 9599 | C8: 9580 | D8: 9536 | E8: 9644 | F8: 9982 | G8: 10003 | H8: 9996 | I8: 10024 | J8: 9796
B11: ABRIL | C11: MAYO | D11: JUNIO | E11: JULIO | F11: AGOSTO | G11: SEPTIEMBRE | H11: OCTUBRE | I11: NOVIEMBRE | J11: PROMEDIO
A13: DSEJA | B13: =B2*100/B8 -> 1.614751537 | C13: 2.724425887 | D13: 2.684563758 | E13: 2.540439652 | F13: 2.564616309 | G13: 3.748875337 | H13: 2.06082433 | I13: 1.666001596 | J13: =J2*100/J8 -> 2.449979584
A14: MEC-PAS | B14: =B3*100/B8 -> 2.146056881 | C14: 2.35908142 | D14: 2.443372483 | E14: 2.374533389 | F14: 2.213985173 | G14: 2.229331201 | H14: 2.360944378 | I14: 1.456504389 | J14: =J3*100/J8 -> 2.194773377
A15: MEC-CIUDAD | B15: =B4*100/B8 -> 0.3750390666 | C15: =C4*100/C8 -> 0.7306889353 | D15: =D4*100/D8 -> 0.8179530201 | F15: =F4*100/F8 -> 0.7713884993 | G15: =G4*100/G8 -> 0.8497450765 | H15: =H4*100/H8 -> 0.9403761505 | I15: =I4*100/I8 -> 0.7083000798 | J15: =J4*100/J8 -> 0.7452021233
A16: EDUACIÓN NO FORMAL OTROS | B16: 6 | C16: 8.1 | D16: 11.5 | E16: 6.6 | F16: 8.9 | G16: 2 | H16: 9.7 | I16: =I5*100/I8 -> 4.908220271 | J16: 8.3 | K16: 13.7
B17: =B13+B14+B15+B16 -> 10.13584748 | C17: =C13+C14+C15+C16 -> 13.91419624 | D17: 17.44588926 | E17: 11.51497304 | F17: 14.44998998 | G17: 8.827951615 | H17: 15.06214486 | I17: 8.739026337 | J17: 13.68995508
A18: POBLACIÓN SIN COBERTURA EN EDUCACIÓN NO FORMAL | B18: =B19-B17 -> 89.86415252 | C18: =C19-C17 -> 86.08580376 | D18: 82.55411074 | E18: 88.48502696 | F18: 85.55001002 | G18: 91.17204839 | H18: 84.93785514 | I18: 91.26097366 | J18: 86.31004492
B19: 100 | C19: 100 | D19: 100 | E19: 100 | F19: 100 | G19: 100 | H19: 100 | I19: 100 | J19: 100
A21: * eduacion no formal otros icluye proyectos y evento sculturales .

Sheet docnetes d (hidden)
B1: Primaria | C1: Secundaria | D1: CETP_UTU | E1: DSEJA | F1: Programa Aprender Siempre | G1: MEC -ciudad y no formal | H1: OTROS
A2: abril | B2: 23 | C2: 215 | D2: 11 | E2: 13 | F2: 22 | G2: 8 | H2: 45
A3: mayo | B3: 28 | C3: 284 | D3: 22 | E3: 15 | F3: 36 | G3: 12 | H3: 54
A4: junio | B4: 28 | C4: 277 | D4: 27 | E4: 15 | F4: 40 | G4: 13 | H4: 47
A5: julio | B5: 29 | C5: 291 | D5: 31 | E5: 16 | F5: 32 | G5: 16 | H5: 57
A6: agosto | B6: 29 | C6: 291 | D6: 30 | E6: 15 | F6: 34 | G6: 13 | H6: 56
A7: setiembre | B7: 28 | C7: 301 | D7: 30 | E7: 16 | F7: 34 | G7: 15 | H7: 62
A8: octubre | B8: 29 | C8: 300 | D8: 36 | E8: 15 | F8: 34 | G8: 15 | H8: 72
A9: noviembre | B9: sd | C9: sd | D9: sd | E9: sd | F9: sd | G9: sd | H9: sd
A10: Promedio de docentes | B10: =AVERAGE(B2:B8) -> 27.71428571 | C10: 279.8571429 | D10: 26.71428571 | E10: 15 | F10: 33.14285714 | G10: 13.14285714 | H10: 56
A11: Promedio de población atendida | B11: 349 | C11: 1085 | D11: 272 | E11: 240 | F11: 225 | G11: 78 | H11: 810
A12: Razón docente /alumno | B12: =B11/B10 -> 12.59278351 | C12: 3.87697805 | D12: 10.18181818 | E12: 16 | F12: 6.788793103 | G12: 5.934782609 | H12: 14.46428571
B15: =B10*100/I15 -> 6.13147914 | C15: =C10*100/I15 -> 61.91529709 | D15: =D10*100/I15 -> 5.910240202 | E15: =E10*100/I15 -> 3.318584071 | F15: =F10*100/I15 -> 7.332490518 | G15: =G10*100/I15 -> 2.907711757 | H15: =H10*100/I15 -> 12.38938053 | I15: 452

Sheet Cuadro 3.1.1
A1: Ministerio de Educación y Cultura Dirección de Educación
A3: ESCUELAS, MAESTROS Y ALUMNOS ATENDIDOS POR EL PROGRAMA MAESTROS COMUNITARIOS SEGÚN AÑO LECTIVO. AÑO 2015
A4: AÑO LECTIVO | B4: Escuelas | F4: Maestros comunitarios | G4: Alumnos
B5: Total | C5: Montevideo | D5: Resto del país | E5: Sin dato | G5: atendidos
A6: 2005 | B6: 255 | C6: 97 | D6: 158 | E6: 0 | F6: 437 | G6: 9292
A7: 2006 | B7: 252 | C7: 95 | D7: 157 | E7: 0 | F7: 433 | G7: 14884
A8: 2007 | B8: 334 | C8: 101 | D8: 233 | E8: 0 | F8: 553 | G8: 18163
A9: 2008 | B9: 334 | C9: 100 | D9: 234 | E9: 0 | F9: 533 | G9: 16802
A10: 2009 | B10: 337 | C10: 101 | D10: 236 | E10: 0 | F10: 553 | G10: 16166
A11: 2010 | B11: 337 | C11: 101 | D11: 236 | E11: 5 | F11: 553 | G11: 16749
A12: 2011 | B12: 342 | C12: 104 | D12: 238 | E12: 3 | F12: 554 | G12: 15680
A13: 2012 | B13: 327 | C13: 101 | D13: 226 | E13: 5 | F13: 539 | G13: 15608
A14: 2013 | B14: 326 | C14: 101 | D14: 225 | E14: 0 | F14: 539 | G14: 16709
A15: 2014 | B15: 318 | C15: 96 | D15: 208 | E15: 14 | F15: 539 | G15: 16758
A16: 2015 | B16: 318 | C16: sd | D16: sd | E16: sd | F16: 541 | G16: 14875
A18: Fuente: MIDES
A19: Nota: Último dato disponible

Sheet Cuadro 3.1.2
A1: Ministerio de Educación y Cultura Dirección de Educación
A7: ESCUELAS, PROFESORES Y ALUMNOS ATENDIDOS POR EL PROGRAMA DE EDUCACIÓN FÍSICA ESCOLAR SEGÚN AÑO LECTIVO 2015
A8: AÑO LECTIVO | B8: Escuelas | C8: Profesores | D8: Inspectores | E8: Directores | F8: Alumnos atendidos
A9: 2005 | B9: 160 | C9: 157 | D9: s/d | E9: s/d | F9: 67462
A10: 2006 | B10: 248 | C10: 238 | D10: s/d | E10: s/d | F10: 86473
A11: 2007 | B11: 245 | C11: 248 | D11: s/d | E11: s/d | F11: 88023
A12: 2008 | B12: 605 | C12: 605 | D12: s/d | E12: s/d | F12: 213858
A13: 2009 | B13: 1004 | C13: 973 | D13: s/d | E13: s/d | F13: 325164
A14: 2010 | B14: 1016 | C14: 977 | D14: s/d | E14: s/d | F14: 308260
A15: 2011 | B15: 1016 | C15: 977 | D15: s/d | E15: s/d | F15: 306318
A16: 2012 | B16: 1016 | C16: 989 | D16: s/d | E16: s/d | F16: 306532
A17: 2013 | B17: 1097 | C17: 1097 | D17: s/d | E17: s/d | F17: 306542
A18: 2014 | B18: 1084 | C18: 1087 | D18: s/d | E18: s/d | F18: 298404
A19: 2015 | B19: 1090 | C19: 1096 | D19: 7 | E19: 37 | F19: 293513
A20: Fuente: Asesoría técnica educación física CIEP.
A21: Nota: Último dato disponible

Sheet Cuadro 3.1.3
A1: Ministerio de Educación y Cultura Dirección de Educación
A12: CANTIDAD DE BECAS MEC OTROGADAS POR NIVEL Y SEXO SEGÚN DEPARTAMENTO. (Todo el país-año 2016)
A13: DEPARTAMENTO | B13: TOTAL | C13: SEXO | G13: NIVEL
I14: PRIMARIA C/B | J14: S/d
C15: SEXO
C16: FEMENINO | D16: MASCULINO | E16: TRANS | F16: AFRO | G16: EMB | H16: EMS
A17: TOTAL | B17: =B18+B19 -> 4296 | C17: 1855 | D17: 2438 | E17: 3 | F17: 735 | G17: 3720 | H17: 536 | I17: 40 | J17: =J18+J19 -> 21
A18: MONTEVIDEO | B18: =C18+D18+E18 -> 977 | C18: 421 | D18: 556 | E18: 0 | F18: 188 | G18: 882 | H18: 95 | I18: 0 | J18: 3
A19: RESTO DEL PAÍS | B19: =SUM(B20:B37) -> 3319 | C19: 1434 | D19: 1882 | E19: 3 | F19: 547 | G19: 2838 | H19: 441 | I19: 40 | J19: 18
A20: ARTIGAS | B20: =+C20+D20+E20+E20 -> 291 | C20: 131 | D20: 160 | E20: 0 | F20: 85 | G20: 236 | H20: 43 | I20: 12 | J20: 0
A21: CANELONES | B21: =C21+D21+E21 -> 619 | C21: 249 | D21: 368 | E21: 2 | F21: 92 | G21: 566 | H21: 53 | I21: 0 | J21: 4
A22: CERRO LARGO | B22: =C22+D22 -> 163 | C22: 66 | D22: 97 | E22: 0 | F22: 33 | G22: 128 | H22: 33 | I22: 2 | J22: 0
A23: COLONIA | B23: 62 | C23: 33 | D23: 29 | E23: 0 | F23: 8 | G23: 56 | H23: 6 | I23: 0 | J23: 0
A24: DURAZNO | B24: 63 | C24: 24 | D24: 39 | E24: 0 | F24: 5 | G24: 47 | H24: 16 | I24: 0 | J24: 0
A25: FLORES | B25: 30 | C25: 13 | D25: 17 | E25: 0 | F25: 1 | G25: 24 | H25: 6 | I25: 0 | J25: 0
A26: FLORIDA | B26: 47 | C26: 18 | D26: 29 | E26: 0 | F26: 1 | G26: 37 | H26: 10 | I26: 0 | J26: 0
A27: LAVALLEJA | B27: 90 | C27: 34 | D27: 56 | E27: 0 | F27: 12 | G27: 72 | H27: 18 | I27: 0 | J27: 1
A28: MALDONADO | B28: 56 | C28: 20 | D28: 36 | E28: 0 | F28: 7 | G28: 32 | H28: 24 | I28: 0 | J28: 1
A29: PAYSANDU | B29: =C29+D29+E29 -> 332 | C29: 156 | D29: 175 | E29: 1 | F29: 35 | G29: 287 | H29: 30 | I29: 15 | J29: 4
A30: RIO NEGRO | B30: =C30+D30 -> 65 | C30: 29 | D30: 36 | E30: 0 | F30: 3 | G30: 60 | H30: 5 | I30: 0 | J30: 2
A31: RIVERA | B31: 390 | C31: 191 | D31: 199 | E31: 0 | F31: 107 | G31: 360 | H31: 27 | I31: 3 | J31: 1
A32: ROCHA | B32: 61 | C32: 22 | D32: 39 | E32: 0 | F32: 6 | G32: 48 | H32: 12 | I32: 1 | J32: 0
A33: SALTO | B33: 515 | C33: 226 | D33: 289 | E33: 0 | F33: 67 | G33: 436 | H33: 79 | I33: 0 | J33: 1
A34: SAN JOSE | B34: 84 | C34: 43 | D34: 41 | E34: 0 | F34: 13 | G34: 75 | H34: 9 | I34: 0 | J34: 0
A35: SORIANO | B35: 119 | C35: 47 | D35: 72 | E35: 0 | F35: 9 | G35: 97 | H35: 22 | I35: 0 | J35: 0
A36: TACUAREMBO | B36: 242 | C36: 98 | D36: 144 | E36: 0 | F36: 37 | G36: 207 | H36: 34 | I36: 1 | J36: 0
A37: TREINTA Y TRES | B37: 90 | C37: 34 | D37: 56 | E37: 0 | F37: 26 | G37: 70 | H37: 14 | I37: 6 | J37: 4
A39: Fuente: MEC

Sheet Cuadro 3.1.4
A1: Ministerio de Educación y Cultura Dirección de Educación
A16: CANTIDAD DE BECAS OTORGADAS POR EL PROGRAMA COMPROMISO EDUCATIVO SEGÚN SEXO Y DEPARTAMENTO (Todo el país, año 2016)
A18: DEPARTAMENTO | C18: SEXO | F18: EDUACIÓN MEDIA SUPERIOR
B19: TOTAL
C20: MUJERES | D20: VARONES | E20: TRANS | F20: 1º E.M.S. | G20: 2º E.M.S. | H20: 3º E.M.S.
A21: TOTAL | B21: =B22+B23 -> 7000 | C21: 4459 | D21: 2533 | E21: 8 | F21: 2964 | G21: 2357 | H21: 1679
A22: MONTEVIDEO | B22: =+C22+D22+E22 -> 1324 | C22: 894 | D22: 429 | E22: 1 | F22: 608 | G22: 452 | H22: 264
A23: RESTO DEL PAÍS | B23: =C23+D23+E23 -> 5676 | C23: =SUM(C24:C41) -> 3565 | D23: 2104 | E23: 7 | F23: 2356 | G23: 1905 | H23: 1415
A24: ARTIGAS | B24: 675 | C24: 427 | D24: 248 | E24: 0 | F24: 251 | G24: 242 | H24: 182
A25: CANELONES | B25: 1088 | C25: 705 | D25: 381 | E25: 2 | F25: 471 | G25: 365 | H25: 252
A26: CERRO LARGO | B26: 181 | C26: 132 | D26: 48 | E26: 1 | F26: 73 | G26: 61 | H26: 47
A27: COLONIA | B27: 70 | C27: 45 | D27: 25 | E27: 0 | F27: 33 | G27: 20 | H27: 17
A28: DURAZNO | B28: 60 | C28: 41 | D28: 19 | E28: 0 | F28: 23 | G28: 20 | H28: 17
A29: FLORES | B29: 55 | C29: 36 | D29: 19 | E29: 0 | F29: 25 | G29: 14 | H29: 16
A30: FLORIDA | B30: 132 | C30: 82 | D30: 50 | E30: 0 | F30: 66 | G30: 40 | H30: 26
A31: LAVALLEJA | B31: 41 | C31: 25 | D31: 16 | E31: 0 | F31: 18 | G31: 17 | H31: 6
A32: MALDONADO | B32: 83 | C32: 46 | D32: 36 | E32: 1 | F32: 30 | G32: 36 | H32: 17
A33: PAYSANDÚ | B33: 704 | C33: 425 | D33: 279 | E33: 0 | F33: 295 | G33: 219 | H33: 190
A34: RÍO NEGRO | B34: 154 | C34: 88 | D34: 66 | E34: 0 | F34: 64 | G34: 56 | H34: 34
A35: RIVERA | B35: 698 | C35: 471 | D35: 226 | E35: 1 | F35: 264 | G35: 242 | H35: 192
A36: ROCHA | B36: 161 | C36: 108 | D36: 52 | E36: 1 | F36: 84 | G36: 50 | H36: 27
A37: SALTO | B37: 759 | C37: 434 | D37: 325 | E37: 0 | F37: 279 | G37: 259 | H37: 221
A38: SAN JOSÉ | B38: 205 | C38: 113 | D38: 92 | E38: 0 | F38: 103 | G38: 72 | H38: 30
A39: SORIANO | B39: 84 | C39: 48 | D39: 36 | E39: 0 | F39: 53 | G39: 19 | H39: 12
A40: TACUAREMBÓ | B40: 419 | C40: 279 | D40: 139 | E40: 1 | F40: 167 | G40: 142 | H40: 110
A41: TREINTA Y TRES | B41: 107 | C41: 60 | D41: 47 | E41: 0 | F41: 57 | G41: 31 | H41: 19
A43: Fuente: Oficinas de Becas MEC

Sheet Cuadro 3.1.5
A1: Ministerio de Educación y Cultura Dirección de Educación
A12: EVOLUCIÓN DE LA CANTIDAD DE BECAS OTORGADAS POR EL FONDO DE SOLIDARIDAD (Todo el país, años 2002-2016)
A14: AÑO | B14: BECAS OTORGADAS | C14: SOLICITUDES | D14: RELACIÓN
A15: 2002 | B15: 3933 | C15: 7036 | D15: 56
A16: 2003 | B16: 3895 | C16: 6375 | D16: 61
A17: 2004 | B17: 3694 | C17: 5620 | D17: 66
A18: 2005 | B18: 3777 | C18: 5511 | D18: 69
A19: 2006 | B19: 4099 | C19: 5688 | D19: 72
A20: 2007 | B20: 4728 | C20: 6372 | D20: 74
A21: 2008 | B21: 5728 | C21: 7233 | D21: 80
A22: 2009 | B22: 6498 | C22: 9943 | D22: 65
A23: 2010 | B23: 5860 | C23: 8492 | D23: 69
A24: 2011 | B24: 6067 | C24: 7944 | D24: 76
A25: 2012 | B25: 6677 | C25: 8711 | D25: 77
A26: 2013 | B26: 6890 | C26: 9199 | D26: 75
A27: 2014 | B27: 7455 | C27: 10114 | D27: 74
A28: 2015 | B28: 7895 | C28: 10596 | D28: 75
A29: 2016 | B29: 7942 | C29: 11154 | D29: 58
A30: Fuente: Fondo de solidaridad

Sheet Cuadro 3.1.6
A1: Ministerio de Educación y Cultura Dirección de Educación
A3: CANTIDAD DE BECAS OTORGADAS POR EL CONSEJO DE FORMACIÓN DOCENTE. AÑO 2016
A4: TIPO DE CENTRO | B4: BECA - Asistencia Economica. CFE | C4: BECAS - JULIO CASTRO | D4: BECAS CERP | I4: TOTAL GENERAL
D5: Alimentación | E5: Completa | F5: Residencia | G5: Transporte | H5: Transporte y Alimentación
A6: TOTAL | B6: =SUM(B7:B38) -> 441 | C6: 948 | D6: 44 | E6: 494 | F6: 2 | G6: 45 | H6: 169 | I6: 2143
A7: Cerp Centro | D7: 3 | E7: 92 | F7: 0 | G7: 5 | H7: 31 | I7: =SUM(B7:H7) -> 131
A8: Cerp Este | D8: 11 | E8: 48 | F8: 0 | G8: 0 | H8: 7 | I8: =SUM(B8:H8) -> 66
A9: Cerp Litoral | D9: 3 | E9: 94 | F9: 0 | G9: 6 | H9: 20 | I9: =SUM(B9:H9) -> 123
A10: Cerp Norte | D10: 16 | E10: 108 | F10: 1 | G10: 5 | H10: 13 | I10: 143
A11: Cerp Sur | D11: 6 | E11: 77 | F11: 1 | G11: 6 | H11: 75 | I11: 165
A12: Cerp Suroeste | D12: 5 | E12: 75 | F12: 0 | G12: 23 | H12: 23 | I12: 126
A13: IFD Artigas | B13: 5 | C13: 54 | I13: 59
A14: IFD Canelones | B14: 14 | C14: 48 | I14: 62
A15: IFD Carmelo | B15: 11 | C15: 22 | I15: 33
A16: IFD de la Costa | B16: 7 | C16: 10 | I16: 17
A17: IFD Durazno | B17: 1 | C17: 30 | I17: 31
A18: IFD Florida | B18: 5 | C18: 34 | I18: 39
A19: IFD Fray Bentos | B19: 1 | C19: 13 | I19: 14
A20: IFD Maldonado | B20: 0 | C20: 38 | I20: 38
A21: IFD Melo | B21: 61 | C21: 115 | I21: 176
A22: IFD Mercedes | B22: 27 | C22: 37 | I22: 64
A23: IFD Minas | B23: 11 | C23: 33 | I23: 44
A24: IFD Pando | B24: 4 | C24: 28 | I24: 32
A25: IFD Paysandú | B25: 47 | C25: 80 | I25: 127
A26: IFD Rivera | B26: 12 | C26: 92 | I26: 104
A27: IFD Rocha | B27: 4 | C27: 11 | I27: 15
A28: IFD Rosario | B28: 0 | C28: 12 | I28: 12
A29: IFD Salto | B29: 0 | C29: 65 | I29: 65
A30: IFD San José | B30: 3 | C30: 15 | I30: 18
A31: IFD San Ramón | B31: 8 | C31: 38 | I31: 46
A32: IFD Tacuarembó | B32: 37 | C32: 50 | I32: 87
A33: IFD Treinta y Tres | B33: 42 | C33: 56 | I33: 98
A34: IFD Trinidad | B34: 6 | C34: 9 | I34: 15
A35: IINN | B35: 15 | C35: 58 | I35: 73
A36: INET | B36: 17 | C36: 0 | I36: 17
A37: IPA | B37: 84 | C37: 0 | I37: 84
A38: IFES | B38: 19 | C38: 0 | I38: 19
A39: Fuente: Consejo de Formación Docente

Sheet Cuadro 3.1.7
A1: Ministerio de Educación y Cultura Dirección de Educación
A5: BECAS DEL PROGRAMA URUGUAY ESTUDIA POR MODALIDAD SEGÚN AÑO LECTIVO. AÑO 2015
A6: AÑO | B6: TOTAL | C6: EP | D6: EMB | F6: Cursos | G6: Magisterio y Profesorado | H6: Tutorias culminación EMS | I6: Cantidad de grupos
D7: CES | E7: CETP (UTU) | F7: PUE-COCAP | I7: CES Tutoreado
A8: 2009 | B8: 533 | C8: s/d | D8: s/d | E8: 80 | F8: n/c | G8: 139 | H8: 314 | I8: n/c
A9: 2010 | B9: 2074 | C9: 937 | D9: s/d | E9: 963 | F9: n/c | G9: s/d | H9: 154 | I9: 20
A10: 2011 | B10: 2701 | C10: 1026 | D10: s/d | E10: 1406 | F10: n/c | G10: s/d | H10: 248 | I10: 21
A11: 2012 | B11: 3450 | C11: 1000 | D11: 654 | E11: 1000 | F11: 29 | G11: 600 | H11: 124 | I11: 43
A12: 2013 | B12: 4966 | C12: 899 | D12: 370 | E12: 3000 | F12: 63 | G12: 373 | H12: 261 | I12: s/d
A13: 2014 | B13: 5025 | C13: 907 | D13: 552 | E13: 3235 | F13: 31 | G13: 50 | H13: 250 | I13: sd
A14: 2015 | B14: 5097 | C14: 907 | D14: 1500 | E14: 2500 | F14: 0 | G14: 38 | H14: 220 | I14: 62
A15: Fuente Educación No Formal MEC
A16: Nota: Último dato disponible

Sheet Cuadro 3.1.8
A1: Ministerio de Educación y Cultura Dirección de Educación
A8: CANTIDAD DE BENEFICIARIOS POR EL PROGRAMA RUMBO (Todo el país -año 2016)
A10: Departamento | B10: GRUPOS | C10: MATRÍCULA
A11: Total | B11: =SUM(B12:B26) -> 47 | C11: =SUM(C12:C26) -> 1232
A12: MONTEVIDEO | B12: 13 | C12: 377
A13: ARTIGAS | B13: 2 | C13: 66
A14: CANELONES | B14: 11 | C14: 297
A15: CERRO LARGO | B15: 3 | C15: 71
A16: COLONIA | B16: =B17+B18 -> 2 | C16: 57
A17: Florida | B17: 1 | C17: 34
A18: Lavalleja | B18: 1 | C18: 25
A19: Maldonado | B19: 1 | C19: 20
A21: Paysandú | B21: 1 | C21: 21
A22: Rocha | B22: 1 | C22: 29
A23: SALTO | B23: 5 | C23: 99
A24: SAN JOSE | B24: =B25+B26 -> 3 | C24: 52
A25: SORIANO | B25: 2 | C25: 57
A26: Tacuarembó | B26: 1 | C26: 27
A27: Funte: CETP -UTU

Sheet Cuadro 3.1.9
A1: Ministerio de Educación y Cultura Dirección de Educación
A4: Cantidad de Alfabetizados digitalmente (Todo el país -año 2016)
C5: SEXO
B6: ALFABETIZADOS | C6: MUJERES | D6: HOMBRES
A7: Total | B7: =SUM(B8:B9) -> 8817 | C7: =SUM(C8:C9) -> 6190 | D7: =SUM(D8:D9) -> 2627
A8: Montevideo | B8: 565 | C8: 407 | D8: 158
A9: Resto del País | B9: =SUM( B10:B27) -> 8252 | C9: =SUM( C10:C27) -> 5783 | D9: =SUM( D10:D27) -> 2469
A10: Artigas | B10: =+C10+D10 -> 603 | C10: 437 | D10: 166
A11: Canelones | B11: 746 | C11: 568 | D11: 178
A12: Cerro Largo | B12: 604 | C12: 417 | D12: 187
A13: Colonia | B13: 411 | C13: 302 | D13: 109
A14: Durazno | B14: 477 | C14: 319 | D14: 158
A15: Flores | B15: 362 | C15: 267 | D15: 95
A16: Florida | B16: 1040 | C16: 649 | D16: 391
A17: Lavalleja | B17: 324 | C17: 239 | D17: 85
A18: Maldonado | B18: 554 | C18: 368 | D18: 186
A19: Paysandú | B19: 249 | C19: 171 | D19: 78
A20: Río Negro | B20: 168 | C20: 132 | D20: 36
A21: Rivera | B21: 333 | C21: 167 | D21: 166
A22: Rocha | B22: 736 | C22: 634 | D22: 102
A23: Salto | B23: 280 | C23: 186 | D23: 94
A24: San José | B24: 607 | C24: 411 | D24: 196
A25: Soriano | B25: 302 | C25: 194 | D25: 108
A26: Tacuarembó | B26: 108 | C26: 84 | D26: 24
A27: Treinta y Tres | B27: 348 | C27: 238 | D27: 110
A28: Fuente: Centros MEC

Sheet Cuadro 3.1.10
A1: Ministerio de Educación y Cultura Dirección de Educación
A8: PORCENTAJE DE BENEFICIARIOS DEL PROGRAMA YO ESTUDIO YO TRABAJO POR SEXO, ÁREA GEOGRÁFICA, EDAD Y NIVEL EDUCATIVO (Todo el país, año 2016)
A10: SEXO | B10: TOTAL | C10: PORCENTAJE
A11: Varón | B11: 260 | C11: 40
A12: Mujer | B12: 389 | C12: 59.85
A13: Trans | B13: 1 | C13: 0.15
A14: TOTAL | B14: 650 | C14: 100
A15: EDAD | C15: PORCENTAJE
A16: 16 años | B16: 163 | C16: 25.08
A17: 17 años | B17: 198 | C17: 30.46
A18: 18 años | B18: 143 | C18: 22
A19: 19 años | B19: 90 | C19: 13.85
A20: 20 años | B20: 52 | C20: 8
A21: 21 años | B21: 4 | C21: 0.62
A22: TOTAL | B22: 650 | C22: 100
A23: ÁREAS GEOGRÁFICAS | C23: PORCENTAJE
A24: Montevideo | B24: 307 | C24: 47.2
A25: Resto del País | B25: 343 | C25: 52.8
A26: TOTAL | B26: 650 | C26: 100
A27: NIVEL EDUCATIVO | C27: PORCENTAJE
A28: Bachillerato Liceo | B28: 304 | C28: 46.77
A29: Bachillerato UTU | B29: 133 | C29: 20.46
A30: Ciclo básico Liceo | B30: 52 | C30: 8
A31: Ciclo básico UTU | B31: 34 | C31: 5.23
A32: Educación no formal | B32: 13 | C32: 2
A33: Magisterio o Profesorado | B33: 7 | C33: 1.08
A34: Terciario no universitario | B34: 21 | C34: 3.23
A35: Universitario | B35: 86 | C35: 13.23
A36: TOTAL | B36: 650 | C36: 100
A37: AFRODESCENDENCIA | C37: PORCENTAJE
A38: No | B38: 609 | C38: 93.69
A39: Si | B39: 41 | C39: 6.31
A40: TOTAL | B40: 650 | C40: 100
A41: DISCAPACIDAD | C41: PORCENTAJE
A42: No | B42: 632 | C42: 97.23
A43: Si | B43: 18 | C43: 2.77
A44: TOTAL | B44: 650 | C44: 100
A45: Con hijos | C45: PORCENTAJE
A46: No | B46: 641 | C46: 1.384615385
A47: Si | B47: 9 | C47: 98.61538462
A48: TOTAL | B48: 650 | C48: 100
A50: Fuente: MTSS

Sheet Cuadro 3.1.11
A1: Ministerio de Educación y Cultura Dirección de Educación
A3: CANTIDAD DE BENEFICIARIOS DEL PROGRAMA JÓVENES EN RED, SEGÚN SEXO, EDAD Y ÁREA GEOGRÁFICA (Todo el país datos historicos a 2016)
A5: SEXO
A6: Varón | B6: 3189
A7: Mujer | B7: 3771
A8: TOTAL | B8: 6960
A9: EDAD
A10: Menos de 14 años | B10: 88
A11: De 14 a 16 años | B11: 2944
A12: De 17 a 19 años | B12: 2434
A13: De 20 a 22 años | B13: 1074
A14: De 23 a 24 años | B14: 397
A15: Más de 24 años | B15: 23
A16: TOTAL | B16: 6960
A17: ÁREAS GEOGRÁFICAS
A18: Montevideo | B18: 2847
A19: Resto del país | B19: 4113
A20: TOTAL | B20: 6960
A21: Fuente: Monitoreo-MIDES
A22: Nota: Se trata de la cantidad de participantes a nivel histórico a diciembre 2016

Sheet Cuadro 3.1.12
A1: Ministerio de Educación y Cultura Dirección de Educación
A6: CANTIDAD DE BENEFICIARIOS POR EL PROGRAMA FORTALECIMIENTO EDUCATIVO SEGÚN SEXO Y EDAD PARA EL PERÍODO 2014.2015
A10: SEXO | B10: 2014 | C10: 2015
A11: Varones | B11: 239 | C11: 219
A12: Mujeres | B12: 325 | C12: 301
A13: TOTAL | B13: 564 | C13: 520
A14: EDAD | B14: 2014 | C14: 2015
A15: Menores de 14 | B15: 29 | C15: 29
A16: De 14 a 29 | B16: 309 | C16: 287
A17: De 30 a 44 | B17: 103 | C17: 92
A18: De 45 a 59 | B18: 73 | C18: 66
A19: 60 y más | B19: 40 | C19: 38
A20: TOTAL | B20: *554 | C20: *512
A21: Fuente: Monitoreo-MIDES
A22: Nota: Para ambos años se registraron personas sin datos sobre edad. Último dato disponible

Sheet Cuadro 3.1.13
A1: Ministerio de Educación y Cultura Dirección de Educación
A9: CANTIDAD DE BENEFICIARIOS DEL PROGRAMA INTER - IN (Todo el país -año 2015)
A10: TOTAL | B10: 482
A12: ÁREAS
A13: Montevideo | B13: 264
A14: Canelones | B14: 218
A15: SEXO
A16: Hombre | B16: 292
A17: Mujer | B17: 190
A18: EDAD
A19: 2 | B19: 1
A20: 3 | B20: 1
A21: 4 | B21: 44
A22: 5 | B22: 91
A23: 6 | B23: 117
A24: 7 | B24: 95
A25: 8 | B25: 73
A26: 9 | B26: 29
A27: 10 | B27: 17
A28: 11 | B28: 7
A29: 12 | B29: 4
A30: 13 | B30: 1
A31: 14 | B31: 1
A33: Fuente: DINEM- División Monitoreo MIDES.
A34: Nota: Último dato disponible

Sheet Cuadro 3.1.14
A1: Ministerio de Educación y Cultura Dirección de Educación
A5: CANTIDAD DE DOCENTES Y ESTUDIANTES DEL PLAN CEIBAL POR TIPO DE INSTITUCIÓN (Todo el país año, 2016)
A7: Tipo de Institucion | B7: Docentes | C7: Estudiantes | D7: Total
A8: Aulas Comunitarias | B8: 0 | C8: 1562 | D8: =B8+C8 -> 1562
A9: CECAPS (MEC) | B9: 123 | C9: 2009 | D9: 2132
A10: Centro de Formación Docente Publico | B10: 1200 | C10: 13350 | D10: 14550
A11: Escuela Privada | B11: 33 | C11: 6214 | D11: 6247
A12: Escuela Pública | B12: 24764 | C12: 276596 | D12: 301360
A13: Escuela Pública Especial | B13: 1078 | C13: 9083 | D13: 10161
A14: Inspección | B14: 40 | C14: 96 | D14: 136
A15: Jardín Público | B15: 1537 | C15: 224 | D15: 1761
A16: Liceo Privado | B16: 66 | C16: 1192 | D16: 1258
A17: Liceo Público | B17: 12149 | C17: 252347 | D17: 264496
A18: Liceos Privados Gratuitos | B18: 97 | C18: 1133 | D18: 1230
A19: Utu | B19: 8117 | C19: 105692 | D19: 113809
A20: Total | B20: =SUM(B8:B19) -> 49204 | C20: =SUM(C8:C19) -> 669498 | D20: =SUM(D8:D19) -> 718702
A22: Fuente: Plan Ceibal
A23: Nota: A partir del 2016 se incorporan las Escuals Públicas Especiales y los Liceos Privados Gratuitos

Sheet Cuadro 3.1.15
A1: Ministerio de Educación y Cultura Dirección de Educación
A3: CANTIDAD DE EQUIPOS OTORGADOS POR PLAN CEIBAL SEGÚN TIPO DE INSTITUCIÓN (Todo el país, año 2016)
A5: TIPO DE INSTITUCIÓN | B5: CANTIDAD DE EQUIPOS | C5: CANTIDAD DE CENTROS
A6: Area Centro Ceibal | B6: 829 | C6: 128
A7: Aulas Comunitarias | B7: 447 | C7: 44
A8: Barrios De Atención Prioritaria | B8: 142 | C8: 13
A9: CECAPS (MEC) | B9: 429 | C9: 19
A10: Centro cultural | B10: 294 | C10: 73
A11: Centro De Enseñanza | B11: 6 | C11: 3
A12: Centro de Formación Docente Privado | B12: 45 | C12: 2
A13: Centro de Formación Docente Publico | B13: 1462 | C13: 63
A14: Centro de reparación | B14: 100 | C14: 33
A15: Centro Discapacitados | B15: 558 | C15: 36
A16: Centro privado | B16: 36 | C16: 4
A17: Centro público | B17: 1470 | C17: 20
A18: Centros CASI | B18: 96 | C18: 36
A19: Centros MEC | B19: 267 | C19: 101
A20: Club | B20: 110 | C20: 19
A21: Complejo Habitacional | B21: 106 | C21: 28
A22: Dependencia administrativa | B22: 1608 | C22: 28
A23: Empresa | B23: 715 | C23: 112
A24: Escuela Privada | B24: 3203 | C24: 161
A25: Escuela Pública | B25: 24375 | C25: 2643
A26: Escuela Pública Especial | B26: 968 | C26: 140
A27: Espacio Ceibal | B27: 141 | C27: 39
A28: INAU | B28: 413 | C28: 35
A29: Inspección | B29: 381 | C29: 36
A30: Jardín Privado | B30: 40 | C30: 1
A31: Jardín Público | B31: 7690 | C31: 251
A32: Liceo Privado | B32: 451 | C32: 15
A33: Liceo Público | B33: 3550 | C33: 344
A34: Liceos Privados Gratuitos | B34: 66 | C34: 4
A35: Otros | B35: 13 | C35: 5
A36: Plaza | B36: 6 | C36: 4
A37: Programas educativos | B37: 593 | C37: 38
A38: Punto Alto | B38: 43 | C38: 19
A39: Redes Prioritarias (INAU-CEIBAL) | B39: 52 | C39: 12
A40: Teaching Point | B40: 60 | C40: 14
A41: Utu | B41: 8431 | C41: 246
A42: TOTAL | B42: =SUM(B6:B41) -> 59196 | C42: =SUM(C6:C41) -> 4769
A43: Fuente: Plan Ceibal

Sheet Cuadro 3.1.16
A1: Ministerio de Educación y Cultura Dirección de Educación
A3: CANTIDAD DE CENTROS QUE PARTICIPARON EN EL PROGRAMA APRENDER TODOS (Todo el país, año 2016)
A5: Subsitema | B5: Cantidad de centros
A7: CEIP | B7: 482
A8: UTU | B8: 43
A9: CES | B9: 9
A10: CFE | B10: 23
A11: TOTAL | B11: =B7+B8+B9+B10 -> 557
A12: Fuente: Plan Ceibal

Sheet Cuadro 3.1.17
A1: Ministerio de Educación y Cultura Dirección de Educación
A3: CANTIDAD DE EQUIPOS Y LABORATORIOS TECNOLOGICOS POR SUBISTEMA (Todo el país, año 2016)
A5: SUBSISTEMA | B5: Cantidad de centros LabTeD por subsistema
A7: CES | B7: 270
A8: CETP | B8: 82
A9: TOTAL | B9: =B7+B8 -> 352
A10: SUBSISTEMA | B10: Cantidad de kits de robótica por subsistema entregados a 2016
A12: CES | B12: 2055
A13: CETP | B13: 484
A14: CEIP | B14: 1675
A15: TOTAL | B15: =B12+B13+B14 -> 4214
A16: SUBSISTEMA | B16: Cantidad de Impresoras 3D por subsistema entregados a 2016
A18: CES | B18: 53
A19: CETP | B19: 25
A20: CFE | B20: 4
A21: TOTAL | B21: =B18+B19+B20 -> 82
A22: SUBSISTEMA | B22: Cantidad de equipos de videoconferencia instaladas por susbsistema educativo al 2016
A24: CETP-UTU | B24: 110
A25: CEIP | B25: 875
A26: CES | B26: 272
A27: TOTAL | B27: =B24+B25+B26 -> 1257
A28: SUBSISTEMA | B28: Cantidad de sensores físico-químicos por subsistema entregados a 2016
A30: CES | B30: 364
A31: CETP | B31: 200
A32: CEIP | B32: 232
A33: CFE | B33: 76
A34: TOTAL | B34: =B30+B31+B32+B33 -> 872
A35: TOTAL | B35: =B9+B15+B21+B34+B27 -> 6777
A36: Fuente: Plan Ceibal

Sheet Cuadro 3.1.18
A1: Ministerio de Educación y Cultura Dirección de Educación
A4: PLATAFORMAS EN CEIBAL PARA MATEMÁTICAS E INGLÉS SEGÚN SUBSISTEMA (Todo el país, año 2016)
A6: Ceibal en Ingles
A7: SUBSISTEMA | B7: Estudiantes | C7: Grupos
A9: CEIP | B9: 80000 | C9: 3506
A10: CES/CETP-UTU | B10: 16500 | C10: 700
A11: TOTAL | B11: =B9+B10 -> 96500 | C11: =C9+C10 -> 4206
A12: Plataforma adaptativa de matemáticas
A13: SUBSISTEMA | B13: Usuarios únicos* | C13: Ejercicios**
A15: CEIP | B15: 80741 | C15: 23719161
A16: CES | B16: 34463 | C16: 8974919
A17: CETP | B17: 4068 | C17: 1730628
A18: TOTAL | B18: =B15+B16+B17 -> 119272 | C18: =SUM(C15:C17) -> 34424708
A19: Fuente: Plan Ceibal
A20: * Cantidad de usuarios registrados en 2016 por subsistema
A21: ** Cantidad de ejercicios realizados por subsistema

Sheet Cuadro 3.1.19
A1: Ministerio de Educación y Cultura Dirección de Educación
A4: CANTIDAD DE ALUMNOS CON ATENCIÓN EN ESCUELA ESPECIAL CON DOBLE ESCOLARIDAD POR TIPO DE DISCAPACIDAD Y MODALIDAD (Todo el país, año 2015)
A5: TIPO DE ESCUELA | B5: MODALIDAD | E5: TOTAL
B6: Primer Ciclo | C6: Talleres | D6: Talleres y otros grupos
A7: Discapacidad Intelectual | B7: 275 | C7: 129 | D7: 187 | E7: 591
A8: Trastorno Grave de Conducta | B8: 31 | C8: 26 | D8: 1 | E8: 58
A9: TEA-TGD | B9: 22 | C9: 5 | D9: 2 | E9: 29
A10: Discapacidad Auditiva | B10: 3 | E10: 3
A11: Discapacidad Visual | B11: 15 | C11: 12 | D11: 1 | E11: 28
A12: Discapacidad Motriz | B12: 31 | D12: 3 | E12: 34
A13: RURALES | D13: 4 | E13: 4
A14: TOTAL | E14: 747
A15: Fuente: CEIP. Inspección Educación Especial
A16: Nota: Último dato disponible

Sheet Cuadro 3.1.20
F1: Ministerio de Educación y Cultura Dirección de Educación
F4: CANTIDAD DE ALUMNOS CON APOYO EN LAS ESCUELAS ESPECIALES Y ESCOLARIZACIÓN COMPARTIDA POR NIVEL Y MODADLIDAD (Todo el País, año 2015)
G6: NIVEL
F7: MODALIDAD DE ESCUELA | G7: Jardín de Infantes | H7: Primer Ciclo | I7: Segundo Ciclo | J7: Tercer Ciclo | K7: TOTAL
F8: APRENDER | H8: 145 | I8: 142 | J8: 40 | K8: 327
F9: Comunes | H9: 200 | I9: 129 | J9: 46 | K9: 375
F10: Práctica | H10: 98 | I10: 61 | J10: 11 | K10: 170
F11: Tiempo Completo | H11: 77 | I11: 26 | J11: 9 | K11: 112
F12: Tiempo Extendido | H12: 11 | I12: 23 | J12: 5 | K12: 39
F13: Rurales | H13: 3 | J13: 1 | K13: 4
F14: Jardín de Infantes | G14: 61 | K14: 61
F15: TOTAL | G15: 61 | H15: 534 | I15: 381 | J15: 112 | K15: 1088
F16: Fuente: CEIP. Inspección de Educación Especial
F17: Nota: último dato disponible

Sheet Cuadro 3.1.21
A1: Ministerio de Educación y Cultura Dirección de Educación
A5: CANTIDAD DE ESTUDIANTES DE DIVERSAS SUB-ÁREAS APOYADOS EN ESCUELAS CENTROS DE ZONA (Todo el País, año 2015)
A6: Por escuelas | B6: NIVEL | F6: TOTAL
B7: Inicial | C7: Primer Ciclo | D7: Segundo Ciclo | E7: Tercer Ciclo
A8: Discapacidad Intelectual | C8: 131 | D8: 39 | E8: 42 | F8: 212
A9: Discapacidad Visual | B9: 4 | C9: 10 | D9: 3 | E9: 2 | F9: 19
A10: Discapacidad Motriz | B10: 7 | C10: 12 | D10: 2 | E10: - | F10: 21
A11: Trastorno Grave de Conducta | C11: 137 | D11: 18 | E11: 22 | F11: 177
A12: TEA-TGD | B12: 13 | C12: 30 | D12: 20 | E12: 8 | F12: 71
A13: Discapacidad Auditiva | B13: 39 | C13: 115 | D13: 18 | E13: 10 | F13: 182
A14: TOTAL | B14: 63 | C14: 435 | D14: 100 | E14: 84 | F14: 682
A15: Fuente: CEIP. Inspección de Educación Especial
A16: Nota: último dato disponible

Sheet Cuadro 3.1.22
A1: Ministerio de Educación y Cultura Dirección de Educación
A5: ESTUDIANTES ITINERADOS EN ESCUELAS DONDE SE ENCUENTRAN INSCRIPTOS POR TIPO DE DISCAPACIDAD Y NIVEL. (Todo el país, año 2015)
A6: TIPO DE ESCUELA | C6: NIVEL | G6: TOTAL
C7: Inicial | D7: Primer ciclo | E7: Segundo ciclo | F7: Tercer ciclo
A8: ESTUDIANTES CON DISCAPACIDAD INTELECTUAL
A9: APRENDER | C9: 27 | D9: 409 | E9: 129 | F9: 31 | G9: =SUM(C9:F9) -> 596
A10: Comunes | C10: 7 | D10: 538 | E10: 273 | F10: - | G10: 818
A11: Práctica | D11: 139 | E11: 67 | F11: 39 | G11: 245
A12: Tiempo Completo | C12: 20 | D12: 139 | E12: 107 | F12: 12 | G12: 278
A13: Tiempo extendido | D13: 34 | E13: 32 | F13: 8 | G13: 74
A14: Jardín de Infantes | C14: 169 | G14: 169
A15: TOTAL | C15: =SUM(C9:C14) -> 223 | D15: =SUM(D9:D13) -> 1259 | E15: =SUM(E9:E13) -> 608 | F15: =SUM(F9:F13) -> 90 | G15: =SUM(G9:G14) -> 2180
A16: ESTUDIANTES SORDOS ITINERADOS (*) Implantado
A17: Práctica | D17: 1 | E17: 1(*) | F17: 1(*) | G17: 3
A18: Común | D18: 3 | E18: 2 | F18: 3 | G18: 8
A19: TOTAL | D19: =D17+D18 -> 4 | E19: 3 | F19: 4 | G19: 11
A20: ITINERADOS CON TRASTORNOS AFECTIVOS-SOCIALES
A21: APRENDER | D21: 41 | E21: 49 | F21: 12 | G21: 102
A22: Comunes | D22: 87 | E22: 79 | F22: 23 | G22: 189
A23: Práctica | D23: 4 | G23: 4
A24: TOTAL | D24: =SUM(D21:D23) -> 132 | E24: =SUM(E21:E23) -> 128 | F24: =SUM(F21:F23) -> 35 | G24: 295
A25: ITINERADOS CON TGD –TEA
A26: APRENDER | D26: 79 | E26: 23 | F26: 7 | G26: 109
A27: Comunes | D27: 21 | E27: 10 | F27: 11 | G27: 42
A28: Práctica | D28: 12 | E28: - | F28: - | G28: 12
A29: Tiempo Completo | D29: 8 | E29: 5 | F29: 3 | G29: 16
A30: Tiempo Extendido | D30: 12 | E30: 4 | F30: 3 | G30: 19
A31: Educación Especial | D31: 14 | E31: 5 | F31: 2 | G31: 21
A32: Jardín de Infantes | B32: 23 | G32: 23
A33: TOTAL | B33: 23 | D33: 146 | E33: 47 | F33: 26 | G33: 242
A34: NIÑOS ITINERADOS CON DISCAPACIDAD VISUAL
A35: APRENDER | B35: 3 | D35: 9 | E35: 5 | F35: 4 | G35: 21
A36: Comunes | B36: 6 | D36: 12 | E36: 11 | F36: 8 | G36: 37
A37: Práctica | B37: 1 | D37: 9 | E37: 3 | F37: 7 | G37: 20
A38: Tiempo Completo | D38: 3 | G38: 3
A39: Jardín de Infantes | B39: 1 | G39: 1
A40: TOTAL | C40: =B35+B36+B37+B38+B39 -> 11 | D40: =SUM(D35:D39) -> 33 | E40: =SUM(E35:E39) -> 19 | F40: =SUM(F35:F39) -> 19 | G40: 82
A41: NIÑOS ITINERADOS CON DISCAPACIDAD MOTRIZ
A42: Comunes | B42: 7 | D42: 37 | E42: 24 | F42: 5 | G42: 73
A43: APRENDER | B43: 3 | G43: 3
A44: TOTAL | B44: 10 | D44: 37 | E44: 24 | F44: 5 | G44: 76
A45: TOTAL GENERAL | C45: =B44+C40+B33+C15 -> 267 | D45: =D15+D19+D24+D33+D40+D44 -> 1611 | E45: =E15+E19+E24+E33+E40+E44 -> 829 | F45: =F15+F19+F24+F33+F40+F44 -> 179 | G45: =G44+G40+G33+G24+G19+G15 -> 2886
A46: Fuente: CEIP. Inspeccion de Educación Especial
A47: Nota: Último dato disponible

Sheet Cuadro 3.1.23
A1: Ministerio de Educación y Cultura Dirección de Educación
A3: CANTIDAD DE NIÑOS ATENDIDOS POR MAESTROS DE APOYO POR CICLO Y TIPO DE ESCUELA. (Todo el país, año 2015)
A4: TIPO DE ESCUELA | B4: CICLO | E4: Total
B5: En primer ciclo | C5: En segundo ciclo | D5: En tercer ciclo
A6: APRENDER | B6: 2439 | C6: 931 | D6: 324 | E6: 3694
A7: Comunes | B7: 1488 | C7: 505 | D7: 122 | E7: 2115
A8: Práctica | B8: 291 | C8: 64 | D8: 23 | E8: 378
A9: Tiempo Completo | B9: 139 | C9: 39 | D9: 25 | E9: 203
A10: Tiempo Extendido | B10: 30 | C10: 17 | D10: 12 | E10: 59
A11: Rurales | B11: 5 | C11: - | D11: - | E11: 5
A12: Jardín de Infantes | B12: 122 | C12: - | D12: - | E12: 122
A13: TOTAL | B13: 4514 | C13: 1556 | D13: 506 | E13: 6576
A14: Fuente: CEIP. Inspeccion de Educación Especial
A15: Nota: Último dato disponible

Sheet Cuadro 3.1.24.
A1: Ministerio de Educación y Cultura Dirección de Educación
A4: TOTAL DE ESTUDIANTES ATENDIDOS EN EDUCACIÓN ESPECIAL POR TIPO DE MODALIDAD (Todo el país, año 2015)
A6: MODALIDAD | B6: CANTIDAD DE ESTUDIANTES
A7: Aulas Hospitalarias | B7: 197
A8: Doble Escolaridad –Escolaridad Compartida | B8: 1835
A9: Apoyo en escuelas de centros de zona (*) | B9: 682
A10: Itinerado | B10: 2886
A11: Apoyo en escuela común – inicial -práctica, etc | B11: 6576
A12: TOTAL | B12: 12176
A13: Estudiantes matriculados en escuelas especiales * | B13: 6437
A14: TOTAL DE NIÑO/AS ATENDIDOS POR EDUCIÓN ESPECIAL | B14: =B12+B13 -> 18613
A15: Fuente: CEIP Inspeccion de Educación Especial
A16: Nota: CEIP Inspección de Educación Especial 12.176 último dato disponible 2015.
A18: *Procesamiento propio en base a los datos 2016 del CEIP.

Sheet Cuadro 3.1.25
A1: Ministerio de Educación y Cultura Dirección de Educación
A3: CANTIDAD DE JÓVENES ATENDIDOS EN INISA POR SEXO Y EDAD (Todo el país año 2016)
A4: EDAD | B4: SEXO | D4: TOTAL
B5: Femenino | C5: Masculino
A6: 13 años | B6: 1 | C6: 8 | D6: 9
A7: 14 años | B7: 3 | C7: 42 | D7: 45
A8: 15 años | B8: 14 | C8: 124 | D8: 138
A9: 16 años | B9: 20 | C9: 207 | D9: 227
A10: 17 años | B10: 25 | C10: 348 | D10: 373
A11: 18 años | B11: 19 | C11: 323 | D11: 342
A12: 19 años | B12: 7 | C12: 165 | D12: 172
A13: 20 años | B13: 0 | C13: 28 | D13: 28
A14: 21 años | B14: 0 | C14: 15 | D14: 15
A15: 22 años | B15: 0 | C15: 9 | D15: 9
A16: Total | B16: 89 | C16: 1269 | D16: 1358
A17: Fuente: Instituto Nacional de Inclusión Adolescente
A18: Nota: Se incluye la totalidad de la población atendida con medida socio-educativa privativa de libertad, semi-libertad y no privativa de libertad (PROMESEM y ONG en convenio), que fueron atendidos en el año 2016.

Sheet Cuadro 3.1.26
A1: Ministerio de Educación y Cultura Dirección de Educación
A3: Programa Aprender Siempre (PAS) por tipo de actividad y cantidad de propuestas. Año 2016
B5: Cantidad de propuestas | C5: Cantidad de Participantes
A6: CURSOS EN CENTROS DE PRIVACIÓN DE LIBERTAD
A7: INR
A8: Primer semestre | B8: 13 | C8: 195
A9: Segundo semestre | B9: 14 | C9: 204
A10: TOTAL | B10: =B8+B9 -> 27 | C10: =C8+C9 -> 399
A11: INISA
A12: Primer semestre | B12: 2 | C12: 21
A13: Segundo semestre | B13: 6 | C13: 57
A14: TOTAL | B14: =B12+B13 -> 8 | C14: =C12+C13 -> 78
A15: CURSOS EN COMUNIDAD
A16: Primer semestre | B16: 9 | C16: 124
A17: Segundo semestre | B17: 16 | C17: 213
A18: TOTAL | B18: =B16+B17 -> 25 | C18: =C16+C17 -> 337

Sheet Cuadro 3.1.27
A1: Ministerio de Educación y Cultura Dirección de Educación
A4: Programa ESQUINAS DEL MAÑANA 2016
A6: CANTIDAD DE ESTUDIANTES
A7: FEMENINO | B7: 23
A8: MASCULINO | B8: 41
A9: TOTAL | B9: 64
A12: DOCENTES
A13: FEMNINO | B13: 2
A14: MASCULINO | B14: 3
A15: TOTAL | B15: 5
A16: CANTIDAD DE TALLERES
A17: MONTEVIDEO | B17: 4
A18: CANELONES | B18: 1
A19: TOTAL | B19: 5
A20: EGRESADOS
A21: FEMENINO | B21: 10
A22: MASCULINO | B22: 16
A24: TOTAL | B24: 26
A26: Fuente Ministerio de Industria, Energia y Minería . Unidad de Comunicación Institucional

Sheet Cuadro 3.1.28
A1: Ministerio de Educación y Cultura Dirección de Educación
A3: CANTIDAD DE BENEFICIARIOS DEL PROGRAMA AULAS COMUNITARIAS, SEGÚN SEXO, EDAD Y ÁREA GEOGRÁFICA (Todo el país datos historicos a 2016)
A5: SEXO
A6: Varón | B6: 648
A7: Mujer | B7: 951
A8: TOTAL | B8: 1599
A9: EDAD
A10: 12 a 13 años | B10: 320
A11: 14 a 15 años | B11: 912
A12: 16 a 17 años | B12: 357
A13: 18 y más años | B13: 10
A14: TOTAL | B14: 1599
A15: ÁREAS GEOGRÁFICAS
A16: Montevideo | B16: 1022
A17: Resto del país | B17: 577
A18: TOTAL | B18: 1599
A19: MODALIDAD
A20: Modalidad A | B20: 607
A21: Modalidad B | B21: 308
A22: Modalidad C | B22: 684
A23: TOTAL | B23: 1599
A24: Fuente: Monitorio-DINEM. MIDES

Sheet Cuadro 3.1.29
A1: Ministerio de Educación y Cultura Dirección de Educación
A4: PORCENTAJE DE INSCRIPTOS SEGÚN SEXO, CANTIDAD DE EGRESADOS POR NIVEL DE SECUNDARIA, Y EDAD PROMEDIO DE EDAD SEGÚN ORGANISMO AL PROGRAMA DE CULMINACIÓN DE EDUCACIÓN MEDIA (PROCES). TODO EL PAÍS (AÑO 2016)
A6: ORGANISMO | B6: SEXO | D6: EDAD PROMEDIO | E6: NIVEL DE SECUNDARIA
B7: PORCENTAJE DE MUJERES | C7: PORCENTAJE DE VARONES | E7: EGRESADOS DE CICLO BÁSICO | F7: EGRESADOS DE BACHILLERATO
A9: Administración Nacional de Correos (ANC) | B9: 0.73 | C9: 0.27 | D9: 37 | E9: 17 | F9: 24
A10: Administración Nacional de Puertos (ANP) | B10: 0.44 | C10: 0.56 | D10: 35 | E10: 4 | F10: 0
A11: Administración Nacional de Telecomunicaciones (ANTEL) | B11: 0.46 | C11: 0.54 | D11: 33 | E11: 19 | F11: 332
A12: Administración Nacionl de Educación Pública (ANEP) | B12: 0.66 | C12: 0.34 | D12: 36 | E12: 73 | F12: 263
A13: Banco de Previsión Social (BPS) | B13: 0.72 | C13: 0.28 | D13: 48 | E13: 0 | F13: 12
A14: Banco de Seguros del Estado (BSE) | B14: 0.64 | C14: 0.36 | D14: 42 | E14: 0 | F14: 38
A15: Dirección General Impositiva (DGI) | B15: 0 | C15: 1 | D15: 42 | E15: 0 | F15: 1
A16: Empresa BIMBO | B16: 0.15 | C16: 0.85 | D16: 36 | E16: 19 | F16: 8
A17: Hospital Maciel | B17: 0.98 | C17: 0.02 | D17: 39 | E17: 0 | F17: 7
A18: INIA | B18: s/d | C18: s/d | D18: s/d | E18: 51 | F18: 0
A19: Instituto del Niño y el Adolscente (INAU) | B19: 0.42 | C19: 0.58 | D19: 36 | E19: 127 | F19: 0
A20: Intendencia de Montevideo (IM) | B20: 0.35 | C20: 0.65 | D20: 34 | E20: 72 | F20: 259
A21: Intendencia de Rocha | B21: 0.57 | C21: 0.43 | D21: 45 | E21: 78 | F21: 100
A22: Intendencia y Junta Departamental de Canelones | B22: 0.49 | C22: 0.51 | D22: 37 | E22: 3 | F22: 0
A23: Ministerio de Defensa Nacional (MDN) | B23: 0.83 | C23: 0.17 | D23: 31 | E23: 1 | F23: 57
A24: Ministerio de Desarrollo Social (MIDES) | B24: 0.7 | C24: 0.3 | D24: 39 | E24: 22 | F24: 0
A25: Ministerio de Educación y Cultura (MEC) | B25: 0.74 | C25: 0.26 | D25: 41 | E25: 0 | F25: 39
A26: Ministerio de Transporte y Obras Públicas (MTOP) | B26: 0.57 | C26: 0.43 | D26: 43 | E26: 1 | F26: 17
A27: SAME 105 | B27: 0 | C27: 1 | D27: 42 | E27: 0 | F27: 1
A28: Sede Paysandú (ANTEL, COMEPA, MTOP, ANEP, UdelaR, IdeP) | B28: 0.67 | C28: 0.33 | D28: 38 | E28: 0 | F28: 92
A29: Semipresencial | B29: 0.59 | C29: 0.41 | D29: 42 | E29: 10 | F29: 89
A30: Universidad de la República (UdelaR) | B30: 0.58 | C30: 0.42 | D30: 41 | E30: 37 | F30: 124
A31: Fuente: PROCES. ANEP
A32: Nota: INIA no presenta dato por que se desarrolló en los años 2009 -2011

Sheet Cuadro 3.1.30
A1: Ministerio de Educación y Cultura Dirección de Educación
A3: CANTIDAD DE JUGADORES DE LAS SUBDIVISIONES FORMATIVAS SEGÚN CONDICIÓN DE ESTUDIANTE (Todo el país, año 2016)
A5: CONDICIÓN DE ESTUDIANTE | B5: Cantidad de centros
A7: Estudian | B7: 2761
A8: No estudian | B8: 441
A9: Sin Relevar | B9: 23
A10: TOTAL | B10: =B7+B8+B9 -> 3225
A11: Fuente: Gol al futuro

Sheet Cuadro 3.1.31
A1: Ministerio de Educación y Cultura Dirección de Educación
A3: CANTIDAD DE BECAS OTORGADAS POR LA ANII POR TIPO DE BECA POR SEXO, MONTO Y REGIÓN (Todo el país, año 2016)
B5: TOTAL | C5: Monto comprometido (U$S) | D5: SEXO | F5: DEPARTAMENTO
A6: TIPO DE BECA | D6: Masculino | E6: Femenino | F6: Montevideo | G6: Sin Dato
A7: Movilidad Cooperación | B7: 17 | C7: 83011 | D7: 12 | E7: 5 | F7: 15 | G7: 2
A8: Movilidad Capacitación | B8: 26 | C8: 177782 | D8: 7 | E8: 19 | F8: 20 | G8: 6
A9: Totales | B9: 43 | C9: 260793 | D9: 19 | E9: 24 | F9: 35 | G9: 8
A10: Fuente: ANII.

Sheet Cuadro 3.1.32
A1: Ministerio de Educación y Cultura Dirección de Educación
A3: CANTIDAD DE BECAS OTORGADAS POR BIENESTAR UNIVERSITARIO SEGÚN TIPO DE BECA (Todo el país, año 2016)
B5: TOTAL
A6: TIPO DE BECA
A7: Apoyo Económico | B7: 303
A8: Alojamiento | B8: 68
A9: MVOTMA | B9: 144
A10: Servicio de comedor | B10: 1995
A11: Bonificación de Pasajes del Interior | B11: 1471
A12: TOTAL | B12: 3981
A13: Fuente: Bienestar Universitario.

Sheet Cuadro 3.1.33
A1: Ministerio de Educación y Cultura Dirección de Educación
A3: CANTIDAD DE BECAS DE INCLUSIÓN SOCIOEDUCATIVA (BIS). Todo el país, año 2015
B5: TOTAL
A7: Cantidad | B7: 370
A8: Fuente: Sistema de Cuidados, MIDES.

Sheet Cuadro 3.1.34
A1: Ministerio de Educación y Cultura Dirección de Educación
A4: CANTIDAD DE BECAS OTORGADAS POR FUNDACIÓN CHAMANGÁ SEGÚN DEPARTAMENTO (Todo el país, año 2016)
B6: TOTAL
A7: TIPO DE BECA
A8: Artigas | B8: 2
A9: Canelones | B9: 2
A10: Cerro Largo | B10: 1
A11: Colonia | B11: 1
A12: Florida | B12: 1
A13: Lavalleja | B13: 2
A14: Montevideo | B14: 3
A15: Paysandú | B15: 2
A16: Río Negro | B16: 1
A17: Rivera | B17: 1
A18: Salto | B18: 1
A19: Soriano | B19: 3
A20: San José | B20: 1
A21: Tacuarembó | B21: 1
A22: TOTAL | B22: =SUM(B8:B21) -> 22

Sheet Cuadro 3.1.35
A1: Ministerio de Educación y Cultura Dirección de Educación
A3: CANTIDAD DE PLAZAS OFRECIDAS DE EDUCACIÓN FORMAL PARA POBLACIÓN PRIVADA DE LIBERTAD POR UNIDAD PENITENCIARIA SEGÚN NIVEL Y SEXO. AÑO 2016
A4: UNIDADES PENITENCIARIAS | B4: TOTAL | C4: SEXO | E4: PRIMARIA | G4: TOTAL PRIMARIA | H4: SECUNDARIA | J4: TOTAL SECUNDARIA | K4: TERCIARIA | M4: TOTAL TERCIARIA | N4: UTU | P4: TOTAL UTU
C5: MASCULINO | D5: FEMENINO | E5: MASCULINO | F5: FEMENINO | H5: MASCULINO | I5: FEMENINO | K5: MASCULINO | L5: FEMENINO | N5: MASCULINO | O5: FEMENINO
A6: TOTAL | B6: =SUM(B7:B29) -> 2718 | C6: =SUM(C7:C29) -> 2458 | D6: =SUM(D7:D29) -> 260 | E6: =SUM(E7:E13,E15:E16,E18:E29) -> 454 | F6: =SUM(F7:F13,F15:F16,F18:F29) -> 48 | G6: =SUM(G7:G29) -> 502 | H6: =SUM(H7:H29) -> 1828 | I6: =SUM(I7:I29) -> 179 | J6: =SUM(J7:J29) -> 2007 | K6: =SUM(K7:K16,K19:K29) -> 8 | L6: =SUM(L7:L16,L19:L29) -> 4 | M6: =K6+L6 -> 12 | N6: =SUM(N7:N29) -> 168 | O6: =SUM(O7:O29) -> 29 | P6: =N6+O6 -> 197
A7: UNID. N°3 LIBERTAD | B7: =C7+D7 -> 452 | C7: =E7+H7+K7+N7 -> 452 | D7: =F7+I7+L7+O7 -> 0 | E7: 62 | F7: 0 | G7: =E7+F7 -> 62 | H7: 389 | I7: 0 | J7: =H7+I7 -> 389 | K7: 1 | L7: 0 | M7: =K7+L7 -> 1 | N7: 0 | O7: 0 | P7: =N7+O7 -> 0
A8: UNID. N°4 SANTIAGO VÁZQUEZ | B8: =C8+D8 -> 469 | C8: =E8+H8+K8+N8 -> 469 | D8: =F8+I8+L8+O8 -> 0 | E8: 141 | F8: 0 | G8: =E8+F8 -> 141 | H8: 325 | I8: 0 | J8: =H8+I8 -> 325 | K8: 3 | L8: 0 | M8: =K8+L8 -> 3 | N8: 0 | O8: 0 | P8: =N8+O8 -> 0
A9: UNID. N°5 FEMENINO | B9: 160 | C9: 0 | D9: 160 | E9: 0 | F9: 29 | G9: 29 | H9: 0 | I9: 110 | J9: 110 | K9: 0 | L9: 2 | M9: 2 | N9: 0 | O9: 19 | P9: =N9+O9 -> 19
A10: UNID. N°6 PUNTA DE RIELES | B10: 220 | C10: 218 | D10: 2 | E10: 16 | F10: 0 | G10: 16 | H10: 202 | I10: 0 | J10: 202 | K10: 0 | L10: 2 | M10: 2 | N10: 0 | O10: 0 | P10: 0
A11: UNID. N°7 CANELONES | B11: 288 | C11: 288 | D11: 0 | E11: 67 | F11: 0 | G11: 67 | H11: 181 | I11: 0 | J11: 181 | K11: 0 | L11: 0 | M11: 0 | N11: 40 | O11: 0 | P11: 40
A12: UNID. N°9 EL MOLINO | B12: 1 | C12: 0 | D12: 1 | E12: 0 | F12: 1 | G12: 1 | H12: 0 | I12: 0 | J12: 0 | K12: 0 | L12: 0 | M12: 0 | N12: 0 | O12: 0 | P12: 0
A13: UNID. N°10 JUAN SOLER | B13: 62 | C13: 62 | D13: 0 | E13: 8 | F13: 0 | G13: 8 | H13: 54 | I13: 0 | J13: 54 | K13: 0 | L13: 0 | M13: 0 | N13: 0 | O13: 0 | P13: 0
A14: UNIDAD N°11 TACUABÉ-SALTO | B14: 3 | C14: =H14+K14+N14 -> 2 | D14: =I14+L14+O14 -> 1 | E14: S/D | F14: S/D | G14: 0 | H14: 2 | I14: 1 | J14: 3 | K14: 0 | L14: 0 | M14: 0 | N14: 0 | O14: 0 | P14: 0
A15: UNIDAD N°12 CERRO CARANCHO | B15: 107 | C15: =E15+H15+K15+N15 -> 97 | D15: =F15+I15+L15+O15 -> 10 | E15: 33 | F15: 3 | G15: 36 | H15: 64 | I15: 7 | J15: 71 | K15: 0 | L15: 0 | M15: 0 | N15: 0 | O15: 0 | P15: 0
A16: UNIDAD N°13 LAS ROSAS-MALDONADO | B16: 293 | C16: =E16+H16+K16+N16 -> 271 | D16: =F16+I16+L16+O16 -> 22 | E16: 14 | F16: 1 | G16: 15 | H16: 140 | I16: 11 | J16: 151 | K16: 4 | L16: 0 | M16: 4 | N16: 113 | O16: 10 | P16: 123
A17: UNIDAD N°14 PIEDRA DE LOS INDIOS | B17: 0 | C17: 0 | D17: =0 -> 0 | E17: S/D | F17: S/D | G17: 0 | H17: S/D | I17: S/D | J17: 0 | K17: S/D | L17: S/D | M17: 0 | N17: S/D | O17: S/D | P17: 0
A18: UNIDAD N°15 CONVENTOS-CERRO LARGO | B18: 33 | C18: =E18+H18 -> 30 | D18: =F18+I18 -> 3 | E18: 7 | F18: 0 | G18: 7 | H18: 23 | I18: 3 | J18: 26 | K18: S/D | L18: S/D | M18: 0 | N18: S/D | O18: S/D | P18: 0
A19: UNIDAD N°16 PAYSANDÚ | B19: 63 | C19: =E19+H19+K19+N19 -> 51 | D19: 12 | E19: 19 | F19: 6 | G19: 25 | H19: 32 | I19: 6 | J19: 38 | K19: 0 | L19: 0 | M19: 0 | N19: 0 | O19: 0 | P19: 0
A20: UNIDAD N°17 CAMPANERO-LAVALLEJA | B20: 78 | C20: 75 | D20: 3 | E20: 0 | F20: 0 | G20: 0 | H20: 60 | I20: 3 | J20: 63 | K20: 0 | L20: 0 | M20: 0 | N20: 15 | O20: 0 | P20: 15
A21: UNIDAD N°18 DURAZNO | B21: 43 | C21: 43 | D21: 0 | E21: 11 | F21: 0 | G21: 11 | H21: 32 | I21: 0 | J21: 32 | K21: 0 | L21: 0 | M21: 0 | N21: 0 | O21: 0 | P21: 0
A22: UNIDAD N°19 LAS CAÑITAS RIO NEGRO | B22: 48 | C22: 44 | D22: 4 | E22: 9 | F22: 0 | G22: 9 | H22: 35 | I22: 4 | J22: 39 | K22: 0 | L22: 0 | M22: 0 | N22: 0 | O22: 0 | P22: 0
A23: UNIDAD N°20 SALTO | B23: 79 | C23: 73 | D23: 6 | E23: 33 | F23: 1 | G23: 34 | H23: 40 | I23: 5 | J23: 45 | K23: 0 | L23: 0 | M23: 0 | N23: 0 | O23: 0 | P23: 0
A24: UNIDAD N° 21 ARTIGAS | B24: 15 | C24: 14 | D24: 1 | E24: 0 | F24: 0 | G24: 0 | H24: 14 | I24: 1 | J24: 15 | K24: 0 | L24: 0 | M24: 0 | N24: 0 | O24: 0 | P24: 0
A25: UNIDAD N° 22 ROCHA | B25: 25 | C25: 25 | D25: 0 | E25: 6 | F25: 0 | G25: 6 | H25: 19 | I25: 0 | J25: 19 | K25: 0 | L25: 0 | M25: 0 | N25: 0 | O25: 0 | P25: 0
A26: UNIDAD N° 23 TREINTA Y TRES | B26: 36 | C26: 33 | D26: 3 | E26: 3 | F26: 0 | G26: 3 | H26: 30 | I26: 3 | J26: 33 | K26: 0 | L26: 0 | M26: 0 | N26: 0 | O26: 0 | P26: 0
A27: UNIDAD N° 24 "PENSE" MERCEDES/ SORIANO | B27: 148 | C27: 129 | D27: 19 | E27: 9 | F27: 4 | G27: 13 | H27: 120 | I27: 15 | J27: 135 | K27: 0 | L27: 0 | M27: 0 | N27: 0 | O27: 0 | P27: 0
A28: UNIDAD N° 26 TACUAREMBÓ | B28: 52 | C28: 41 | D28: 11 | E28: 9 | F28: 3 | G28: 12 | H28: 32 | I28: 8 | J28: 40 | K28: 0 | L28: 0 | M28: 0 | N28: 0 | O28: 0 | P28: 0
A29: UNIDAD N.º 29 FLORIDA | B29: 43 | C29: 41 | D29: 2 | E29: 7 | F29: 0 | G29: 7 | H29: 34 | I29: 2 | J29: 36 | K29: 0 | L29: 0 | M29: 0 | N29: 0 | O29: 0 | P29: 0
A30: Fuente: INR

Sheet Cuadro 3.1.36
A1: Ministerio de Educación y Cultura Dirección de Educación
A3: CANTIDAD DE PLAZAS OFRECIDAS DE EDUCACIÓN FORMAL PARA POBLACIÓN PRIVADA DE LIBERTAD POR UNIDAD PENITENCIARIA SEGÚN NIVEL Y SEXO. AÑO 2016
A4: UNIDADES PENITENCIARIAS | B4: TOTAL | C4: SEXO | E4: PROGRAMA URUGUAY ESTUDIA | G4: TOTAL PROGRAMA URUGUAY ESTUDIA | H4: DSEA NO FORMAL | J4: TOTAL DSEA NO FORMAL | K4: MEC PAS | M4: TOTAL MEC PAS | N4: MEC CIUDADANIA CULTURAL | P4: TOTAL MEC CIUDADANIA CULTURAL | Q4: CENTRO MEC | S4: TOTAL CENTRO MEC | T4: NO FORMAL OTROS | V4: TOTAL NO FORMAL OTROS | W4: PROYECTOS EDUCATIVOS | Y4: TOTAL PROYECTOS EDUCATIVOS
C5: MASCULINO | D5: FEMENINO | E5: MASCULINO | F5: FEMENINO | H5: MASCULINO | I5: FEMENINO | K5: MASCULINO | L5: FEMENINO | N5: MASCULINO | O5: FEMENINO | Q5: MASCULINO | R5: FEMENINO | T5: MASCULINO | U5: FEMENINO | W5: MASCULINO | X5: FEMENINO
A6: TOTAL | B6: =SUM(B7:B29) -> 1526 | C6: =SUM(C7:C29) -> 1079 | D6: =SUM(D7:D29) -> 447 | E6: 0 | F6: 0 | G6: 0 | H6: 171 | I6: 130 | J6: 301 | K6: 170 | L6: 24 | M6: 194 | N6: 30 | O6: 0 | P6: 30 | Q6: 55 | R6: 110 | S6: 165 | T6: 550 | U6: 150 | V6: 700 | W6: 103 | X6: 33 | Y6: =SUM(Y7:Y29) -> 136
A7: UNID. N°3 LIBERTAD | B7: =C7+D7 -> 0 | C7: =E7+H7+K7+N7+Q7+T7+W7 -> 0 | D7: =F7+I7+L7+O7+R7+U7+X7 -> 0 | E7: 0 | F7: 0 | G7: =E7+F7 -> 0 | H7: 0 | I7: 0 | J7: 0 | K7: 0 | L7: 0 | M7: 0 | N7: 0 | O7: 0 | P7: =0 -> 0 | Q7: 0 | R7: 0 | S7: 0 | T7: 0 | U7: 0 | V7: 0 | W7: 0 | X7: 0 | Y7: 0
A8: UNID. N°4 SANTIAGO VÁZQUEZ | B8: =C8+D8 -> 111 | C8: =E8+H8+K8+N8+Q8+T8+W8 -> 111 | D8: =F8+I8+O8+U8 -> 0 | E8: 0 | F8: 0 | G8: =E8+F8 -> 0 | H8: 45 | I8: 0 | J8: =H8+I8 -> 45 | K8: 0 | L8: 0 | M8: 0 | N8: 30 | O8: 0 | P8: =N8+O8 -> 30 | Q8: 0 | R8: 0 | S8: 0 | T8: 36 | U8: 0 | V8: =T8+U8 -> 36 | W8: 0 | X8: 0 | Y8: 0
A9: UNID. N°5 FEMENINO | B9: 319 | C9: 0 | D9: =F9+I9+L9+O9+R9+U9+X9 -> 319 | E9: 0 | F9: 0 | G9: 0 | H9: 0 | I9: 99 | J9: =H9+I9 -> 99 | K9: 0 | L9: 0 | M9: 0 | N9: 0 | O9: 0 | P9: 0 | Q9: 0 | R9: 106 | S9: =Q9+R9 -> 106 | T9: 0 | U9: 114 | V9: =T9+U9 -> 114 | W9: 0 | X9: 0 | Y9: =W9+X9 -> 0
A10: UNID. N°6 PUNTA DE RIELES | B10: 311 | C10: 311 | D10: 0 | E10: 0 | F10: 0 | G10: 0 | H10: 16 | I10: 0 | J10: 16 | K10: 20 | L10: 0 | M10: =K10+L10 -> 20 | N10: 0 | O10: 0 | P10: =N10+O10 -> 0 | Q10: 0 | R10: 0 | S10: =Q10+R10 -> 0 | T10: 225 | U10: 0 | V10: 225 | W10: 50 | X10: 0 | Y10: =W10+X10 -> 50
A11: UNID. N°7 CANELONES | B11: 119 | C11: 119 | D11: 0 | E11: 0 | F11: 0 | G11: 0 | H11: 23 | I11: 0 | J11: 23 | K11: 47 | L11: 0 | M11: =K11+L11 -> 47 | N11: 0 | O11: 0 | P11: =N11+O11 -> 0 | Q11: 0 | R11: 0 | S11: 0 | T11: 44 | U11: 0 | V11: 44 | W11: 5 | X11: 0 | Y11: =W11+X11 -> 5
A12: UNID. N°9 EL MOLINO | B12: 0 | C12: 0 | D12: 0 | E12: 0 | F12: 0 | G12: 0 | H12: 0 | I12: 0 | J12: 0 | K12: 0 | L12: 0 | M12: 0 | N12: 0 | O12: 0 | P12: 0 | Q12: 0 | R12: 0 | S12: 0 | T12: 0 | U12: 0 | V12: 0 | W12: 0 | X12: 0 | Y12: 0
A13: UNID. N°10 JUAN SOLER | B13: 23 | C13: 23 | D13: 0 | E13: 0 | F13: 0 | G13: 0 | H13: 8 | I13: 0 | J13: 8 | K13: 0 | L13: 0 | M13: 0 | N13: 0 | O13: 0 | P13: 0 | Q13: 0 | R13: 0 | S13: 0 | T13: 0 | U13: 0 | V13: 0 | W13: 15 | X13: 0 | Y13: 15
A14: UNIDAD N°11 TACUABÉ-SALTO | B14: 0 | C14: 0 | D14: 0 | E14: 0 | F14: 0 | G14: 0 | H14: 0 | I14: 0 | J14: 0 | K14: 0 | L14: 0 | M14: 0 | N14: 0 | O14: 0 | P14: 0 | Q14: 0 | R14: 0 | S14: 0 | T14: 0 | U14: 0 | V14: 0 | W14: 0 | X14: 0 | Y14: 0
A15: UNIDAD N°12 CERRO CARANCHO | B15: 225 | C15: 203 | D15: 22 | E15: 0 | F15: 0 | G15: 0 | H15: 13 | I15: 3 | J15: 16 | K15: 0 | L15: 5 | M15: 5 | N15: 0 | O15: 0 | P15: 0 | Q15: 0 | R15: 0 | S15: 0 | T15: 190 | U15: 9 | V15: 199 | W15: 0 | X15: 5 | Y15: 5
A16: UNIDAD N°13 LAS ROSAS-MALDONADO | B16: =C16+D16 -> 153 | C16: 113 | D16: 40 | E16: 0 | F16: 0 | G16: 0 | H16: 24 | I16: 6 | J16: 30 | K16: 12 | L16: 5 | M16: 17 | N16: 0 | O16: 0 | P16: 0 | Q16: 0 | R16: 0 | S16: 0 | T16: 50 | U16: 4 | V16: 54 | W16: 27 | X16: 25 | Y16: 52
A17: UNIDAD N°14 PIEDRA DE LOS INDIOS | B17: 0 | C17: 0 | D17: 0 | E17: 0 | F17: 0 | G17: 0 | H17: 0 | I17: 0 | J17: 0 | K17: 0 | L17: 0 | M17: 0 | N17: 0 | O17: 0 | P17: 0 | Q17: 0 | R17: 0 | S17: 0 | T17: 0 | U17: 0 | V17: 0 | W17: 0 | X17: 0 | Y17: 0
A18: UNIDAD N°15 CONVENTOS-CERRO LARGO | B18: 0 | C18: 0 | D18: 0 | E18: 0 | F18: 0 | G18: 0 | H18: 0 | I18: 0 | J18: 0 | K18: 0 | L18: 0 | M18: 0 | N18: 0 | O18: 0 | P18: 0 | Q18: 0 | R18: 0 | S18: 0 | T18: 0 | U18: 0 | V18: 0 | W18: 0 | X18: 0 | Y18: 0
A19: UNIDAD N°16 PAYSANDÚ | B19: 34 | C19: 26 | D19: 8 | E19: 0 | F19: 0 | G19: 0 | H19: 13 | I19: 8 | J19: 21 | K19: 0 | L19: 0 | M19: 0 | N19: 0 | O19: 0 | P19: 0 | Q19: 13 | R19: 0 | S19: 13 | T19: 0 | U19: 0 | V19: 0 | W19: 0 | X19: 0 | Y19: 0
A20: UNIDAD N°17 CAMPANERO-LAVALLEJA | B20: 5 | C20: 0 | D20: 5 | E20: 0 | F20: 0 | G20: 0 | H20: 0 | I20: 5 | J20: 5 | K20: 0 | L20: 0 | M20: 0 | N20: 0 | O20: 0 | P20: 0 | Q20: 0 | R20: 0 | S20: 0 | T20: 0 | U20: 0 | V20: 0 | W20: 0 | X20: 0 | Y20: 0
A21: UNIDAD N°18 DURAZNO | B21: 39 | C21: 39 | D21: 0 | E21: 0 | F21: 0 | G21: 0 | H21: 0 | I21: 0 | J21: 0 | K21: 18 | L21: 0 | M21: 18 | N21: 0 | O21: 0 | P21: 0 | Q21: 16 | R21: 0 | S21: 16 | T21: 5 | U21: 0 | V21: 5 | W21: 0 | X21: 0 | Y21: 0
A22: UNIDAD N°19 LAS CAÑITAS RIO NEGRO | B22: 0 | C22: 0 | D22: 0 | E22: 0 | F22: 0 | G22: 0 | H22: 0 | I22: 0 | J22: 0 | K22: 0 | L22: 0 | M22: 0 | N22: 0 | O22: 0 | P22: 0 | Q22: 0 | R22: 0 | S22: 0 | T22: 0 | U22: 0 | V22: 0 | W22: 0 | X22: 0 | Y22: 0
A23: UNIDAD N°20 SALTO | B23: 127 | C23: 78 | D23: 49 | E23: 0 | F23: 0 | G23: 0 | H23: 29 | I23: 9 | J23: 38 | K23: 43 | L23: 14 | M23: 57 | N23: 0 | O23: 0 | P23: 0 | Q23: 0 | R23: 0 | S23: 0 | T23: 0 | U23: 23 | V23: 23 | W23: 6 | X23: 3 | Y23: 9
A24: UNIDAD N° 21 ARTIGAS | B24: 0 | C24: 0 | D24: 0 | E24: 0 | F24: 0 | G24: 0 | H24: 0 | I24: 0 | J24: 0 | K24: 0 | L24: 0 | M24: 0 | N24: 0 | O24: 0 | P24: 0 | Q24: 0 | R24: 0 | S24: 0 | T24: 0 | U24: 0 | V24: 0 | W24: 0 | X24: 0 | Y24: 0
A25: UNIDAD N° 22 ROCHA | B25: 15 | C25: 15 | D25: 0 | E25: 0 | F25: 0 | G25: 0 | H25: 0 | I25: 0 | J25: 0 | K25: 15 | L25: 0 | M25: 15 | N25: 0 | O25: 0 | P25: 0 | Q25: 0 | R25: 0 | S25: 0 | T25: 0 | U25: 0 | V25: 0 | W25: 0 | X25: 0 | Y25: 0
A26: UNIDAD N° 23 TREINTA Y TRES | B26: 30 | C26: 26 | D26: 4 | E26: 0 | F26: 0 | G26: 0 | H26: 0 | I26: 0 | J26: 0 | K26: 0 | L26: 0 | M26: 0 | N26: 0 | O26: 0 | P26: 0 | Q26: 26 | R26: 4 | S26: 30 | T26: 0 | U26: 0 | V26: 0 | W26: 0 | X26: 0 | Y26: 0
A27: UNIDAD N° 24 "PENSE" MERCEDES/ SORIANO | B27: 0 | C27: 0 | D27: 0 | E27: 0 | F27: 0 | G27: 0 | H27: 0 | I27: 0 | J27: 0 | K27: 0 | L27: 0 | M27: 0 | N27: 0 | O27: 0 | P27: 0 | Q27: 0 | R27: 0 | S27: 0 | T27: 0 | U27: 0 | V27: 0 | W27: 0 | X27: 0 | Y27: 0
A28: UNIDAD N° 26 TACUAREMBÓ | B28: 0 | C28: 0 | D28: 0 | E28: 0 | F28: 0 | G28: 0 | H28: 0 | I28: 0 | J28: 0 | K28: 0 | L28: 0 | M28: 0 | N28: 0 | O28: 0 | P28: 0 | Q28: 0 | R28: 0 | S28: 0 | T28: 0 | U28: 0 | V28: 0 | W28: 0 | X28: 0 | Y28: 0
A29: UNIDAD N.º 29 FLORIDA | B29: 15 | C29: 15 | D29: 0 | E29: 0 | F29: 0 | G29: 0 | H29: 0 | I29: 0 | J29: 0 | K29: 15 | L29: 0 | M29: 15 | N29: 0 | O29: 0 | P29: 0 | Q29: 0 | R29: 0 | S29: 0 | T29: 0 | U29: 0 | V29: 0 | Y29: 0
A30: Fuente: INR

Sheet Cuadro 3.1.37
A1: Ministerio de Educación y Cultura Dirección de Educación
A3: CANTIDAD DE POBLACIÓN PRIVADA DE LIBERTAD ATENDIDA EN EDUCACION FORMAL POR UNIDAD PENITENCIARIA SEGÚN NIVEL Y SEXO. AÑO 2016
A4: UNIDADES PENITENCIARIAS | B4: TOTAL | C4: SEXO | E4: PRIMARIA | G4: TOTAL PRIMARIA | H4: SECUNDARIA | J4: TOTAL SECUNDARIA | K4: TERCIARIA | M4: TOTAL TERCIARIA | N4: UTU | P4: TOTAL UTU
C5: MASCULINO | D5: FEMENINO | E5: MASCULINO | F5: FEMENINO | H5: MASCULINO | I5: FEMENINO | K5: MASCULINO | L5: FEMENINO | N5: MASCULINO | O5: FEMENINO
A6: TOTAL | B6: =SUM(B7:B29) -> 2278 | C6: =SUM(C7:C29) -> 1999 | D6: 279 | E6: 336 | F6: 52 | G6: 388 | H6: 1487 | I6: 194 | J6: 1681 | K6: 8 | L6: 4 | M6: =SUM(M7:M29) -> 12 | N6: 168 | O6: 29 | P6: 197
A7: UNID. N°3 LIBERTAD | B7: =C7+D7 -> 410 | C7: =E7+H7+K7++N7 -> 410 | D7: =F7+I7+L7++O7 -> 0 | E7: 39 | F7: 0 | G7: =E7+F7 -> 39 | H7: 370 | I7: 0 | J7: =H7+I7 -> 370 | K7: 1 | L7: 0 | M7: 1 | N7: 0 | O7: 0 | P7: =N7+O7 -> 0
A8: UNID. N°4 SANTIAGO VÁZQUEZ | B8: =C8+D8 -> 198 | C8: =E8+H8+K8++N8 -> 198 | D8: =F8+I8+L8+O8 -> 0 | E8: 91 | F8: 0 | G8: =E8+F8 -> 91 | H8: 104 | I8: 0 | J8: =H8+I8 -> 104 | K8: 3 | L8: 0 | M8: =K8+L8 -> 3 | N8: 0 | O8: 0 | P8: =N8+O8 -> 0
A9: UNID. N°5 FEMENINO | B9: 180 | C9: 0 | D9: 180 | E9: 0 | F9: 33 | G9: 33 | H9: 0 | I9: 126 | J9: 126 | K9: 0 | L9: 2 | M9: 2 | N9: 0 | O9: 19 | P9: 19
A10: UNID. N°6 PUNTA DE RIELES | B10: 215 | C10: 213 | D10: 2 | E10: 16 | F10: 0 | G10: 16 | H10: 197 | I10: 0 | J10: 197 | K10: 0 | L10: 2 | M10: 2 | N10: 0 | O10: 0 | P10: 0
A11: UNID. N°7 CANELONES | B11: 265 | C11: 265 | D11: 0 | E11: 44 | F11: 0 | G11: 44 | H11: 181 | I11: 0 | J11: 181 | K11: 0 | L11: 0 | M11: 0 | N11: 40 | O11: 0 | P11: 40
A12: UNID. N°9 EL MOLINO | B12: 1 | C12: 0 | D12: 1 | E12: 0 | F12: 1 | G12: 1 | H12: 0 | I12: 0 | J12: 0 | K12: 0 | L12: 0 | M12: 0 | N12: 0 | O12: 0 | P12: 0
A13: UNID. N°10 JUAN SOLER | B13: 54 | C13: 54 | D13: 0 | E13: 8 | F13: 0 | G13: 8 | H13: 46 | I13: 0 | J13: 46 | K13: 0 | L13: 0 | M13: 0 | N13: 0 | O13: 0 | P13: 0
A14: UNIDAD N°11 TACUABÉ-SALTO | B14: 3 | C14: 2 | D14: 1 | E14: 0 | F14: 0 | G14: 0 | H14: 2 | I14: 1 | J14: 3 | K14: 0 | L14: 0 | M14: 0 | N14: 0 | O14: 0 | P14: 0
A15: UNIDAD N°12 CERRO CARANCHO | B15: 107 | C15: 97 | D15: 10 | E15: 33 | F15: 3 | G15: 36 | H15: 64 | I15: 7 | J15: 71 | K15: 0 | L15: 0 | M15: 0 | N15: 0 | O15: 0 | P15: 0
A16: UNIDAD N°13 LAS ROSAS-MALDONADO | B16: 293 | C16: 271 | D16: 22 | E16: 14 | F16: 1 | G16: 15 | H16: 140 | I16: 11 | J16: 151 | K16: 4 | L16: 0 | M16: 4 | N16: 113 | O16: 10 | P16: 123
A17: UNIDAD N°14 PIEDRA DE LOS INDIOS | B17: 0 | C17: 0 | D17: 0 | E17: 0 | F17: 0 | G17: 0 | H17: 0 | I17: 0 | J17: 0 | K17: 0 | L17: 0 | M17: 0 | N17: 0 | O17: 0 | P17: =0 -> 0
A18: UNIDAD N°15 CONVENTOS-CERRO LARGO | B18: 28 | C18: 25 | D18: 3 | E18: 7 | F18: 0 | G18: 7 | H18: 18 | I18: 3 | J18: 21 | K18: 0 | L18: 0 | M18: 0 | N18: 0 | O18: 0 | P18: =0 -> 0
A19: UNIDAD N°16 PAYSANDÚ | B19: 58 | C19: 47 | D19: 11 | E19: 15 | F19: 6 | G19: 21 | H19: 32 | I19: 5 | J19: 37 | K19: 0 | L19: 0 | M19: 0 | N19: 0 | O19: 0 | P19: 0
A20: UNIDAD N°17 CAMPANERO-LAVALLEJA | B20: 74 | C20: 67 | D20: 7 | E20: 7 | F20: 0 | G20: 7 | H20: 45 | I20: 7 | J20: 52 | K20: 0 | L20: 0 | M20: 0 | N20: 15 | O20: 0 | P20: 15
A21: UNIDAD N°18 DURAZNO | B21: 43 | C21: 43 | D21: 0 | E21: 11 | F21: 0 | G21: 11 | H21: 32 | I21: 0 | J21: 32 | K21: 0 | L21: 0 | M21: 0 | N21: 0 | O21: 0 | P21: 0
A22: UNIDAD N°19 LAS CAÑITAS RIO NEGRO | B22: 44 | C22: 40 | D22: 4 | E22: 9 | F22: 0 | G22: 9 | H22: 31 | I22: 4 | J22: 35 | K22: 0 | L22: 0 | M22: 0 | N22: 0 | O22: 0 | P22: 0
A23: UNIDAD N°20 SALTO | B23: 37 | C23: 32 | D23: 5 | E23: 12 | F23: 1 | G23: 13 | H23: 20 | I23: 4 | J23: 24 | K23: 0 | L23: 0 | M23: 0 | N23: 0 | O23: 0 | P23: 0
A24: UNIDAD N° 21 ARTIGAS | B24: 31 | C24: 30 | D24: 1 | E24: 0 | F24: 0 | G24: 0 | H24: 30 | I24: 1 | J24: 31 | K24: 0 | L24: 0 | M24: 0 | N24: 0 | O24: 0 | P24: 0
A25: UNIDAD N° 22 ROCHA | B25: 22 | C25: 22 | D25: 0 | E25: 5 | F25: 0 | G25: 5 | H25: 17 | I25: 0 | J25: 17 | K25: 0 | L25: 0 | M25: 0 | N25: 0 | O25: 0 | P25: 0
A26: UNIDAD N° 23 TREINTA Y TRES | B26: 22 | C26: 20 | D26: 2 | E26: 3 | F26: 0 | G26: 3 | H26: 17 | I26: 2 | J26: 19 | K26: 0 | L26: 0 | M26: 0 | N26: 0 | O26: 0 | P26: 0
A27: UNIDAD N° 24 "PENSE" MERCEDES/ SORIANO | B27: 103 | C27: 86 | D27: 17 | E27: 7 | F27: 4 | G27: 11 | H27: 79 | I27: 13 | J27: 92 | K27: 0 | L27: 0 | M27: 0 | N27: 0 | O27: 0 | P27: 0
A28: UNIDAD N° 26 TACUAREMBÓ | B28: 47 | C28: 36 | D28: 11 | E28: 8 | F28: 3 | G28: 11 | H28: 28 | I28: 8 | J28: 36 | K28: 0 | L28: 0 | M28: 0 | N28: 0 | O28: 0 | P28: 0
A29: UNIDAD N.º 29 FLORIDA | B29: 43 | C29: 41 | D29: 2 | E29: 7 | F29: 0 | G29: 7 | H29: 34 | I29: 2 | J29: 36 | K29: 0 | L29: 0 | M29: 0 | N29: 0 | O29: 0 | P29: 0
A30: Fuente: INR

Sheet Cuadro 3.1.38
A1: Ministerio de Educación y Cultura Dirección de Educación
A3: CANTIDAD DE POBLACIÓN PRIVADA DE LIBERTAD ATENDIDA EN EDUCACIÓN NO FORMALPOR UNIDAD PENITENCIARIA SEGÚN NIVEL Y SEXO. AÑO 2016
A4: UNIDAD PENITENCIARIA | B4: TOTAL | C4: SEXO | E4: PROGRAMA URUGUAY ESTUDIA | G4: TOTAL PROGRAMA URUGUAY ESTUDIA | H4: DSEA NO FORMAL | J4: TOTAL DSEA NO FORMAL | K4: MEC PAS | M4: TOTAL MEC PAS | N4: MEC CIUDADANIA CULTURAL | P4: TOTAL MEC CIUDADANIA CULTURAL | Q4: CENTRO MEC | S4: TOTAL CENTRO MEC | T4: NO FORMAL OTROS | V4: TOTAL NO FORMAL OTROS | W4: PROYECTOS EDUCATIVOS | Y4: TOTAL PROYECTOS EDUCATIVOS
C5: MASCULINO | D5: FEMENINO | E5: MASCULINO | F5: FEMENINO | H5: MASCULINO | I5: FEMENINO | K5: MASCULINO | L5: FEMENINO | N5: MASCULINO | O5: FEMENINO | Q5: MASCULINO | R5: FEMENINO | T5: MASCULINO | U5: FEMENINO | W5: MASCULINO | X5: FEMENINO
A6: TOTAL | B6: =SUM(B7:B29) -> 1321 | C6: =SUM(C7:C29) -> 918 | D6: =SUM(D7:D29) -> 403 | E6: =SUM(E7:E15,E18:E29) -> 0 | F6: =SUM(F7:F15,F18:F29) -> 0 | G6: 0 | H6: =SUM(H7:H16,H19:H25,H27:H29) -> 133 | I6: =SUM(I7:I16,I19:I25,I27:I29) -> 145 | J6: =SUM(J7:J29) -> 278 | K6: =SUM(K10:K16,K19:K25,K27:K29) -> 145 | L6: =SUM(L10:L16,L19:L25,L27:L29) -> 28 | M6: =SUM(M7:M29) -> 173 | N6: =SUM(N8,N10:N15,N19:N22,N24:N29) -> 18 | O6: =SUM(O8,O10:O15,O19:O22,O24:O29) -> 0 | P6: =SUM(P7:P29) -> 18 | Q6: =SUM(Q9:Q15,Q19,Q21,Q22:Q29) -> 44 | R6: =SUM(R9:R15,R19,R21,R22:R29) -> 83 | S6: =Q6+R6 -> 127 | T6: =SUM(T7:T16,T19:T29) -> 484 | U6: =SUM(U7:U16,U19:U29) -> 117 | V6: =SUM(V7:V29) -> 601 | W6: =SUM(W9:W16,W20,W19,W21:W28,W29) -> 94 | X6: =SUM(X9:X16,X20,X19,X21:X28,X29) -> 30 | Y6: =SUM(Y7:Y29) -> 124
A7: UNID. N°3 LIBERTAD | B7: =SUM(C7+D7) -> 0 | C7: =E7+H7+K7+N7+Q7+T7+W7 -> 0 | D7: =F7+I7+L7+O7+R7+U7+X7 -> 0 | E7: 0 | F7: 0 | G7: =E7+F7 -> 0 | H7: 0 | I7: 0 | J7: 0 | K7: 0 | L7: 0 | M7: 0 | N7: 0 | O7: 0 | P7: 0 | Q7: 0 | R7: 0 | S7: 0 | T7: 0 | U7: 0 | V7: 0 | W7: 0 | X7: 0 | Y7: 0
A8: UNID. N°4 SANTIAGO VÁZQUEZ | B8: 52 | C8: =E8+H8+K8+N8+Q8+T8+W8 -> 52 | D8: 0 | E8: 0 | F8: 0 | G8: =E8+F8 -> 0 | H8: 16 | I8: 0 | J8: =H8+I8 -> 16 | K8: 0 | L8: 0 | M8: 0 | N8: 18 | O8: 0 | P8: =N8+O8 -> 18 | Q8: 0 | R8: 0 | S8: 0 | T8: 18 | U8: 0 | V8: =T8+U8 -> 18 | W8: 0 | X8: 0 | Y8: 0
A9: UNID. N°5 FEMENINO | B9: 294 | C9: 0 | D9: 294 | E9: 0 | F9: 0 | G9: 0 | H9: 0 | I9: 118 | J9: =H9+I9 -> 118 | K9: 0 | L9: 0 | M9: 0 | N9: 0 | O9: 0 | P9: 0 | Q9: 0 | R9: 79 | S9: =Q9+R9 -> 79 | T9: 0 | U9: 97 | V9: =T9+U9 -> 97 | W9: 0 | X9: 0 | Y9: =W9+X9 -> 0
A10: UNID. N°6 PUNTA DE RIELES | B10: 257 | C10: =E10+H10+K10+N10+Q10+T10+W10 -> 257 | D10: 0 | E10: 0 | F10: 0 | G10: 0 | H10: 16 | I10: 0 | J10: 16 | K10: 17 | L10: 0 | M10: =K10+L10 -> 17 | N10: 0 | O10: 0 | P10: =N10+O10 -> 0 | Q10: 0 | R10: 0 | S10: =Q10+R10 -> 0 | T10: 177 | U10: 0 | V10: 177 | W10: 47 | X10: 0 | Y10: =W10+X10 -> 47
A11: UNID. N°7 CANELONES | B11: 119 | C11: 119 | D11: 0 | E11: 0 | F11: 0 | G11: 0 | H11: 23 | I11: 0 | J11: 23 | K11: 47 | L11: 0 | M11: =K11+L11 -> 47 | N11: 0 | O11: 0 | P11: =N11+O11 -> 0 | Q11: 0 | R11: 0 | S11: 0 | T11: 44 | U11: 0 | V11: 44 | W11: 5 | X11: 0 | Y11: 5
A12: UNID. N°9 EL MOLINO | B12: 0 | C12: 0 | D12: 0 | E12: 0 | F12: 0 | G12: 0 | H12: 0 | I12: 0 | J12: 0 | K12: 0 | L12: 0 | M12: 0 | N12: 0 | O12: 0 | P12: 0 | Q12: 0 | R12: 0 | S12: 0 | T12: 0 | U12: 0 | V12: 0 | W12: 0 | X12: 0 | Y12: 0
A13: UNID. N°10 JUAN SOLER | B13: 23 | C13: 23 | D13: 0 | E13: 0 | F13: 0 | G13: 0 | H13: 8 | I13: 0 | J13: 8 | K13: 0 | L13: 0 | M13: 0 | N13: 0 | O13: 0 | P13: 0 | Q13: 0 | R13: 0 | S13: 0 | T13: 0 | U13: 0 | V13: 0 | W13: 15 | X13: 0 | Y13: 15
A14: UNIDAD N°11 TACUABÉ-SALTO | B14: 0 | C14: 0 | D14: 0 | E14: 0 | F14: 0 | G14: 0 | H14: 0 | I14: 0 | J14: 0 | K14: 0 | L14: 0 | M14: 0 | N14: 0 | O14: 0 | P14: 0 | Q14: 0 | R14: 0 | S14: 0 | T14: 0 | U14: 0 | V14: 0 | W14: 0 | X14: 0 | Y14: 0
A15: UNIDAD N°12 CERRO CARANCHO | B15: 225 | C15: 203 | D15: 22 | E15: 0 | F15: 0 | G15: 0 | H15: 13 | I15: 3 | J15: 16 | K15: 0 | L15: 5 | M15: 5 | N15: 0 | O15: 0 | P15: 0 | Q15: 0 | R15: 0 | S15: 0 | T15: 190 | U15: 9 | V15: 199 | W15: 0 | X15: 5 | Y15: 5
A16: UNIDAD N°13 LAS ROSAS-MALDONADO | B16: 153 | C16: 113 | D16: 40 | E16: 0 | F16: 0 | G16: 0 | H16: 24 | I16: 6 | J16: 30 | K16: 12 | L16: 5 | M16: 17 | N16: 0 | O16: 0 | P16: 0 | Q16: 0 | R16: 0 | S16: 0 | T16: 50 | U16: 4 | V16: 54 | W16: 27 | X16: 25 | Y16: 52
A17: UNIDAD N°14 PIEDRA DE LOS INDIOS | B17: 0 | C17: 0 | D17: 0 | E17: 0 | F17: 0 | G17: 0 | H17: 0 | I17: 0 | J17: 0 | K17: 0 | L17: 0 | M17: 0 | N17: 0 | O17: 0 | P17: 0 | Q17: 0 | R17: 0 | S17: 0 | T17: 0 | U17: 0 | V17: 0 | W17: 0 | X17: 0 | Y17: 0
A18: UNIDAD N°15 CONVENTOS-CERRO LARGO | B18: 0 | C18: 0 | D18: 0 | E18: 0 | F18: 0 | G18: =E18+F18 -> 0 | H18: 0 | I18: 0 | J18: 0 | K18: 0 | L18: 0 | M18: 0 | N18: 0 | O18: 0 | P18: 0 | Q18: 0 | R18: 0 | S18: 0 | T18: 0 | U18: 0 | V18: 0 | W18: 0 | X18: 0 | Y18: 0
A19: UNIDAD N°16 PAYSANDÚ | B19: 34 | C19: 26 | D19: 8 | E19: 0 | F19: 0 | G19: =E19+F19 -> 0 | H19: 13 | I19: 8 | J19: 21 | K19: 0 | L19: 0 | M19: =K19+L19 -> 0 | N19: 0 | O19: 0 | P19: =N19+O19 -> 0 | Q19: 13 | R19: 0 | S19: =Q19+R19 -> 13 | T19: 0 | U19: 0 | V19: =T19+U19 -> 0 | W19: 0 | X19: 0 | Y19: =W19+X19 -> 0
A20: UNIDAD N°17 CAMPANERO-LAVALLEJA | B20: 27 | C20: 20 | D20: 7 | E20: 0 | F20: 0 | G20: 0 | H20: 10 | I20: 4 | J20: 14 | K20: 10 | L20: 3 | M20: =K20+L20 -> 13 | N20: 0 | O20: 0 | P20: =N20+O20 -> 0 | Q20: 0 | R20: 0 | S20: 0 | T20: 0 | U20: 0 | V20: =T20+U20 -> 0 | W20: 0 | X20: 0 | Y20: =W20+X20 -> 0
A21: UNIDAD N°18 DURAZNO | B21: 39 | C21: 39 | D21: 0 | E21: 0 | F21: 0 | G21: 0 | H21: 0 | I21: 0 | J21: 0 | K21: 18 | L21: 0 | M21: 18 | N21: 0 | O21: 0 | P21: 0 | Q21: 16 | R21: 0 | S21: =Q21+R21 -> 16 | T21: 5 | U21: 0 | V21: 5 | W21: 0 | X21: 0 | Y21: 0
A22: UNIDAD N°19 LAS CAÑITAS RIO NEGRO | B22: 0 | C22: 0 | D22: 0 | E22: 0 | F22: 0 | G22: 0 | H22: 0 | I22: 0 | J22: 0 | K22: 0 | L22: 0 | M22: 0 | N22: 0 | O22: 0 | P22: 0 | Q22: 0 | R22: 0 | S22: =Q22+R22 -> 0 | T22: 0 | U22: 0 | V22: 0 | W22: 0 | X22: 0 | Y22: 0
A23: UNIDAD N°20 SALTO | B23: 54 | C23: 26 | D23: 28 | E23: 0 | F23: 0 | G23: 0 | H23: 10 | I23: 6 | J23: 16 | K23: 16 | L23: 15 | M23: 31 | N23: 0 | O23: 0 | P23: 0 | Q23: 0 | R23: 0 | S23: 0 | T23: 0 | U23: 7 | V23: 7 | W23: 0 | X23: 0 | Y23: 0
A24: UNIDAD N° 21 ARTIGAS | B24: 0 | C24: 0 | D24: 0 | E24: 0 | F24: 0 | G24: 0 | H24: 0 | I24: 0 | J24: 0 | K24: 0 | L24: 0 | M24: 0 | N24: 0 | O24: 0 | P24: =N24+O24 -> 0 | Q24: 0 | R24: 0 | S24: 0 | T24: 0 | U24: 0 | V24: 0 | W24: 0 | X24: 0 | Y24: 0
A25: UNIDAD N° 22 ROCHA | B25: 13 | C25: 13 | D25: 0 | E25: 0 | F25: 0 | G25: 0 | H25: 0 | I25: 0 | J25: 0 | K25: 13 | L25: 0 | M25: 13 | N25: 0 | O25: 0 | P25: =N25+O25 -> 0 | Q25: 0 | R25: 0 | S25: 0 | T25: 0 | U25: 0 | V25: 0 | W25: 0 | X25: 0 | Y25: 0
A26: UNIDAD N° 23 TREINTA Y TRES | B26: 19 | C26: 15 | D26: 4 | E26: 0 | F26: 0 | G26: 0 | H26: 0 | I26: 0 | J26: 0 | K26: 0 | L26: 0 | M26: 0 | N26: 0 | O26: 0 | P26: 0 | Q26: 15 | R26: 4 | S26: 19 | T26: 0 | U26: 0 | V26: 0 | W26: 0 | X26: 0 | Y26: 0
A27: UNIDAD N° 24 "PENSE" MERCEDES/ SORIANO | B27: 0 | C27: 0 | D27: 0 | E27: 0 | F27: 0 | G27: 0 | H27: 0 | I27: 0 | J27: 0 | K27: 0 | L27: 0 | M27: =K27+L27 -> 0 | N27: 0 | O27: 0 | P27: 0 | Q27: 0 | R27: 0 | S27: 0 | T27: 0 | U27: 0 | V27: 0 | W27: 0 | X27: 0 | Y27: 0
A28: UNIDAD N° 26 TACUAREMBÓ | B28: 0 | C28: 0 | D28: 0 | E28: 0 | F28: 0 | G28: 0 | H28: 0 | I28: 0 | J28: 0 | K28: 0 | L28: 0 | M28: =K28+L28 -> 0 | N28: 0 | O28: 0 | P28: 0 | Q28: 0 | R28: 0 | S28: 0 | T28: 0 | U28: 0 | V28: 0 | W28: 0 | X28: 0 | Y28: 0
A29: UNIDAD N.º 29 FLORIDA | B29: 12 | C29: =E29+H29+K29+N29+Q29+T29+W29 -> 12 | D29: =F29+I29+L29+O29+R29+U29+X29 -> 0 | E29: 0 | F29: 0 | G29: 0 | H29: 0 | I29: 0 | J29: 0 | K29: 12 | L29: 0 | M29: 12 | N29: 0 | O29: 0 | P29: 0 | Q29: 0 | R29: 0 | S29: 0 | T29: 0 | U29: 0 | V29: 0 | Y29: 0
A30: Fuente: INR

Sheet Cuadro 3.1.39
A1: Ministerio de Educación y Cultura Dirección de Educación
A3: CANTIDAD DE ESTUDIANTES Y EXAMENES RENDIDOS EN CENTROS INISA EN EL AÑO 2016
A4: ACREDITACIÓN PRIMARIA
A5: TOTAL | B5: 27
A6: SECUNDARIA
A7: CENTROS | B7: Cantidad de Estudiantes de Secundaria | C7: Primer Año | D7: Segundo Año | E7: Tercer Año | F7: Cuarto Año | G7: Quinto Año
A8: SIN DATO
A9: Belloni | B9: 77 | C9: 63 | D9: 10 | E9: 4 | F9: -
A10: Berro | B10: 277 | C10: 129 | D10: 85 | E10: 49 | F10: 11 | G10: 3
A11: CIAF | B11: 40 | C11: 25 | D11: 11 | E11: 4
A12: Desafio | B12: 52 | C12: 37 | D12: 8 | E12: 4 | F12: 2 | G12: 1
A13: TOTAL | B13: 446 | C13: 254 | D13: 114 | E13: 61 | F13: 13 | G13: 4
A14: EXAMENES RENDIDOS, APROBADOS Y DESERCIONES EN SECUNDARIA
A15: CENTROS | B15: Examenes rendidos | D15: Examenes Aprobados | F15: Deserciones
A16: Belloni | B16: 185 | D16: 185 | F16: 28
A17: Berro | B17: 1993 | D17: 1993 | F17: 65
A18: CIAF | B18: 207 | D18: 207 | F18: 0
A19: Desafio | B19: 430 | D19: 430 | F19: 0
A20: TOTAL | B20: 2815 | D20: 2815 | F20: 93
A21: Fuente: INISA

Sheet Cuadro 3.1.40.
A1: Ministerio de Educación y Cultura Dirección de Educación
A3: Cuadro 3.1.40
A5: GASTO PÚBLICO EN EDUCACIÓN (millones de pesos constantes de 2016)
B6: 2004 | C6: 2005 | D6: 2006 | E6: 2007 | F6: 2008 | G6: 2009 | H6: 2010 | I6: 2011 | J6: 2012 | K6: 2013 | L6: 2014 | M6: 2015 | N6: 2016
A7: TOTAL | B7: 30271.74156 | C7: 31586.4764 | D7: 34786.81733 | E7: 40311.87723 | F7: 49095.81695 | G7: 54864.58836 | H7: 56147.09818 | I7: 61589.37392 | J7: 66356.67 | K7: 69404.58631 | L7: 72716.76638 | M7: 73254.04802 | N7: 75568.7836
A8: Instituciones básicas del sistema educación formal | B8: 28247.064 | C8: 29192.78337 | D8: 31452.09297 | E8: 35423.76744 | F8: 41681.09851 | G8: 48279.05475 | H8: 48715.56222 | I8: 53412.07381 | J8: 56394.86569 | K8: 59064.29697 | L8: 62228.32781 | M8: 62173.20867 | N8: 64452.27876
A9: ANEP | B9: 22665.17465 | C9: 23465.21931 | D9: 25114.87094 | E9: 28240.95302 | F9: 33377.18465 | G9: 38725.31544 | H9: 38965.47326 | I9: 42585.51955 | J9: 45097.48719 | K9: 47482.89768 | L9: 49682.55887 | M9: 49277.91095 | N9: 51436.7014
A10: UDELAR | B10: 5581.889358 | C10: 5727.564058 | D10: 6337.222029 | E10: 7182.814414 | F10: 8303.913864 | G10: 9553.739304 | H10: 9750.088958 | I10: 10826.55426 | J10: 11297.3785 | K10: 11568.42753 | L10: 12104.0106 | M10: 12473.37759 | N10: 12607.4326
A11: UTEC | B11: 0 | C11: 0 | D11: 0 | E11: 0 | F11: 0 | G11: 0 | H11: 0 | I11: 0 | J11: 0 | K11: 12.97176339 | L11: 441.7583432 | M11: 421.9201207 | N11: 408.144762
A12: Administración Central e Inciso 21 | B12: 1439.543128 | C12: 1606.960556 | D12: 2365.449429 | E12: 2523.85294 | F12: 2910.360274 | G12: 2837.418126 | H12: 3339.42392 | I12: 3802.127932 | J12: 5385.668021 | K12: 5516.471903 | L12: 5377.44471 | M12: 5782.307076 | N12: 4925.552515
A13: Educación policial y militar | B13: 857.6609591 | C13: 956.6496431 | D13: 1057.597751 | E13: 1246.942902 | F13: 1334.068993 | G13: 1376.665602 | H13: 1522.154228 | I13: 1553.945304 | J13: 2075.42328 | K13: 2149.297052 | L13: 2006.643277 | M13: 2168.390072 | N13: 803.8063334
A14: Otros Administración Central (1) | B14: 152.2590004 | C14: 198.7236498 | D14: 404.9918227 | E14: 348.1244206 | F14: 564.2623743 | G14: 359.6976644 | H14: 576.9987505 | I14: 855.4332769 | J14: 1953.390933 | K14: 1986.403897 | L14: 1926.592788 | M14: 1962.425013 | N14: 2550.216192
A15: Partidas del inciso 21 con destino a educación (2) | B15: 429.6231688 | C15: 451.587263 | D15: 902.8598551 | E15: 928.7856182 | F15: 1012.028907 | G15: 1101.054859 | H15: 1240.270941 | I15: 1392.749351 | J15: 1356.853808 | K15: 1380.770955 | L15: 1444.208646 | M15: 1651.491991 | N15: 1571.52999
A16: Educación no formal inicial (Centros CAIF) y CENFORES | B16: 309.0068852 | C16: 417.7704762 | D16: 525.3902734 | E16: 616.281968 | F16: 1036.644354 | G16: 1183.800907 | H16: 1174.383054 | I16: 1461.695575 | J16: 1826.485955 | K16: 2051.872847 | L16: 1980.35172 | M16: 2110.444604 | N16: 2485.803901
A17: Ciencia y Tecnología | B17: 276.1275464 | C17: 368.9620024 | D17: 443.8846583 | E17: 657.3176679 | F17: 646.9556519 | G17: 452.101126 | H17: 504.2275808 | I17: 609.8271326 | J17: 697.8808477 | K17: 692.9623676 | L17: 788.162577 | M17: 749.1248309 | N17: 879.1584812
A18: MEC (3) | B18: 239.498678 | C18: 274.7229733 | D18: 323.1013064 | E18: 527.1431285 | F18: 353.5521775 | G18: 172.7104309 | H18: 185.5857094 | I18: 161.5812506 | J18: 205.2005491 | K18: 186.8171856 | L18: 202.0713826 | M18: 179.6445463 | N18: 190.729712
A19: PEDECIBA, Instituto Pasteur, ANII (4) | B19: 36.62886833 | C19: 94.23902913 | D19: 120.7833518 | E19: 130.1745394 | F19: 293.4034744 | G19: 279.390695 | H19: 318.6418714 | I19: 448.245882 | J19: 492.6802987 | K19: 506.1451821 | L19: 586.0911944 | M19: 569.4802846 | N19: 688.4287692
A20: Plan Ceibal | B20: 0 | C20: 0 | D20: 0 | E20: 1090.657217 | F20: 2636.661379 | G20: 1755.940094 | H20: 1992.924942 | I20: 1850.303758 | J20: 1598.54644 | K20: 1629.253457 | L20: 1614.361376 | M20: 1728.806523 | N20: 2138.453309
A21: Incentivo a la demanda educativa en secundaria | B21: 0 | C21: 0 | D21: 0 | E21: 0 | F21: 184.0967841 | G21: 356.2733639 | H21: 420.5764667 | I21: 453.3457127 | J21: 453.2230461 | K21: 449.7287628 | L21: 439.4754741 | M21: 404.4267597 | N21: 517.6922732
A22: Donaciones especiales | B22: 0 | C22: 0 | D22: 0 | E22: 0 | F22: 0 | G22: 0 | H22: 0 | I22: 0 | J22: 0 | K22: 0 | L22: 288.6427061 | M22: 305.7295624 | N22: 169.8443654
A24: Fuente: Elaboración propia en base a datos del MEF e INE.
A25: Notas:
A26: (1) Se incluyen gastos en Dirección de Educación del MEC, ISEF, capacitación laboral, Centro de Diseño Industrial, escuelas de formación artística y otros componentes considerados en MIDES-DINEM (2006): "Identificación y análisis del gasto público social en Uruguay 2002-2005". Además, se incluye el subsidio al boleto estudiantil que realiza el MTOP.
A27: (2) Incluye subsidios a escuelas para niños con capacidades especiales, rentas afectadas al Fondo de Solidaridad y al Fondo de Reconversión Laboral.
A28: (3) Se considera la Dirección Nacional de Ciencia y Tecnología (DINACYT) y el Clemente Estable. La baja de recursos se explica por la finalización del Programa de Desarrollo Tecnológico (PDT) y el traspaso de algunos programas a la ANII.
A29: (4) Del presupuesto de la ANII se toma en cuenta solo el componente 2, de fortalecimiento y orientación de la investigación.

Sheet Cuadro 3.1.41
A1: Ministerio de Educación y Cultura Dirección de Educación | AW1: Ministerio de Educación y Cultura Dirección de Educación | BM1: Ministerio de Educación y Cultura Dirección de Educación | CC1: Ministerio de Educación y Cultura Dirección de Educación | CS1: Ministerio de Educación y Cultura Dirección de Educación | DI1: Ministerio de Educación y Cultura Dirección de Educación | DY1: Ministerio de Educación y Cultura Dirección de Educación | EO1: Ministerio de Educación y Cultura Dirección de Educación | FE1: Ministerio de Educación y Cultura Dirección de Educación | FU1: Ministerio de Educación y Cultura Dirección de Educación | GK1: Ministerio de Educación y Cultura Dirección de Educación | HA1: Ministerio de Educación y Cultura Dirección de Educación | HQ1: Ministerio de Educación y Cultura Dirección de Educación | IG1: Ministerio de Educación y Cultura Dirección de Educación | IW1: Ministerio de Educación y Cultura Dirección de Educación | JM1: Ministerio de Educación y Cultura Dirección de Educación | KC1: Ministerio de Educación y Cultura Dirección de Educación | KS1: Ministerio de Educación y Cultura Dirección de Educación | LI1: Ministerio de Educación y Cultura Dirección de Educación | LY1: Ministerio de Educación y Cultura Dirección de Educación | MO1: Ministerio de Educación y Cultura Dirección de Educación | NE1: Ministerio de Educación y Cultura Dirección de Educación | NU1: Ministerio de Educación y Cultura Dirección de Educación | OK1: Ministerio de Educación y Cultura Dirección de Educación | PA1: Ministerio de Educación y Cultura Dirección de Educación | PQ1: Ministerio de Educación y Cultura Dirección de Educación | QG1: Ministerio de Educación y Cultura Dirección de Educación | QW1: Ministerio de Educación y Cultura Dirección de Educación | RM1: Ministerio de Educación y Cultura Dirección de Educación | SC1: Ministerio de Educación y Cultura Dirección de Educación | SS1: Ministerio de Educación y Cultura Dirección de Educación | TI1: Ministerio de Educación y Cultura Dirección de Educación | TY1: Ministerio de Educación y Cultura Dirección de Educación | UO1: Ministerio de Educación y Cultura Dirección de Educación | VE1: Ministerio de Educación y Cultura Dirección de Educación | VU1: Ministerio de Educación y Cultura Dirección de Educación | WK1: Ministerio de Educación y Cultura Dirección de Educación | XA1: Ministerio de Educación y Cultura Dirección de Educación | XQ1: Ministerio de Educación y Cultura Dirección de Educación | YG1: Ministerio de Educación y Cultura Dirección de Educación | YW1: Ministerio de Educación y Cultura Dirección de Educación | ZM1: Ministerio de Educación y Cultura Dirección de Educación | AAC1: Ministerio de Educación y Cultura Dirección de Educación | AAS1: Ministerio de Educación y Cultura Dirección de Educación | ABI1: Ministerio de Educación y Cultura Dirección de Educación | ABY1: Ministerio de Educación y Cultura Dirección de Educación | ACO1: Ministerio de Educación y Cultura Dirección de Educación | ADE1: Ministerio de Educación y Cultura Dirección de Educación | ADU1: Ministerio de Educación y Cultura Dirección de Educación | AEK1: Ministerio de Educación y Cultura Dirección de Educación | AFA1: Ministerio de Educación y Cultura Dirección de Educación | AFQ1: Ministerio de Educación y Cultura Dirección de Educación | AGG1: Ministerio de Educación y Cultura Dirección de Educación | AGW1: Ministerio de Educación y Cultura Dirección de Educación | AHM1: Ministerio de Educación y Cultura Dirección de Educación | AIC1: Ministerio de Educación y Cultura Dirección de Educación | AIS1: Ministerio de Educación y Cultura Dirección de Educación | AJI1: Ministerio de Educación y Cultura Dirección de Educación | AJY1: Ministerio de Educación y Cultura Dirección de Educación | AKO1: Ministerio de Educación y Cultura Dirección de Educación | ALE1: Ministerio de Educación y Cultura Dirección de Educación | ALU1: Ministerio de Educación y Cultura Dirección de Educación | AMK1: Ministerio de Educación y Cultura Dirección de Educación | ANA1: Ministerio de Educación y Cultura Dirección de Educación | ANQ1: Ministerio de Educación y Cultura Dirección de Educación | AOG1: Ministerio de Educación y Cultura Dirección de Educación | AOW1: Ministerio de Educación y Cultura Dirección de Educación | APM1: Ministerio de Educación y Cultura Dirección de Educación | AQC1: Ministerio de Educación y Cultura Dirección de Educación | AQS1: Ministerio de Educación y Cultura Dirección de Educación | ARI1: Ministerio de Educación y Cultura Dirección de Educación | ARY1: Ministerio de Educación y Cultura Dirección de Educación | ASO1: Ministerio de Educación y Cultura Dirección de Educación | ATE1: Ministerio de Educación y Cultura Dirección de Educación | ATU1: Ministerio de Educación y Cultura Dirección de Educación | AUK1: Ministerio de Educación y Cultura Dirección de Educación | AVA1: Ministerio de Educación y Cultura Dirección de Educación | AVQ1: Ministerio de Educación y Cultura Dirección de Educación | AWG1: Ministerio de Educación y Cultura Dirección de Educación | AWW1: Ministerio de Educación y Cultura Dirección de Educación | AXM1: Ministerio de Educación y Cultura Dirección de Educación | AYC1: Ministerio de Educación y Cultura Dirección de Educación | AYS1: Ministerio de Educación y Cultura Dirección de Educación | AZI1: Ministerio de Educación y Cultura Dirección de Educación | AZY1: Ministerio de Educación y Cultura Dirección de Educación | BAO1: Ministerio de Educación y Cultura Dirección de Educación | BBE1: Ministerio de Educación y Cultura Dirección de Educación | BBU1: Ministerio de Educación y Cultura Dirección de Educación | BCK1: Ministerio de Educación y Cultura Dirección de Educación | BDA1: Ministerio de Educación y Cultura Dirección de Educación | BDQ1: Ministerio de Educación y Cultura Dirección de Educación | BEG1: Ministerio de Educación y Cultura Dirección de Educación | BEW1: Ministerio de Educación y Cultura Dirección de Educación | BFM1: Ministerio de Educación y Cultura Dirección de Educación | BGC1: Ministerio de Educación y Cultura Dirección de Educación | BGS1: Ministerio de Educación y Cultura Dirección de Educación | BHI1: Ministerio de Educación y Cultura Dirección de Educación | BHY1: Ministerio de Educación y Cultura Dirección de Educación | BIO1: Ministerio de Educación y Cultura Dirección de Educación | BJE1: Ministerio de Educación y Cultura Dirección de Educación | BJU1: Ministerio de Educación y Cultura Dirección de Educación | BKK1: Ministerio de Educación y Cultura Dirección de Educación | BLA1: Ministerio de Educación y Cultura Dirección de Educación | BLQ1: Ministerio de Educación y Cultura Dirección de Educación | BMG1: Ministerio de Educación y Cultura Dirección de Educación | BMW1: Ministerio de Educación y Cultura Dirección de Educación | BNM1: Ministerio de Educación y Cultura Dirección de Educación | BOC1: Ministerio de Educación y Cultura Dirección de Educación | BOS1: Ministerio de Educación y Cultura Dirección de Educación | BPI1: Ministerio de Educación y Cultura Dirección de Educación | BPY1: Ministerio de Educación y Cultura Dirección de Educación | BQO1: Ministerio de Educación y Cultura Dirección de Educación | BRE1: Ministerio de Educación y Cultura Dirección de Educación | BRU1: Ministerio de Educación y Cultura Dirección de Educación | BSK1: Ministerio de Educación y Cultura Dirección de Educación | BTA1: Ministerio de Educación y Cultura Dirección de Educación | BTQ1: Ministerio de Educación y Cultura Dirección de Educación | BUG1: Ministerio de Educación y Cultura Dirección de Educación | BUW1: Ministerio de Educación y Cultura Dirección de Educación | BVM1: Ministerio de Educación y Cultura Dirección de Educación | BWC1: Ministerio de Educación y Cultura Dirección de Educación | BWS1: Ministerio de Educación y Cultura Dirección de Educación | BXI1: Ministerio de Educación y Cultura Dirección de Educación | BXY1: Ministerio de Educación y Cultura Dirección de Educación | BYO1: Ministerio de Educación y Cultura Dirección de Educación | BZE1: Ministerio de Educación y Cultura Dirección de Educación | BZU1: Ministerio de Educación y Cultura Dirección de Educación | CAK1: Ministerio de Educación y Cultura Dirección de Educación | CBA1: Ministerio de Educación y Cultura Dirección de Educación | CBQ1: Ministerio de Educación y Cultura Dirección de Educación | CCG1: Ministerio de Educación y Cultura Dirección de Educación | CCW1: Ministerio de Educación y Cultura Dirección de Educación | CDM1: Ministerio de Educación y Cultura Dirección de Educación | CEC1: Ministerio de Educación y Cultura Dirección de Educación | CES1: Ministerio de Educación y Cultura Dirección de Educación | CFI1: Ministerio de Educación y Cultura Dirección de Educación | CFY1: Ministerio de Educación y Cultura Dirección de Educación | CGO1: Ministerio de Educación y Cultura Dirección de Educación | CHE1: Ministerio de Educación y Cultura Dirección de Educación | CHU1: Ministerio de Educación y Cultura Dirección de Educación | CIK1: Ministerio de Educación y Cultura Dirección de Educación | CJA1: Ministerio de Educación y Cultura Dirección de Educación | CJQ1: Ministerio de Educación y Cultura Dirección de Educación | CKG1: Ministerio de Educación y Cultura Dirección de Educación | CKW1: Ministerio de Educación y Cultura Dirección de Educación | CLM1: Ministerio de Educación y Cultura Dirección de Educación | CMC1: Ministerio de Educación y Cultura Dirección de Educación | CMS1: Ministerio de Educación y Cultura Dirección de Educación | CNI1: Ministerio de Educación y Cultura Dirección de Educación | CNY1: Ministerio de Educación y Cultura Dirección de Educación | COO1: Ministerio de Educación y Cultura Dirección de Educación | CPE1: Ministerio de Educación y Cultura Dirección de Educación | CPU1: Ministerio de Educación y Cultura Dirección de Educación | CQK1: Ministerio de Educación y Cultura Dirección de Educación | CRA1: Ministerio de Educación y Cultura Dirección de Educación | CRQ1: Ministerio de Educación y Cultura Dirección de Educación | CSG1: Ministerio de Educación y Cultura Dirección de Educación | CSW1: Ministerio de Educación y Cultura Dirección de Educación | CTM1: Ministerio de Educación y Cultura Dirección de Educación | CUC1: Ministerio de Educación y Cultura Dirección de Educación | CUS1: Ministerio de Educación y Cultura Dirección de Educación | CVI1: Ministerio de Educación y Cultura Dirección de Educación | CVY1: Ministerio de Educación y Cultura Dirección de Educación | CWO1: Ministerio de Educación y Cultura Dirección de Educación | CXE1: Ministerio de Educación y Cultura Dirección de Educación | CXU1: Ministerio de Educación y Cultura Dirección de Educación | CYK1: Ministerio de Educación y Cultura Dirección de Educación | CZA1: Ministerio de Educación y Cultura Dirección de Educación | CZQ1: Ministerio de Educación y Cultura Dirección de Educación | DAG1: Ministerio de Educación y Cultura Dirección de Educación | DAW1: Ministerio de Educación y Cultura Dirección de Educación | DBM1: Ministerio de Educación y Cultura Dirección de Educación | DCC1: Ministerio de Educación y Cultura Dirección de Educación | DCS1: Ministerio de Educación y Cultura Dirección de Educación | DDI1: Ministerio de Educación y Cultura Dirección de Educación | DDY1: Ministerio de Educación y Cultura Dirección de Educación | DEO1: Ministerio de Educación y Cultura Dirección de Educación | DFE1: Ministerio de Educación y Cultura Dirección de Educación | DFU1: Ministerio de Educación y Cultura Dirección de Educación | DGK1: Ministerio de Educación y Cultura Dirección de Educación | DHA1: Ministerio de Educación y Cultura Dirección de Educación | DHQ1: Ministerio de Educación y Cultura Dirección de Educación | DIG1: Ministerio de Educación y Cultura Dirección de Educación | DIW1: Ministerio de Educación y Cultura Dirección de Educación | DJM1: Ministerio de Educación y Cultura Dirección de Educación | DKC1: Ministerio de Educación y Cultura Dirección de Educación | DKS1: Ministerio de Educación y Cultura Dirección de Educación | DLI1: Ministerio de Educación y Cultura Dirección de Educación | DLY1: Ministerio de Educación y Cultura Dirección de Educación | DMO1: Ministerio de Educación y Cultura Dirección de Educación | DNE1: Ministerio de Educación y Cultura Dirección de Educación | DNU1: Ministerio de Educación y Cultura Dirección de Educación | DOK1: Ministerio de Educación y Cultura Dirección de Educación | DPA1: Ministerio de Educación y Cultura Dirección de Educación | DPQ1: Ministerio de Educación y Cultura Dirección de Educación | DQG1: Ministerio de Educación y Cultura Dirección de Educación | DQW1: Ministerio de Educación y Cultura Dirección de Educación | DRM1: Ministerio de Educación y Cultura Dirección de Educación | DSC1: Ministerio de Educación y Cultura Dirección de Educación | DSS1: Ministerio de Educación y Cultura Dirección de Educación | DTI1: Ministerio de Educación y Cultura Dirección de Educación | DTY1: Ministerio de Educación y Cultura Dirección de Educación | DUO1: Ministerio de Educación y Cultura Dirección de Educación | DVE1: Ministerio de Educación y Cultura Dirección de Educación | DVU1: Ministerio de Educación y Cultura Dirección de Educación | DWK1: Ministerio de Educación y Cultura Dirección de Educación | DXA1: Ministerio de Educación y Cultura Dirección de Educación | DXQ1: Ministerio de Educación y Cultura Dirección de Educación | DYG1: Ministerio de Educación y Cultura Dirección de Educación | DYW1: Ministerio de Educación y Cultura Dirección de Educación | DZM1: Ministerio de Educación y Cultura Dirección de Educación | EAC1: Ministerio de Educación y Cultura Dirección de Educación | EAS1: Ministerio de Educación y Cultura Dirección de Educación | EBI1: Ministerio de Educación y Cultura Dirección de Educación | EBY1: Ministerio de Educación y Cultura Dirección de Educación | ECO1: Ministerio de Educación y Cultura Dirección de Educación | EDE1: Ministerio de Educación y Cultura Dirección de Educación | EDU1: Ministerio de Educación y Cultura Dirección de Educación | EEK1: Ministerio de Educación y Cultura Dirección de Educación | EFA1: Ministerio de Educación y Cultura Dirección de Educación | EFQ1: Ministerio de Educación y Cultura Dirección de Educación | EGG1: Ministerio de Educación y Cultura Dirección de Educación | EGW1: Ministerio de Educación y Cultura Dirección de Educación | EHM1: Ministerio de Educación y Cultura Dirección de Educación | EIC1: Ministerio de Educación y Cultura Dirección de Educación | EIS1: Ministerio de Educación y Cultura Dirección de Educación | EJI1: Ministerio de Educación y Cultura Dirección de Educación | EJY1: Ministerio de Educación y Cultura Dirección de Educación | EKO1: Ministerio de Educación y Cultura Dirección de Educación | ELE1: Ministerio de Educación y Cultura Dirección de Educación | ELU1: Ministerio de Educación y Cultura Dirección de Educación | EMK1: Ministerio de Educación y Cultura Dirección de Educación | ENA1: Ministerio de Educación y Cultura Dirección de Educación | ENQ1: Ministerio de Educación y Cultura Dirección de Educación | EOG1: Ministerio de Educación y Cultura Dirección de Educación | EOW1: Ministerio de Educación y Cultura Dirección de Educación | EPM1: Ministerio de Educación y Cultura Dirección de Educación | EQC1: Ministerio de Educación y Cultura Dirección de Educación | EQS1: Ministerio de Educación y Cultura Dirección de Educación | ERI1: Ministerio de Educación y Cultura Dirección de Educación | ERY1: Ministerio de Educación y Cultura Dirección de Educación | ESO1: Ministerio de Educación y Cultura Dirección de Educación | ETE1: Ministerio de Educación y Cultura Dirección de Educación | ETU1: Ministerio de Educación y Cultura Dirección de Educación | EUK1: Ministerio de Educación y Cultura Dirección de Educación | EVA1: Ministerio de Educación y Cultura Dirección de Educación | EVQ1: Ministerio de Educación y Cultura Dirección de Educación | EWG1: Ministerio de Educación y Cultura Dirección de Educación | EWW1: Ministerio de Educación y Cultura Dirección de Educación | EXM1: Ministerio de Educación y Cultura Dirección de Educación | EYC1: Ministerio de Educación y Cultura Dirección de Educación | EYS1: Ministerio de Educación y Cultura Dirección de Educación | EZI1: Ministerio de Educación y Cultura Dirección de Educación | EZY1: Ministerio de Educación y Cultura Dirección de Educación | FAO1: Ministerio de Educación y Cultura Dirección de Educación | FBE1: Ministerio de Educación y Cultura Dirección de Educación | FBU1: Ministerio de Educación y Cultura Dirección de Educación | FCK1: Ministerio de Educación y Cultura Dirección de Educación | FDA1: Ministerio de Educación y Cultura Dirección de Educación | FDQ1: Ministerio de Educación y Cultura Dirección de Educación | FEG1: Ministerio de Educación y Cultura Dirección de Educación | FEW1: Ministerio de Educación y Cultura Dirección de Educación | FFM1: Ministerio de Educación y Cultura Dirección de Educación | FGC1: Ministerio de Educación y Cultura Dirección de Educación | FGS1: Ministerio de Educación y Cultura Dirección de Educación | FHI1: Ministerio de Educación y Cultura Dirección de Educación | FHY1: Ministerio de Educación y Cultura Dirección de Educación | FIO1: Ministerio de Educación y Cultura Dirección de Educación | FJE1: Ministerio de Educación y Cultura Dirección de Educación | FJU1: Ministerio de Educación y Cultura Dirección de Educación | FKK1: Ministerio de Educación y Cultura Dirección de Educación | FLA1: Ministerio de Educación y Cultura Dirección de Educación | FLQ1: Ministerio de Educación y Cultura Dirección de Educación | FMG1: Ministerio de Educación y Cultura Dirección de Educación | FMW1: Ministerio de Educación y Cultura Dirección de Educación | FNM1: Ministerio de Educación y Cultura Dirección de Educación | FOC1: Ministerio de Educación y Cultura Dirección de Educación | FOS1: Ministerio de Educación y Cultura Dirección de Educación | FPI1: Ministerio de Educación y Cultura Dirección de Educación | FPY1: Ministerio de Educación y Cultura Dirección de Educación | FQO1: Ministerio de Educación y Cultura Dirección de Educación | FRE1: Ministerio de Educación y Cultura Dirección de Educación | FRU1: Ministerio de Educación y Cultura Dirección de Educación | FSK1: Ministerio de Educación y Cultura Dirección de Educación | FTA1: Ministerio de Educación y Cultura Dirección de Educación | FTQ1: Ministerio de Educación y Cultura Dirección de Educación | FUG1: Ministerio de Educación y Cultura Dirección de Educación | FUW1: Ministerio de Educación y Cultura Dirección de Educación | FVM1: Ministerio de Educación y Cultura Dirección de Educación | FWC1: Ministerio de Educación y Cultura Dirección de Educación | FWS1: Ministerio de Educación y Cultura Dirección de Educación | FXI1: Ministerio de Educación y Cultura Dirección de Educación | FXY1: Ministerio de Educación y Cultura Dirección de Educación | FYO1: Ministerio de Educación y Cultura Dirección de Educación | FZE1: Ministerio de Educación y Cultura Dirección de Educación | FZU1: Ministerio de Educación y Cultura Dirección de Educación | GAK1: Ministerio de Educación y Cultura Dirección de Educación | GBA1: Ministerio de Educación y Cultura Dirección de Educación | GBQ1: Ministerio de Educación y Cultura Dirección de Educación | GCG1: Ministerio de Educación y Cultura Dirección de Educación | GCW1: Ministerio de Educación y Cultura Dirección de Educación | GDM1: Ministerio de Educación y Cultura Dirección de Educación | GEC1: Ministerio de Educación y Cultura Dirección de Educación | GES1: Ministerio de Educación y Cultura Dirección de Educación | GFI1: Ministerio de Educación y Cultura Dirección de Educación | GFY1: Ministerio de Educación y Cultura Dirección de Educación | GGO1: Ministerio de Educación y Cultura Dirección de Educación | GHE1: Ministerio de Educación y Cultura Dirección de Educación | GHU1: Ministerio de Educación y Cultura Dirección de Educación | GIK1: Ministerio de Educación y Cultura Dirección de Educación | GJA1: Ministerio de Educación y Cultura Dirección de Educación | GJQ1: Ministerio de Educación y Cultura Dirección de Educación | GKG1: Ministerio de Educación y Cultura Dirección de Educación | GKW1: Ministerio de Educación y Cultura Dirección de Educación | GLM1: Ministerio de Educación y Cultura Dirección de Educación | GMC1: Ministerio de Educación y Cultura Dirección de Educación | GMS1: Ministerio de Educación y Cultura Dirección de Educación | GNI1: Ministerio de Educación y Cultura Dirección de Educación | GNY1: Ministerio de Educación y Cultura Dirección de Educación | GOO1: Ministerio de Educación y Cultura Dirección de Educación | GPE1: Ministerio de Educación y Cultura Dirección de Educación | GPU1: Ministerio de Educación y Cultura Dirección de Educación | GQK1: Ministerio de Educación y Cultura Dirección de Educación | GRA1: Ministerio de Educación y Cultura Dirección de Educación | GRQ1: Ministerio de Educación y Cultura Dirección de Educación | GSG1: Ministerio de Educación y Cultura Dirección de Educación | GSW1: Ministerio de Educación y Cultura Dirección de Educación | GTM1: Ministerio de Educación y Cultura Dirección de Educación | GUC1: Ministerio de Educación y Cultura Dirección de Educación | GUS1: Ministerio de Educación y Cultura Dirección de Educación | GVI1: Ministerio de Educación y Cultura Dirección de Educación | GVY1: Ministerio de Educación y Cultura Dirección de Educación | GWO1: Ministerio de Educación y Cultura Dirección de Educación | GXE1: Ministerio de Educación y Cultura Dirección de Educación | GXU1: Ministerio de Educación y Cultura Dirección de Educación | GYK1: Ministerio de Educación y Cultura Dirección de Educación | GZA1: Ministerio de Educación y Cultura Dirección de Educación | GZQ1: Ministerio de Educación y Cultura Dirección de Educación | HAG1: Ministerio de Educación y Cultura Dirección de Educación | HAW1: Ministerio de Educación y Cultura Dirección de Educación | HBM1: Ministerio de Educación y Cultura Dirección de Educación | HCC1: Ministerio de Educación y Cultura Dirección de Educación | HCS1: Ministerio de Educación y Cultura Dirección de Educación | HDI1: Ministerio de Educación y Cultura Dirección de Educación | HDY1: Ministerio de Educación y Cultura Dirección de Educación | HEO1: Ministerio de Educación y Cultura Dirección de Educación | HFE1: Ministerio de Educación y Cultura Dirección de Educación | HFU1: Ministerio de Educación y Cultura Dirección de Educación | HGK1: Ministerio de Educación y Cultura Dirección de Educación | HHA1: Ministerio de Educación y Cultura Dirección de Educación | HHQ1: Ministerio de Educación y Cultura Dirección de Educación | HIG1: Ministerio de Educación y Cultura Dirección de Educación | HIW1: Ministerio de Educación y Cultura Dirección de Educación | HJM1: Ministerio de Educación y Cultura Dirección de Educación | HKC1: Ministerio de Educación y Cultura Dirección de Educación | HKS1: Ministerio de Educación y Cultura Dirección de Educación | HLI1: Ministerio de Educación y Cultura Dirección de Educación | HLY1: Ministerio de Educación y Cultura Dirección de Educación | HMO1: Ministerio de Educación y Cultura Dirección de Educación | HNE1: Ministerio de Educación y Cultura Dirección de Educación | HNU1: Ministerio de Educación y Cultura Dirección de Educación | HOK1: Ministerio de Educación y Cultura Dirección de Educación | HPA1: Ministerio de Educación y Cultura Dirección de Educación | HPQ1: Ministerio de Educación y Cultura Dirección de Educación | HQG1: Ministerio de Educación y Cultura Dirección de Educación | HQW1: Ministerio de Educación y Cultura Dirección de Educación | HRM1: Ministerio de Educación y Cultura Dirección de Educación | HSC1: Ministerio de Educación y Cultura Dirección de Educación | HSS1: Ministerio de Educación y Cultura Dirección de Educación | HTI1: Ministerio de Educación y Cultura Dirección de Educación | HTY1: Ministerio de Educación y Cultura Dirección de Educación | HUO1: Ministerio de Educación y Cultura Dirección de Educación | HVE1: Ministerio de Educación y Cultura Dirección de Educación | HVU1: Ministerio de Educación y Cultura Dirección de Educación | HWK1: Ministerio de Educación y Cultura Dirección de Educación | HXA1: Ministerio de Educación y Cultura Dirección de Educación | HXQ1: Ministerio de Educación y Cultura Dirección de Educación | HYG1: Ministerio de Educación y Cultura Dirección de Educación | HYW1: Ministerio de Educación y Cultura Dirección de Educación | HZM1: Ministerio de Educación y Cultura Dirección de Educación | IAC1: Ministerio de Educación y Cultura Dirección de Educación | IAS1: Ministerio de Educación y Cultura Dirección de Educación | IBI1: Ministerio de Educación y Cultura Dirección de Educación | IBY1: Ministerio de Educación y Cultura Dirección de Educación | ICO1: Ministerio de Educación y Cultura Dirección de Educación | IDE1: Ministerio de Educación y Cultura Dirección de Educación | IDU1: Ministerio de Educación y Cultura Dirección de Educación | IEK1: Ministerio de Educación y Cultura Dirección de Educación | IFA1: Ministerio de Educación y Cultura Dirección de Educación | IFQ1: Ministerio de Educación y Cultura Dirección de Educación | IGG1: Ministerio de Educación y Cultura Dirección de Educación | IGW1: Ministerio de Educación y Cultura Dirección de Educación | IHM1: Ministerio de Educación y Cultura Dirección de Educación | IIC1: Ministerio de Educación y Cultura Dirección de Educación | IIS1: Ministerio de Educación y Cultura Dirección de Educación | IJI1: Ministerio de Educación y Cultura Dirección de Educación | IJY1: Ministerio de Educación y Cultura Dirección de Educación | IKO1: Ministerio de Educación y Cultura Dirección de Educación | ILE1: Ministerio de Educación y Cultura Dirección de Educación | ILU1: Ministerio de Educación y Cultura Dirección de Educación | IMK1: Ministerio de Educación y Cultura Dirección de Educación | INA1: Ministerio de Educación y Cultura Dirección de Educación | INQ1: Ministerio de Educación y Cultura Dirección de Educación | IOG1: Ministerio de Educación y Cultura Dirección de Educación | IOW1: Ministerio de Educación y Cultura Dirección de Educación | IPM1: Ministerio de Educación y Cultura Dirección de Educación | IQC1: Ministerio de Educación y Cultura Dirección de Educación | IQS1: Ministerio de Educación y Cultura Dirección de Educación | IRI1: Ministerio de Educación y Cultura Dirección de Educación | IRY1: Ministerio de Educación y Cultura Dirección de Educación | ISO1: Ministerio de Educación y Cultura Dirección de Educación | ITE1: Ministerio de Educación y Cultura Dirección de Educación | ITU1: Ministerio de Educación y Cultura Dirección de Educación | IUK1: Ministerio de Educación y Cultura Dirección de Educación | IVA1: Ministerio de Educación y Cultura Dirección de Educación | IVQ1: Ministerio de Educación y Cultura Dirección de Educación | IWG1: Ministerio de Educación y Cultura Dirección de Educación | IWW1: Ministerio de Educación y Cultura Dirección de Educación | IXM1: Ministerio de Educación y Cultura Dirección de Educación | IYC1: Ministerio de Educación y Cultura Dirección de Educación | IYS1: Ministerio de Educación y Cultura Dirección de Educación | IZI1: Ministerio de Educación y Cultura Dirección de Educación | IZY1: Ministerio de Educación y Cultura Dirección de Educación | JAO1: Ministerio de Educación y Cultura Dirección de Educación | JBE1: Ministerio de Educación y Cultura Dirección de Educación | JBU1: Ministerio de Educación y Cultura Dirección de Educación | JCK1: Ministerio de Educación y Cultura Dirección de Educación | JDA1: Ministerio de Educación y Cultura Dirección de Educación | JDQ1: Ministerio de Educación y Cultura Dirección de Educación | JEG1: Ministerio de Educación y Cultura Dirección de Educación | JEW1: Ministerio de Educación y Cultura Dirección de Educación | JFM1: Ministerio de Educación y Cultura Dirección de Educación | JGC1: Ministerio de Educación y Cultura Dirección de Educación | JGS1: Ministerio de Educación y Cultura Dirección de Educación | JHI1: Ministerio de Educación y Cultura Dirección de Educación | JHY1: Ministerio de Educación y Cultura Dirección de Educación | JIO1: Ministerio de Educación y Cultura Dirección de Educación | JJE1: Ministerio de Educación y Cultura Dirección de Educación | JJU1: Ministerio de Educación y Cultura Dirección de Educación | JKK1: Ministerio de Educación y Cultura Dirección de Educación | JLA1: Ministerio de Educación y Cultura Dirección de Educación | JLQ1: Ministerio de Educación y Cultura Dirección de Educación | JMG1: Ministerio de Educación y Cultura Dirección de Educación | JMW1: Ministerio de Educación y Cultura Dirección de Educación | JNM1: Ministerio de Educación y Cultura Dirección de Educación | JOC1: Ministerio de Educación y Cultura Dirección de Educación | JOS1: Ministerio de Educación y Cultura Dirección de Educación | JPI1: Ministerio de Educación y Cultura Dirección de Educación | JPY1: Ministerio de Educación y Cultura Dirección de Educación | JQO1: Ministerio de Educación y Cultura Dirección de Educación | JRE1: Ministerio de Educación y Cultura Dirección de Educación | JRU1: Ministerio de Educación y Cultura Dirección de Educación | JSK1: Ministerio de Educación y Cultura Dirección de Educación | JTA1: Ministerio de Educación y Cultura Dirección de Educación | JTQ1: Ministerio de Educación y Cultura Dirección de Educación | JUG1: Ministerio de Educación y Cultura Dirección de Educación | JUW1: Ministerio de Educación y Cultura Dirección de Educación | JVM1: Ministerio de Educación y Cultura Dirección de Educación | JWC1: Ministerio de Educación y Cultura Dirección de Educación | JWS1: Ministerio de Educación y Cultura Dirección de Educación | JXI1: Ministerio de Educación y Cultura Dirección de Educación | JXY1: Ministerio de Educación y Cultura Dirección de Educación | JYO1: Ministerio de Educación y Cultura Dirección de Educación | JZE1: Ministerio de Educación y Cultura Dirección de Educación | JZU1: Ministerio de Educación y Cultura Dirección de Educación | KAK1: Ministerio de Educación y Cultura Dirección de Educación | KBA1: Ministerio de Educación y Cultura Dirección de Educación | KBQ1: Ministerio de Educación y Cultura Dirección de Educación | KCG1: Ministerio de Educación y Cultura Dirección de Educación | KCW1: Ministerio de Educación y Cultura Dirección de Educación | KDM1: Ministerio de Educación y Cultura Dirección de Educación | KEC1: Ministerio de Educación y Cultura Dirección de Educación | KES1: Ministerio de Educación y Cultura Dirección de Educación | KFI1: Ministerio de Educación y Cultura Dirección de Educación | KFY1: Ministerio de Educación y Cultura Dirección de Educación | KGO1: Ministerio de Educación y Cultura Dirección de Educación | KHE1: Ministerio de Educación y Cultura Dirección de Educación | KHU1: Ministerio de Educación y Cultura Dirección de Educación | KIK1: Ministerio de Educación y Cultura Dirección de Educación | KJA1: Ministerio de Educación y Cultura Dirección de Educación | KJQ1: Ministerio de Educación y Cultura Dirección de Educación | KKG1: Ministerio de Educación y Cultura Dirección de Educación | KKW1: Ministerio de Educación y Cultura Dirección de Educación | KLM1: Ministerio de Educación y Cultura Dirección de Educación | KMC1: Ministerio de Educación y Cultura Dirección de Educación | KMS1: Ministerio de Educación y Cultura Dirección de Educación | KNI1: Ministerio de Educación y Cultura Dirección de Educación | KNY1: Ministerio de Educación y Cultura Dirección de Educación | KOO1: Ministerio de Educación y Cultura Dirección de Educación | KPE1: Ministerio de Educación y Cultura Dirección de Educación | KPU1: Ministerio de Educación y Cultura Dirección de Educación | KQK1: Ministerio de Educación y Cultura Dirección de Educación | KRA1: Ministerio de Educación y Cultura Dirección de Educación | KRQ1: Ministerio de Educación y Cultura Dirección de Educación | KSG1: Ministerio de Educación y Cultura Dirección de Educación | KSW1: Ministerio de Educación y Cultura Dirección de Educación | KTM1: Ministerio de Educación y Cultura Dirección de Educación | KUC1: Ministerio de Educación y Cultura Dirección de Educación | KUS1: Ministerio de Educación y Cultura Dirección de Educación | KVI1: Ministerio de Educación y Cultura Dirección de Educación | KVY1: Ministerio de Educación y Cultura Dirección de Educación | KWO1: Ministerio de Educación y Cultura Dirección de Educación | KXE1: Ministerio de Educación y Cultura Dirección de Educación | KXU1: Ministerio de Educación y Cultura Dirección de Educación | KYK1: Ministerio de Educación y Cultura Dirección de Educación | KZA1: Ministerio de Educación y Cultura Dirección de Educación | KZQ1: Ministerio de Educación y Cultura Dirección de Educación | LAG1: Ministerio de Educación y Cultura Dirección de Educación | LAW1: Ministerio de Educación y Cultura Dirección de Educación | LBM1: Ministerio de Educación y Cultura Dirección de Educación | LCC1: Ministerio de Educación y Cultura Dirección de Educación | LCS1: Ministerio de Educación y Cultura Dirección de Educación | LDI1: Ministerio de Educación y Cultura Dirección de Educación | LDY1: Ministerio de Educación y Cultura Dirección de Educación | LEO1: Ministerio de Educación y Cultura Dirección de Educación | LFE1: Ministerio de Educación y Cultura Dirección de Educación | LFU1: Ministerio de Educación y Cultura Dirección de Educación | LGK1: Ministerio de Educación y Cultura Dirección de Educación | LHA1: Ministerio de Educación y Cultura Dirección de Educación | LHQ1: Ministerio de Educación y Cultura Dirección de Educación | LIG1: Ministerio de Educación y Cultura Dirección de Educación | LIW1: Ministerio de Educación y Cultura Dirección de Educación | LJM1: Ministerio de Educación y Cultura Dirección de Educación | LKC1: Ministerio de Educación y Cultura Dirección de Educación | LKS1: Ministerio de Educación y Cultura Dirección de Educación | LLI1: Ministerio de Educación y Cultura Dirección de Educación | LLY1: Ministerio de Educación y Cultura Dirección de Educación | LMO1: Ministerio de Educación y Cultura Dirección de Educación | LNE1: Ministerio de Educación y Cultura Dirección de Educación | LNU1: Ministerio de Educación y Cultura Dirección de Educación | LOK1: Ministerio de Educación y Cultura Dirección de Educación | LPA1: Ministerio de Educación y Cultura Dirección de Educación | LPQ1: Ministerio de Educación y Cultura Dirección de Educación | LQG1: Ministerio de Educación y Cultura Dirección de Educación | LQW1: Ministerio de Educación y Cultura Dirección de Educación | LRM1: Ministerio de Educación y Cultura Dirección de Educación | LSC1: Ministerio de Educación y Cultura Dirección de Educación | LSS1: Ministerio de Educación y Cultura Dirección de Educación | LTI1: Ministerio de Educación y Cultura Dirección de Educación | LTY1: Ministerio de Educación y Cultura Dirección de Educación | LUO1: Ministerio de Educación y Cultura Dirección de Educación | LVE1: Ministerio de Educación y Cultura Dirección de Educación | LVU1: Ministerio de Educación y Cultura Dirección de Educación | LWK1: Ministerio de Educación y Cultura Dirección de Educación | LXA1: Ministerio de Educación y Cultura Dirección de Educación | LXQ1: Ministerio de Educación y Cultura Dirección de Educación | LYG1: Ministerio de Educación y Cultura Dirección de Educación | LYW1: Ministerio de Educación y Cultura Dirección de Educación | LZM1: Ministerio de Educación y Cultura Dirección de Educación | MAC1: Ministerio de Educación y Cultura Dirección de Educación | MAS1: Ministerio de Educación y Cultura Dirección de Educación | MBI1: Ministerio de Educación y Cultura Dirección de Educación | MBY1: Ministerio de Educación y Cultura Dirección de Educación | MCO1: Ministerio de Educación y Cultura Dirección de Educación | MDE1: Ministerio de Educación y Cultura Dirección de Educación | MDU1: Ministerio de Educación y Cultura Dirección de Educación | MEK1: Ministerio de Educación y Cultura Dirección de Educación | MFA1: Ministerio de Educación y Cultura Dirección de Educación | MFQ1: Ministerio de Educación y Cultura Dirección de Educación | MGG1: Ministerio de Educación y Cultura Dirección de Educación | MGW1: Ministerio de Educación y Cultura Dirección de Educación | MHM1: Ministerio de Educación y Cultura Dirección de Educación | MIC1: Ministerio de Educación y Cultura Dirección de Educación | MIS1: Ministerio de Educación y Cultura Dirección de Educación | MJI1: Ministerio de Educación y Cultura Dirección de Educación | MJY1: Ministerio de Educación y Cultura Dirección de Educación | MKO1: Ministerio de Educación y Cultura Dirección de Educación | MLE1: Ministerio de Educación y Cultura Dirección de Educación | MLU1: Ministerio de Educación y Cultura Dirección de Educación | MMK1: Ministerio de Educación y Cultura Dirección de Educación | MNA1: Ministerio de Educación y Cultura Dirección de Educación | MNQ1: Ministerio de Educación y Cultura Dirección de Educación | MOG1: Ministerio de Educación y Cultura Dirección de Educación | MOW1: Ministerio de Educación y Cultura Dirección de Educación | MPM1: Ministerio de Educación y Cultura Dirección de Educación | MQC1: Ministerio de Educación y Cultura Dirección de Educación | MQS1: Ministerio de Educación y Cultura Dirección de Educación | MRI1: Ministerio de Educación y Cultura Dirección de Educación | MRY1: Ministerio de Educación y Cultura Dirección de Educación | MSO1: Ministerio de Educación y Cultura Dirección de Educación | MTE1: Ministerio de Educación y Cultura Dirección de Educación | MTU1: Ministerio de Educación y Cultura Dirección de Educación | MUK1: Ministerio de Educación y Cultura Dirección de Educación | MVA1: Ministerio de Educación y Cultura Dirección de Educación | MVQ1: Ministerio de Educación y Cultura Dirección de Educación | MWG1: Ministerio de Educación y Cultura Dirección de Educación | MWW1: Ministerio de Educación y Cultura Dirección de Educación | MXM1: Ministerio de Educación y Cultura Dirección de Educación | MYC1: Ministerio de Educación y Cultura Dirección de Educación | MYS1: Ministerio de Educación y Cultura Dirección de Educación | MZI1: Ministerio de Educación y Cultura Dirección de Educación | MZY1: Ministerio de Educación y Cultura Dirección de Educación | NAO1: Ministerio de Educación y Cultura Dirección de Educación | NBE1: Ministerio de Educación y Cultura Dirección de Educación | NBU1: Ministerio de Educación y Cultura Dirección de Educación | NCK1: Ministerio de Educación y Cultura Dirección de Educación | NDA1: Ministerio de Educación y Cultura Dirección de Educación | NDQ1: Ministerio de Educación y Cultura Dirección de Educación | NEG1: Ministerio de Educación y Cultura Dirección de Educación | NEW1: Ministerio de Educación y Cultura Dirección de Educación | NFM1: Ministerio de Educación y Cultura Dirección de Educación | NGC1: Ministerio de Educación y Cultura Dirección de Educación | NGS1: Ministerio de Educación y Cultura Dirección de Educación | NHI1: Ministerio de Educación y Cultura Dirección de Educación | NHY1: Ministerio de Educación y Cultura Dirección de Educación | NIO1: Ministerio de Educación y Cultura Dirección de Educación | NJE1: Ministerio de Educación y Cultura Dirección de Educación | NJU1: Ministerio de Educación y Cultura Dirección de Educación | NKK1: Ministerio de Educación y Cultura Dirección de Educación | NLA1: Ministerio de Educación y Cultura Dirección de Educación | NLQ1: Ministerio de Educación y Cultura Dirección de Educación | NMG1: Ministerio de Educación y Cultura Dirección de Educación | NMW1: Ministerio de Educación y Cultura Dirección de Educación | NNM1: Ministerio de Educación y Cultura Dirección de Educación | NOC1: Ministerio de Educación y Cultura Dirección de Educación | NOS1: Ministerio de Educación y Cultura Dirección de Educación | NPI1: Ministerio de Educación y Cultura Dirección de Educación | NPY1: Ministerio de Educación y Cultura Dirección de Educación | NQO1: Ministerio de Educación y Cultura Dirección de Educación | NRE1: Ministerio de Educación y Cultura Dirección de Educación | NRU1: Ministerio de Educación y Cultura Dirección de Educación | NSK1: Ministerio de Educación y Cultura Dirección de Educación | NTA1: Ministerio de Educación y Cultura Dirección de Educación | NTQ1: Ministerio de Educación y Cultura Dirección de Educación | NUG1: Ministerio de Educación y Cultura Dirección de Educación | NUW1: Ministerio de Educación y Cultura Dirección de Educación | NVM1: Ministerio de Educación y Cultura Dirección de Educación | NWC1: Ministerio de Educación y Cultura Dirección de Educación | NWS1: Ministerio de Educación y Cultura Dirección de Educación | NXI1: Ministerio de Educación y Cultura Dirección de Educación | NXY1: Ministerio de Educación y Cultura Dirección de Educación | NYO1: Ministerio de Educación y Cultura Dirección de Educación | NZE1: Ministerio de Educación y Cultura Dirección de Educación | NZU1: Ministerio de Educación y Cultura Dirección de Educación | OAK1: Ministerio de Educación y Cultura Dirección de Educación | OBA1: Ministerio de Educación y Cultura Dirección de Educación | OBQ1: Ministerio de Educación y Cultura Dirección de Educación | OCG1: Ministerio de Educación y Cultura Dirección de Educación | OCW1: Ministerio de Educación y Cultura Dirección de Educación | ODM1: Ministerio de Educación y Cultura Dirección de Educación | OEC1: Ministerio de Educación y Cultura Dirección de Educación | OES1: Ministerio de Educación y Cultura Dirección de Educación | OFI1: Ministerio de Educación y Cultura Dirección de Educación | OFY1: Ministerio de Educación y Cultura Dirección de Educación | OGO1: Ministerio de Educación y Cultura Dirección de Educación | OHE1: Ministerio de Educación y Cultura Dirección de Educación | OHU1: Ministerio de Educación y Cultura Dirección de Educación | OIK1: Ministerio de Educación y Cultura Dirección de Educación | OJA1: Ministerio de Educación y Cultura Dirección de Educación | OJQ1: Ministerio de Educación y Cultura Dirección de Educación | OKG1: Ministerio de Educación y Cultura Dirección de Educación | OKW1: Ministerio de Educación y Cultura Dirección de Educación | OLM1: Ministerio de Educación y Cultura Dirección de Educación | OMC1: Ministerio de Educación y Cultura Dirección de Educación | OMS1: Ministerio de Educación y Cultura Dirección de Educación | ONI1: Ministerio de Educación y Cultura Dirección de Educación | ONY1: Ministerio de Educación y Cultura Dirección de Educación | OOO1: Ministerio de Educación y Cultura Dirección de Educación | OPE1: Ministerio de Educación y Cultura Dirección de Educación | OPU1: Ministerio de Educación y Cultura Dirección de Educación | OQK1: Ministerio de Educación y Cultura Dirección de Educación | ORA1: Ministerio de Educación y Cultura Dirección de Educación | ORQ1: Ministerio de Educación y Cultura Dirección de Educación | OSG1: Ministerio de Educación y Cultura Dirección de Educación | OSW1: Ministerio de Educación y Cultura Dirección de Educación | OTM1: Ministerio de Educación y Cultura Dirección de Educación | OUC1: Ministerio de Educación y Cultura Dirección de Educación | OUS1: Ministerio de Educación y Cultura Dirección de Educación | OVI1: Ministerio de Educación y Cultura Dirección de Educación | OVY1: Ministerio de Educación y Cultura Dirección de Educación | OWO1: Ministerio de Educación y Cultura Dirección de Educación | OXE1: Ministerio de Educación y Cultura Dirección de Educación | OXU1: Ministerio de Educación y Cultura Dirección de Educación | OYK1: Ministerio de Educación y Cultura Dirección de Educación | OZA1: Ministerio de Educación y Cultura Dirección de Educación | OZQ1: Ministerio de Educación y Cultura Dirección de Educación | PAG1: Ministerio de Educación y Cultura Dirección de Educación | PAW1: Ministerio de Educación y Cultura Dirección de Educación | PBM1: Ministerio de Educación y Cultura Dirección de Educación | PCC1: Ministerio de Educación y Cultura Dirección de Educación | PCS1: Ministerio de Educación y Cultura Dirección de Educación | PDI1: Ministerio de Educación y Cultura Dirección de Educación | PDY1: Ministerio de Educación y Cultura Dirección de Educación | PEO1: Ministerio de Educación y Cultura Dirección de Educación | PFE1: Ministerio de Educación y Cultura Dirección de Educación | PFU1: Ministerio de Educación y Cultura Dirección de Educación | PGK1: Ministerio de Educación y Cultura Dirección de Educación | PHA1: Ministerio de Educación y Cultura Dirección de Educación | PHQ1: Ministerio de Educación y Cultura Dirección de Educación | PIG1: Ministerio de Educación y Cultura Dirección de Educación | PIW1: Ministerio de Educación y Cultura Dirección de Educación | PJM1: Ministerio de Educación y Cultura Dirección de Educación | PKC1: Ministerio de Educación y Cultura Dirección de Educación | PKS1: Ministerio de Educación y Cultura Dirección de Educación | PLI1: Ministerio de Educación y Cultura Dirección de Educación | PLY1: Ministerio de Educación y Cultura Dirección de Educación | PMO1: Ministerio de Educación y Cultura Dirección de Educación | PNE1: Ministerio de Educación y Cultura Dirección de Educación | PNU1: Ministerio de Educación y Cultura Dirección de Educación | POK1: Ministerio de Educación y Cultura Dirección de Educación | PPA1: Ministerio de Educación y Cultura Dirección de Educación | PPQ1: Ministerio de Educación y Cultura Dirección de Educación | PQG1: Ministerio de Educación y Cultura Dirección de Educación | PQW1: Ministerio de Educación y Cultura Dirección de Educación | PRM1: Ministerio de Educación y Cultura Dirección de Educación | PSC1: Ministerio de Educación y Cultura Dirección de Educación | PSS1: Ministerio de Educación y Cultura Dirección de Educación | PTI1: Ministerio de Educación y Cultura Dirección de Educación | PTY1: Ministerio de Educación y Cultura Dirección de Educación | PUO1: Ministerio de Educación y Cultura Dirección de Educación | PVE1: Ministerio de Educación y Cultura Dirección de Educación | PVU1: Ministerio de Educación y Cultura Dirección de Educación | PWK1: Ministerio de Educación y Cultura Dirección de Educación | PXA1: Ministerio de Educación y Cultura Dirección de Educación | PXQ1: Ministerio de Educación y Cultura Dirección de Educación | PYG1: Ministerio de Educación y Cultura Dirección de Educación | PYW1: Ministerio de Educación y Cultura Dirección de Educación | PZM1: Ministerio de Educación y Cultura Dirección de Educación | QAC1: Ministerio de Educación y Cultura Dirección de Educación | QAS1: Ministerio de Educación y Cultura Dirección de Educación | QBI1: Ministerio de Educación y Cultura Dirección de Educación | QBY1: Ministerio de Educación y Cultura Dirección de Educación | QCO1: Ministerio de Educación y Cultura Dirección de Educación | QDE1: Ministerio de Educación y Cultura Dirección de Educación | QDU1: Ministerio de Educación y Cultura Dirección de Educación | QEK1: Ministerio de Educación y Cultura Dirección de Educación | QFA1: Ministerio de Educación y Cultura Dirección de Educación | QFQ1: Ministerio de Educación y Cultura Dirección de Educación | QGG1: Ministerio de Educación y Cultura Dirección de Educación | QGW1: Ministerio de Educación y Cultura Dirección de Educación | QHM1: Ministerio de Educación y Cultura Dirección de Educación | QIC1: Ministerio de Educación y Cultura Dirección de Educación | QIS1: Ministerio de Educación y Cultura Dirección de Educación | QJI1: Ministerio de Educación y Cultura Dirección de Educación | QJY1: Ministerio de Educación y Cultura Dirección de Educación | QKO1: Ministerio de Educación y Cultura Dirección de Educación | QLE1: Ministerio de Educación y Cultura Dirección de Educación | QLU1: Ministerio de Educación y Cultura Dirección de Educación | QMK1: Ministerio de Educación y Cultura Dirección de Educación | QNA1: Ministerio de Educación y Cultura Dirección de Educación | QNQ1: Ministerio de Educación y Cultura Dirección de Educación | QOG1: Ministerio de Educación y Cultura Dirección de Educación | QOW1: Ministerio de Educación y Cultura Dirección de Educación | QPM1: Ministerio de Educación y Cultura Dirección de Educación | QQC1: Ministerio de Educación y Cultura Dirección de Educación | QQS1: Ministerio de Educación y Cultura Dirección de Educación | QRI1: Ministerio de Educación y Cultura Dirección de Educación | QRY1: Ministerio de Educación y Cultura Dirección de Educación | QSO1: Ministerio de Educación y Cultura Dirección de Educación | QTE1: Ministerio de Educación y Cultura Dirección de Educación | QTU1: Ministerio de Educación y Cultura Dirección de Educación | QUK1: Ministerio de Educación y Cultura Dirección de Educación | QVA1: Ministerio de Educación y Cultura Dirección de Educación | QVQ1: Ministerio de Educación y Cultura Dirección de Educación | QWG1: Ministerio de Educación y Cultura Dirección de Educación | QWW1: Ministerio de Educación y Cultura Dirección de Educación | QXM1: Ministerio de Educación y Cultura Dirección de Educación | QYC1: Ministerio de Educación y Cultura Dirección de Educación | QYS1: Ministerio de Educación y Cultura Dirección de Educación | QZI1: Ministerio de Educación y Cultura Dirección de Educación | QZY1: Ministerio de Educación y Cultura Dirección de Educación | RAO1: Ministerio de Educación y Cultura Dirección de Educación | RBE1: Ministerio de Educación y Cultura Dirección de Educación | RBU1: Ministerio de Educación y Cultura Dirección de Educación | RCK1: Ministerio de Educación y Cultura Dirección de Educación | RDA1: Ministerio de Educación y Cultura Dirección de Educación | RDQ1: Ministerio de Educación y Cultura Dirección de Educación | REG1: Ministerio de Educación y Cultura Dirección de Educación | REW1: Ministerio de Educación y Cultura Dirección de Educación | RFM1: Ministerio de Educación y Cultura Dirección de Educación | RGC1: Ministerio de Educación y Cultura Dirección de Educación | RGS1: Ministerio de Educación y Cultura Dirección de Educación | RHI1: Ministerio de Educación y Cultura Dirección de Educación | RHY1: Ministerio de Educación y Cultura Dirección de Educación | RIO1: Ministerio de Educación y Cultura Dirección de Educación | RJE1: Ministerio de Educación y Cultura Dirección de Educación | RJU1: Ministerio de Educación y Cultura Dirección de Educación | RKK1: Ministerio de Educación y Cultura Dirección de Educación | RLA1: Ministerio de Educación y Cultura Dirección de Educación | RLQ1: Ministerio de Educación y Cultura Dirección de Educación | RMG1: Ministerio de Educación y Cultura Dirección de Educación | RMW1: Ministerio de Educación y Cultura Dirección de Educación | RNM1: Ministerio de Educación y Cultura Dirección de Educación | ROC1: Ministerio de Educación y Cultura Dirección de Educación | ROS1: Ministerio de Educación y Cultura Dirección de Educación | RPI1: Ministerio de Educación y Cultura Dirección de Educación | RPY1: Ministerio de Educación y Cultura Dirección de Educación | RQO1: Ministerio de Educación y Cultura Dirección de Educación | RRE1: Ministerio de Educación y Cultura Dirección de Educación | RRU1: Ministerio de Educación y Cultura Dirección de Educación | RSK1: Ministerio de Educación y Cultura Dirección de Educación | RTA1: Ministerio de Educación y Cultura Dirección de Educación | RTQ1: Ministerio de Educación y Cultura Dirección de Educación | RUG1: Ministerio de Educación y Cultura Dirección de Educación | RUW1: Ministerio de Educación y Cultura Dirección de Educación | RVM1: Ministerio de Educación y Cultura Dirección de Educación | RWC1: Ministerio de Educación y Cultura Dirección de Educación | RWS1: Ministerio de Educación y Cultura Dirección de Educación | RXI1: Ministerio de Educación y Cultura Dirección de Educación | RXY1: Ministerio de Educación y Cultura Dirección de Educación | RYO1: Ministerio de Educación y Cultura Dirección de Educación | RZE1: Ministerio de Educación y Cultura Dirección de Educación | RZU1: Ministerio de Educación y Cultura Dirección de Educación | SAK1: Ministerio de Educación y Cultura Dirección de Educación | SBA1: Ministerio de Educación y Cultura Dirección de Educación | SBQ1: Ministerio de Educación y Cultura Dirección de Educación | SCG1: Ministerio de Educación y Cultura Dirección de Educación | SCW1: Ministerio de Educación y Cultura Dirección de Educación | SDM1: Ministerio de Educación y Cultura Dirección de Educación | SEC1: Ministerio de Educación y Cultura Dirección de Educación | SES1: Ministerio de Educación y Cultura Dirección de Educación | SFI1: Ministerio de Educación y Cultura Dirección de Educación | SFY1: Ministerio de Educación y Cultura Dirección de Educación | SGO1: Ministerio de Educación y Cultura Dirección de Educación | SHE1: Ministerio de Educación y Cultura Dirección de Educación | SHU1: Ministerio de Educación y Cultura Dirección de Educación | SIK1: Ministerio de Educación y Cultura Dirección de Educación | SJA1: Ministerio de Educación y Cultura Dirección de Educación | SJQ1: Ministerio de Educación y Cultura Dirección de Educación | SKG1: Ministerio de Educación y Cultura Dirección de Educación | SKW1: Ministerio de Educación y Cultura Dirección de Educación | SLM1: Ministerio de Educación y Cultura Dirección de Educación | SMC1: Ministerio de Educación y Cultura Dirección de Educación | SMS1: Ministerio de Educación y Cultura Dirección de Educación | SNI1: Ministerio de Educación y Cultura Dirección de Educación | SNY1: Ministerio de Educación y Cultura Dirección de Educación | SOO1: Ministerio de Educación y Cultura Dirección de Educación | SPE1: Ministerio de Educación y Cultura Dirección de Educación | SPU1: Ministerio de Educación y Cultura Dirección de Educación | SQK1: Ministerio de Educación y Cultura Dirección de Educación | SRA1: Ministerio de Educación y Cultura Dirección de Educación | SRQ1: Ministerio de Educación y Cultura Dirección de Educación | SSG1: Ministerio de Educación y Cultura Dirección de Educación | SSW1: Ministerio de Educación y Cultura Dirección de Educación | STM1: Ministerio de Educación y Cultura Dirección de Educación | SUC1: Ministerio de Educación y Cultura Dirección de Educación | SUS1: Ministerio de Educación y Cultura Dirección de Educación | SVI1: Ministerio de Educación y Cultura Dirección de Educación | SVY1: Ministerio de Educación y Cultura Dirección de Educación | SWO1: Ministerio de Educación y Cultura Dirección de Educación | SXE1: Ministerio de Educación y Cultura Dirección de Educación | SXU1: Ministerio de Educación y Cultura Dirección de Educación | SYK1: Ministerio de Educación y Cultura Dirección de Educación | SZA1: Ministerio de Educación y Cultura Dirección de Educación | SZQ1: Ministerio de Educación y Cultura Dirección de Educación | TAG1: Ministerio de Educación y Cultura Dirección de Educación | TAW1: Ministerio de Educación y Cultura Dirección de Educación | TBM1: Ministerio de Educación y Cultura Dirección de Educación | TCC1: Ministerio de Educación y Cultura Dirección de Educación | TCS1: Ministerio de Educación y Cultura Dirección de Educación | TDI1: Ministerio de Educación y Cultura Dirección de Educación | TDY1: Ministerio de Educación y Cultura Dirección de Educación | TEO1: Ministerio de Educación y Cultura Dirección de Educación | TFE1: Ministerio de Educación y Cultura Dirección de Educación | TFU1: Ministerio de Educación y Cultura Dirección de Educación | TGK1: Ministerio de Educación y Cultura Dirección de Educación | THA1: Ministerio de Educación y Cultura Dirección de Educación | THQ1: Ministerio de Educación y Cultura Dirección de Educación | TIG1: Ministerio de Educación y Cultura Dirección de Educación | TIW1: Ministerio de Educación y Cultura Dirección de Educación | TJM1: Ministerio de Educación y Cultura Dirección de Educación | TKC1: Ministerio de Educación y Cultura Dirección de Educación | TKS1: Ministerio de Educación y Cultura Dirección de Educación | TLI1: Ministerio de Educación y Cultura Dirección de Educación | TLY1: Ministerio de Educación y Cultura Dirección de Educación | TMO1: Ministerio de Educación y Cultura Dirección de Educación | TNE1: Ministerio de Educación y Cultura Dirección de Educación | TNU1: Ministerio de Educación y Cultura Dirección de Educación | TOK1: Ministerio de Educación y Cultura Dirección de Educación | TPA1: Ministerio de Educación y Cultura Dirección de Educación | TPQ1: Ministerio de Educación y Cultura Dirección de Educación | TQG1: Ministerio de Educación y Cultura Dirección de Educación | TQW1: Ministerio de Educación y Cultura Dirección de Educación | TRM1: Ministerio de Educación y Cultura Dirección de Educación | TSC1: Ministerio de Educación y Cultura Dirección de Educación | TSS1: Ministerio de Educación y Cultura Dirección de Educación | TTI1: Ministerio de Educación y Cultura Dirección de Educación | TTY1: Ministerio de Educación y Cultura Dirección de Educación | TUO1: Ministerio de Educación y Cultura Dirección de Educación | TVE1: Ministerio de Educación y Cultura Dirección de Educación | TVU1: Ministerio de Educación y Cultura Dirección de Educación | TWK1: Ministerio de Educación y Cultura Dirección de Educación | TXA1: Ministerio de Educación y Cultura Dirección de Educación | TXQ1: Ministerio de Educación y Cultura Dirección de Educación | TYG1: Ministerio de Educación y Cultura Dirección de Educación | TYW1: Ministerio de Educación y Cultura Dirección de Educación | TZM1: Ministerio de Educación y Cultura Dirección de Educación | UAC1: Ministerio de Educación y Cultura Dirección de Educación | UAS1: Ministerio de Educación y Cultura Dirección de Educación | UBI1: Ministerio de Educación y Cultura Dirección de Educación | UBY1: Ministerio de Educación y Cultura Dirección de Educación | UCO1: Ministerio de Educación y Cultura Dirección de Educación | UDE1: Ministerio de Educación y Cultura Dirección de Educación | UDU1: Ministerio de Educación y Cultura Dirección de Educación | UEK1: Ministerio de Educación y Cultura Dirección de Educación | UFA1: Ministerio de Educación y Cultura Dirección de Educación | UFQ1: Ministerio de Educación y Cultura Dirección de Educación | UGG1: Ministerio de Educación y Cultura Dirección de Educación | UGW1: Ministerio de Educación y Cultura Dirección de Educación | UHM1: Ministerio de Educación y Cultura Dirección de Educación | UIC1: Ministerio de Educación y Cultura Dirección de Educación | UIS1: Ministerio de Educación y Cultura Dirección de Educación | UJI1: Ministerio de Educación y Cultura Dirección de Educación | UJY1: Ministerio de Educación y Cultura Dirección de Educación | UKO1: Ministerio de Educación y Cultura Dirección de Educación | ULE1: Ministerio de Educación y Cultura Dirección de Educación | ULU1: Ministerio de Educación y Cultura Dirección de Educación | UMK1: Ministerio de Educación y Cultura Dirección de Educación | UNA1: Ministerio de Educación y Cultura Dirección de Educación | UNQ1: Ministerio de Educación y Cultura Dirección de Educación | UOG1: Ministerio de Educación y Cultura Dirección de Educación | UOW1: Ministerio de Educación y Cultura Dirección de Educación | UPM1: Ministerio de Educación y Cultura Dirección de Educación | UQC1: Ministerio de Educación y Cultura Dirección de Educación | UQS1: Ministerio de Educación y Cultura Dirección de Educación | URI1: Ministerio de Educación y Cultura Dirección de Educación | URY1: Ministerio de Educación y Cultura Dirección de Educación | USO1: Ministerio de Educación y Cultura Dirección de Educación | UTE1: Ministerio de Educación y Cultura Dirección de Educación | UTU1: Ministerio de Educación y Cultura Dirección de Educación | UUK1: Ministerio de Educación y Cultura Dirección de Educación | UVA1: Ministerio de Educación y Cultura Dirección de Educación | UVQ1: Ministerio de Educación y Cultura Dirección de Educación | UWG1: Ministerio de Educación y Cultura Dirección de Educación | UWW1: Ministerio de Educación y Cultura Dirección de Educación | UXM1: Ministerio de Educación y Cultura Dirección de Educación | UYC1: Ministerio de Educación y Cultura Dirección de Educación | UYS1: Ministerio de Educación y Cultura Dirección de Educación | UZI1: Ministerio de Educación y Cultura Dirección de Educación | UZY1: Ministerio de Educación y Cultura Dirección de Educación | VAO1: Ministerio de Educación y Cultura Dirección de Educación | VBE1: Ministerio de Educación y Cultura Dirección de Educación | VBU1: Ministerio de Educación y Cultura Dirección de Educación | VCK1: Ministerio de Educación y Cultura Dirección de Educación | VDA1: Ministerio de Educación y Cultura Dirección de Educación | VDQ1: Ministerio de Educación y Cultura Dirección de Educación | VEG1: Ministerio de Educación y Cultura Dirección de Educación | VEW1: Ministerio de Educación y Cultura Dirección de Educación | VFM1: Ministerio de Educación y Cultura Dirección de Educación | VGC1: Ministerio de Educación y Cultura Dirección de Educación | VGS1: Ministerio de Educación y Cultura Dirección de Educación | VHI1: Ministerio de Educación y Cultura Dirección de Educación | VHY1: Ministerio de Educación y Cultura Dirección de Educación | VIO1: Ministerio de Educación y Cultura Dirección de Educación | VJE1: Ministerio de Educación y Cultura Dirección de Educación | VJU1: Ministerio de Educación y Cultura Dirección de Educación | VKK1: Ministerio de Educación y Cultura Dirección de Educación | VLA1: Ministerio de Educación y Cultura Dirección de Educación | VLQ1: Ministerio de Educación y Cultura Dirección de Educación | VMG1: Ministerio de Educación y Cultura Dirección de Educación | VMW1: Ministerio de Educación y Cultura Dirección de Educación | VNM1: Ministerio de Educación y Cultura Dirección de Educación | VOC1: Ministerio de Educación y Cultura Dirección de Educación | VOS1: Ministerio de Educación y Cultura Dirección de Educación | VPI1: Ministerio de Educación y Cultura Dirección de Educación | VPY1: Ministerio de Educación y Cultura Dirección de Educación | VQO1: Ministerio de Educación y Cultura Dirección de Educación | VRE1: Ministerio de Educación y Cultura Dirección de Educación | VRU1: Ministerio de Educación y Cultura Dirección de Educación | VSK1: Ministerio de Educación y Cultura Dirección de Educación | VTA1: Ministerio de Educación y Cultura Dirección de Educación | VTQ1: Ministerio de Educación y Cultura Dirección de Educación | VUG1: Ministerio de Educación y Cultura Dirección de Educación | VUW1: Ministerio de Educación y Cultura Dirección de Educación | VVM1: Ministerio de Educación y Cultura Dirección de Educación | VWC1: Ministerio de Educación y Cultura Dirección de Educación | VWS1: Ministerio de Educación y Cultura Dirección de Educación | VXI1: Ministerio de Educación y Cultura Dirección de Educación | VXY1: Ministerio de Educación y Cultura Dirección de Educación | VYO1: Ministerio de Educación y Cultura Dirección de Educación | VZE1: Ministerio de Educación y Cultura Dirección de Educación | VZU1: Ministerio de Educación y Cultura Dirección de Educación | WAK1: Ministerio de Educación y Cultura Dirección de Educación | WBA1: Ministerio de Educación y Cultura Dirección de Educación | WBQ1: Ministerio de Educación y Cultura Dirección de Educación | WCG1: Ministerio de Educación y Cultura Dirección de Educación | WCW1: Ministerio de Educación y Cultura Dirección de Educación | WDM1: Ministerio de Educación y Cultura Dirección de Educación | WEC1: Ministerio de Educación y Cultura Dirección de Educación | WES1: Ministerio de Educación y Cultura Dirección de Educación | WFI1: Ministerio de Educación y Cultura Dirección de Educación | WFY1: Ministerio de Educación y Cultura Dirección de Educación | WGO1: Ministerio de Educación y Cultura Dirección de Educación | WHE1: Ministerio de Educación y Cultura Dirección de Educación | WHU1: Ministerio de Educación y Cultura Dirección de Educación | WIK1: Ministerio de Educación y Cultura Dirección de Educación | WJA1: Ministerio de Educación y Cultura Dirección de Educación | WJQ1: Ministerio de Educación y Cultura Dirección de Educación | WKG1: Ministerio de Educación y Cultura Dirección de Educación | WKW1: Ministerio de Educación y Cultura Dirección de Educación | WLM1: Ministerio de Educación y Cultura Dirección de Educación | WMC1: Ministerio de Educación y Cultura Dirección de Educación | WMS1: Ministerio de Educación y Cultura Dirección de Educación | WNI1: Ministerio de Educación y Cultura Dirección de Educación | WNY1: Ministerio de Educación y Cultura Dirección de Educación | WOO1: Ministerio de Educación y Cultura Dirección de Educación | WPE1: Ministerio de Educación y Cultura Dirección de Educación | WPU1: Ministerio de Educación y Cultura Dirección de Educación | WQK1: Ministerio de Educación y Cultura Dirección de Educación | WRA1: Ministerio de Educación y Cultura Dirección de Educación | WRQ1: Ministerio de Educación y Cultura Dirección de Educación | WSG1: Ministerio de Educación y Cultura Dirección de Educación | WSW1: Ministerio de Educación y Cultura Dirección de Educación | WTM1: Ministerio de Educación y Cultura Dirección de Educación | WUC1: Ministerio de Educación y Cultura Dirección de Educación | WUS1: Ministerio de Educación y Cultura Dirección de Educación | WVI1: Ministerio de Educación y Cultura Dirección de Educación | WVY1: Ministerio de Educación y Cultura Dirección de Educación | WWO1: Ministerio de Educación y Cultura Dirección de Educación | WXE1: Ministerio de Educación y Cultura Dirección de Educación | WXU1: Ministerio de Educación y Cultura Dirección de Educación | WYK1: Ministerio de Educación y Cultura Dirección de Educación | WZA1: Ministerio de Educación y Cultura Dirección de Educación | WZQ1: Ministerio de Educación y Cultura Dirección de Educación | XAG1: Ministerio de Educación y Cultura Dirección de Educación | XAW1: Ministerio de Educación y Cultura Dirección de Educación | XBM1: Ministerio de Educación y Cultura Dirección de Educación | XCC1: Ministerio de Educación y Cultura Dirección de Educación | XCS1: Ministerio de Educación y Cultura Dirección de Educación | XDI1: Ministerio de Educación y Cultura Dirección de Educación | XDY1: Ministerio de Educación y Cultura Dirección de Educación | XEO1: Ministerio de Educación y Cultura Dirección de Educación
A3: CANTIDAD DE ASPIRANTES A EDUCACIÓN NO FORMAL DE POBLACIÓN PRIVADA DE LIBERTAD POR UNIDAD PENITENCIARIA SEGÚN TIPO DE PROGRAMA Y SEXO. AÑO 2016
A4: UNIDADES PENITENCIARIAS | B4: TOTAL | C4: SEXO | E4: PROGRAMA URUGUAY ESTUDIA | G4: TOTAL PROGRAMA URUGUAY ESTUDIA | H4: DSEA NO FORMAL | J4: TOTAL DSEA NO FORMAL | K4: MEC PAS | M4: TOTAL MEC PAS | N4: MEC CIUDADANIA CULTURAL | P4: TOTAL MEC CIUDADANIA CULTURAL | Q4: CENTRO MEC | S4: TOTAL CENTRO MEC | T4: NO FORMAL OTROS | V4: TOTAL NO FORMAL OTROS | W4: PROYECTOS EDUCATIVOS | Y4: TOTAL PROYECTOS EDUCATIVOS
C5: MASCULINO | D5: FEMENINO | E5: MASCULINO | F5: FEMENINO | G5: TOTAL | H5: MASCULINO | I5: FEMENINO | J5: TOTAL | K5: MASCULINO | L5: FEMENINO | M5: TOTAL | N5: MASCULINO | O5: FEMENINO | Q5: MASCULINO | R5: FEMENINO | S5: TOTAL | T5: MASCULINO | U5: FEMENINO | V5: TOTAL | W5: MASCULINO | X5: FEMENINO | Y5: TOTAL
A6: TOTAL | B6: =SUM(B7:B29) -> 1847 | C6: =SUM(C7:C29) -> 1367 | D6: =SUM(D7:D29) -> 480 | E6: =0 -> 0 | F6: 0 | G6: =SUM(G7:G29) -> 0 | H6: =SUM(H8:H16,H19:H25,H27:H29) -> 308 | I6: =SUM(I8:I16,I19:I25,I27:I29) -> 142 | J6: =SUM(J7:J29) -> 450 | K6: =SUM(K10:K16,K19:K25,K27:K29) -> 212 | L6: =SUM(L10:L16,L19:L25,L27:L29) -> 37 | M6: =SUM(M7:M29) -> 249 | N6: =SUM(N8,N10:N15,N19:N22,N24:N29) -> 30 | O6: =SUM(O8,O10:O15,O19:O22,O24:O29) -> 0 | P6: =SUM(P7:P29) -> 30 | Q6: =SUM(Q9:Q15,Q19,Q21:Q29) -> 55 | R6: =SUM(R9:R15,R19,R21:R29) -> 110 | S6: =SUM(S7:S29) -> 165 | T6: =SUM(T8:T16,T19:T29) -> 650 | U6: =SUM(U8:U16,U19:U29) -> 151 | V6: =SUM(V7:V29) -> 801 | W6: =SUM(W9:W16,W19:W28) -> 112 | X6: =SUM(X9:X16,X19:X28) -> 40 | Y6: =SUM(Y7:Y29) -> 152
A7: UNID. N°3 LIBERTAD | B7: =C7+D7 -> 0 | C7: =E7 -> 0 | D7: =F7 -> 0 | E7: 0 | F7: 0 | G7: =E7+F7 -> 0 | H7: S/D | I7: S/D | J7: 0 | K7: S/D | L7: S/D | M7: 0 | N7: S/D | O7: S/D | P7: 0 | Q7: S/D | R7: S/D | S7: 0 | T7: S/D | U7: S/D | V7: 0 | W7: S/D | X7: S/D | Y7: 0
A8: UNID. N°4 SANTIAGO VÁZQUEZ | B8: =C8+D8 -> 129 | C8: =E8+H8+N8+T8 -> 129 | D8: =F8 -> 0 | E8: 0 | F8: 0 | G8: =E8+F8 -> 0 | H8: 63 | I8: 0 | J8: =H8+I8 -> 63 | K8: S/D | L8: S/D | M8: 0 | N8: 30 | O8: 0 | P8: =N8+O8 -> 30 | Q8: S/D | R8: S/D | S8: 0 | T8: 36 | U8: 0 | V8: =T8+U8 -> 36 | W8: S/D | X8: S/D | Y8: 0
A9: UNID. N°5 FEMENINO | B9: 321 | C9: =E9+H9+Q9+T9+W9 -> 0 | D9: =F9+I9+R9+U9+X9 -> 321 | E9: 0 | F9: 0 | G9: 0 | H9: 0 | I9: 101 | J9: =H9+I9 -> 101 | K9: S/D | L9: S/D | M9: 0 | N9: S/D | O9: S/D | P9: 0 | Q9: 0 | R9: 106 | S9: =Q9+R9 -> 106 | T9: 0 | U9: 114 | V9: =T9+U9 -> 114 | W9: 0 | X9: 0 | Y9: =W9+X9 -> 0
A10: UNID. N°6 PUNTA DE RIELES | B10: 431 | C10: =E10+H10+K10+N10+Q10+T10+W10 -> 431 | D10: 0 | E10: 0 | F10: 0 | G10: 0 | H10: 47 | I10: 0 | J10: 47 | K10: 24 | L10: 0 | M10: =K10+L10 -> 24 | N10: 0 | O10: 0 | P10: =N10+O10 -> 0 | Q10: 0 | R10: 0 | S10: =Q10+R10 -> 0 | T10: 303 | U10: 0 | V10: 303 | W10: 57 | X10: 0 | Y10: =W10+X10 -> 57
A11: UNID. N°7 CANELONES | B11: 99 | C11: 99 | D11: 0 | E11: 0 | F11: 0 | G11: 0 | H11: 23 | I11: 0 | J11: 23 | K11: 34 | L11: 0 | M11: =K11+L11 -> 34 | N11: 0 | O11: 0 | P11: =N11+O11 -> 0 | Q11: 0 | R11: 0 | S11: 0 | T11: 37 | U11: 0 | V11: 37 | W11: 5 | X11: 0 | Y11: 5
A12: UNID. N°9 EL MOLINO | B12: 0 | C12: 0 | D12: 0 | E12: 0 | F12: 0 | G12: 0 | H12: 0 | I12: 0 | J12: 0 | K12: 0 | L12: 0 | M12: 0 | N12: 0 | O12: 0 | P12: 0 | Q12: 0 | R12: 0 | S12: 0 | T12: 0 | U12: 0 | V12: 0 | W12: 0 | X12: 0 | Y12: 0
A13: UNID. N°10 JUAN SOLER | B13: 40 | C13: 40 | D13: 0 | E13: 0 | F13: 0 | G13: 0 | H13: 25 | I13: 0 | J13: 25 | K13: 0 | L13: 0 | M13: 0 | N13: 0 | O13: 0 | P13: 0 | Q13: 0 | R13: 0 | S13: 0 | T13: 0 | U13: 0 | V13: 0 | W13: 15 | X13: 0 | Y13: 15
A14: UNIDAD N°11 TACUABÉ-SALTO | B14: 0 | C14: 0 | D14: 0 | E14: 0 | F14: 0 | G14: 0 | H14: 0 | I14: 0 | J14: 0 | K14: 0 | L14: 0 | M14: 0 | N14: 0 | O14: 0 | P14: 0 | Q14: 0 | R14: 0 | S14: 0 | T14: 0 | U14: 0 | V14: 0 | W14: 0 | X14: 0 | Y14: 0
A15: UNIDAD N°12 CERRO CARANCHO | B15: 239 | C15: 217 | D15: 22 | E15: 0 | F15: 0 | G15: 0 | H15: 17 | I15: 3 | J15: 20 | K15: 0 | L15: 5 | M15: 5 | N15: 0 | O15: 0 | P15: 0 | Q15: 0 | R15: 0 | S15: 0 | T15: 200 | U15: 9 | V15: 209 | W15: 0 | X15: 5 | Y15: 5
A16: UNIDAD N°13 LAS ROSAS-MALDONADO | B16: 170 | C16: =H16++K16+T16+W16 -> 120 | D16: =I16+L16++U16+X16 -> 50 | E16: S/D | F16: S/D | G16: 0 | H16: 24 | I16: 7 | J16: 31 | K16: 12 | L16: 6 | M16: 18 | N16: S/D | O16: S/D | P16: 0 | Q16: S/D | R16: S/D | S16: 0 | T16: 55 | U16: 5 | V16: 60 | W16: 29 | X16: 32 | Y16: 61
A17: UNIDAD N°14 PIEDRA DE LOS INDIOS | B17: 0 | C17: =0 -> 0 | D17: 0 | E17: S/D | F17: S/D | G17: 0 | H17: S/D | I17: S/D | J17: 0 | K17: S/D | L17: S/D | M17: 0 | N17: S/D | O17: S/D | P17: 0 | Q17: S/D | R17: S/D | S17: 0 | T17: S/D | U17: S/D | V17: 0 | W17: S/D | X17: S/D | Y17: 0
A18: UNIDAD N°15 CONVENTOS-CERRO LARGO | B18: 0 | C18: =E18 -> 0 | D18: =F18 -> 0 | E18: 0 | F18: 0 | G18: 0 | H18: S/D | I18: S/D | J18: 0 | K18: S/D | L18: S/D | M18: 0 | N18: S/D | O18: S/D | P18: 0 | Q18: S/D | R18: S/D | S18: 0 | T18: S/D | U18: S/D | V18: 0 | W18: S/D | X18: S/D | Y18: 0
A19: UNIDAD N°16 PAYSANDÚ | B19: 35 | C19: =E19+H19+K19+N19+Q19+T19+W19 -> 27 | D19: =F19+I19+L19+O19+R19+U19+X19 -> 8 | E19: 0 | F19: 0 | G19: 0 | H19: 14 | I19: 8 | J19: 22 | K19: 0 | L19: 0 | M19: 0 | N19: 0 | O19: 0 | P19: =N19+O19 -> 0 | Q19: 13 | R19: 0 | S19: =Q19+R19 -> 13 | T19: 0 | U19: 0 | V19: =T19+U19 -> 0 | W19: 0 | X19: 0 | Y19: 0
A20: UNIDAD N°17 CAMPANERO-LAVALLEJA | B20: 71 | C20: =E20+H20+K20+N20+T20+W20 -> 60 | D20: =F20+I20+L20+O20+U20+X20 -> 11 | E20: 0 | F20: 0 | G20: 0 | H20: 20 | I20: 5 | J20: 25 | K20: 40 | L20: 6 | M20: 46 | N20: 0 | O20: 0 | P20: =N20+O20 -> 0 | Q20: S/D | R20: S/D | S20: 0 | T20: 0 | U20: 0 | V20: =T20+U20 -> 0 | W20: 0 | X20: 0 | Y20: 0
A21: UNIDAD N°18 DURAZNO | B21: 39 | C21: =E21+H21+K21+N21+Q21+T21+W21 -> 39 | D21: =F21+I21+L21+O21+R21+U21+X21 -> 0 | E21: 0 | F21: 0 | G21: 0 | H21: 0 | I21: 0 | J21: 0 | K21: 18 | L21: 0 | M21: 18 | N21: 0 | O21: 0 | P21: 0 | Q21: 16 | R21: 0 | S21: =Q21+R21 -> 16 | T21: 5 | U21: 0 | V21: 5 | W21: 0 | X21: 0 | Y21: 0
A22: UNIDAD N°19 LAS CAÑITAS RIO NEGRO | B22: 10 | C22: =E22+H22+K22+N22+Q22+T22+W22 -> 10 | D22: =F22+I22+L22+O22+R22+U22+X22 -> 0 | E22: 0 | F22: 0 | G22: 0 | H22: 0 | I22: 0 | J22: 0 | K22: 0 | L22: 0 | M22: 0 | N22: 0 | O22: 0 | P22: 0 | Q22: 0 | R22: 0 | S22: =Q22+R22 -> 0 | T22: 10 | U22: 0 | V22: 10 | W22: 0 | X22: 0 | Y22: 0
A23: UNIDAD N°20 SALTO | B23: 203 | C23: =E23+H23+K23+Q23+T23+W23 -> 139 | D23: =F23+I23+L23+R23+U23+X23 -> 64 | E23: 0 | F23: 0 | G23: 0 | H23: 75 | I23: 18 | J23: 93 | K23: 54 | L23: 20 | M23: 74 | N23: S/D | O23: S/D | P23: 0 | Q23: 0 | R23: 0 | S23: 0 | T23: 4 | U23: 23 | V23: 27 | W23: 6 | X23: 3 | Y23: 9
A24: UNIDAD N° 21 ARTIGAS | B24: 0 | C24: =E24+H24+K24+N24+Q24+T24+W24 -> 0 | D24: =F24+I24+L24+O24+R24+U24+X24 -> 0 | E24: 0 | F24: 0 | G24: 0 | H24: 0 | I24: 0 | J24: 0 | K24: 0 | L24: 0 | M24: 0 | N24: 0 | O24: 0 | P24: =N24+O24 -> 0 | Q24: 0 | R24: 0 | S24: 0 | T24: 0 | U24: 0 | V24: 0 | W24: 0 | X24: 0 | Y24: 0
A25: UNIDAD N° 22 ROCHA | B25: 15 | C25: =E25+H25+K25+N25+Q25+T25+W25 -> 15 | D25: =F25+I25+L25+O25+R25+U25+X25 -> 0 | E25: 0 | F25: 0 | G25: 0 | H25: 0 | I25: 0 | J25: 0 | K25: 15 | L25: 0 | M25: 15 | N25: 0 | O25: 0 | P25: =N25+O25 -> 0 | Q25: 0 | R25: 0 | S25: 0 | T25: 0 | U25: 0 | V25: 0 | W25: 0 | X25: 0 | Y25: 0
A26: UNIDAD N° 23 TREINTA Y TRES | B26: 30 | C26: =E26+N26+Q26+T26+W26 -> 26 | D26: =F26+O26+R26+U26+X26 -> 4 | E26: 0 | F26: 0 | G26: 0 | H26: S/D | I26: S/D | J26: 0 | K26: S/D | L26: S/D | M26: 0 | N26: 0 | O26: 0 | P26: 0 | Q26: 26 | R26: 4 | S26: 30 | T26: 0 | U26: 0 | V26: 0 | W26: 0 | X26: 0 | Y26: 0
A27: UNIDAD N° 24 "PENSE" MERCEDES/ SORIANO | B27: 0 | C27: =E27+H27+K27+N27+Q27+T27+W27 -> 0 | D27: 0 | E27: 0 | F27: 0 | G27: 0 | H27: 0 | I27: 0 | J27: 0 | K27: 0 | L27: 0 | M27: 0 | N27: 0 | O27: 0 | P27: 0 | Q27: 0 | R27: 0 | S27: 0 | T27: 0 | U27: 0 | V27: 0 | W27: 0 | X27: 0 | Y27: 0
A28: UNIDAD N° 26 TACUAREMBÓ | B28: 0 | C28: 0 | D28: 0 | E28: 0 | F28: 0 | G28: 0 | H28: 0 | I28: 0 | J28: 0 | K28: 0 | L28: 0 | M28: 0 | N28: 0 | O28: 0 | P28: 0 | Q28: 0 | R28: 0 | S28: 0 | T28: 0 | U28: 0 | V28: 0 | W28: 0 | X28: 0 | Y28: 0
A29: UNIDAD N.º 29 FLORIDA | B29: 15 | C29: 15 | D29: 0 | E29: 0 | F29: 0 | G29: 0 | H29: 0 | I29: 0 | J29: 0 | K29: 15 | L29: 0 | M29: 15 | N29: 0 | O29: 0 | P29: 0 | Q29: 0 | R29: 0 | S29: 0 | T29: 0 | U29: 0 | V29: 0 | W29: 0 | X29: 0 | Y29: 0
A30: Fuente: INR

Sheet Cuadro 3.1.42
A1: Ministerio de Educación y Cultura Dirección de Educación
A4: CANTIDAD DE ASPIRANTES A EDUCACIÓN FORMAL DE POBLACIÓN PRIVADA DE LIBERTAD POR UNIDAD PENITENCIARIA SEGÚN NIVEL Y SEXO. AÑO 2016
E5: NIVEL EDUCATIVO
A6: UNIDADES PENITENCIARIAS | B6: TOTAL | C6: SEXO | E6: PRIMARIA | G6: TOTAL PRIMARIA | H6: SECUNDARIA | J6: TOTAL SECUNDARIA | K6: TERCIARIA | M6: TOTAL TERCIARIA | N6: UTU | P6: TOTAL UTU
C8: MASCULINO | D8: FEMENINO | E8: MASCULINO | F8: FEMENINO | H8: MASCULINO | I8: FEMENINO | K8: MASCULINO | L8: FEMENINO | N8: MASCULINO | O8: FEMENINO
A9: TOTAL | B9: =SUM(B10:B32) -> 3586 | C9: =SUM(C10:C32) -> 3292 | D9: =SUM(D10:D32) -> 294 | E9: =SUM(E10+E11+E13+E14+E16+E15+E18+E19+E21+E22+E23+E24+E25+E26+E27+E28+E29+E30+E31+E32) -> 748 | F9: =SUM(F10:F32) -> 51 | G9: =SUM(G10:G32) -> 799 | H9: =SUM(H10+H11+H12+H13+H14+H15+H16+H17+H18++H19+H21+H22+H23+H24+H25++H26+H27+H28+H29+H30+H31+H32) -> 2343 | I9: =SUM(I10+I11+I12+I13+I14+I15+I16+I17+I18++I19+I21+I22+I23+I24+I25++I26+I27+I28+I29+I30+I31+I32) -> 202 | J9: =SUM(J10:J32) -> 2545 | K9: =K10+K11+K12+K13+K14+K15+K16+K17+K18+K19+K22+K23+K24+K25+K26+K27++K28+K29+K30+K31+K32 -> 8 | L9: =L10+L11+L12+L13+L14+L15+L16+L17+L18+L19+L22+L23+L24+L25+L26+L27++L28+L29+L30+L31+L32 -> 4 | M9: =SUM(M10:M32) -> 12 | N9: =N11+N12+N13+N14+N15+N16+N17+N18+N19+N22+N23+N24+N25+N26+N27+N28+N29+N30+N31+N32 -> 193 | O9: =O11+O12+O13+O14+O15+O16+O17+O18+O19+O22+O23+O24+O25+O26+O27+O28+O29+O30+O31+O32 -> 37 | P9: =P11+P12+P13+P14+P15+P16+P17+P18+P19+P20+P21+P22+P23+P24+P25+P27+P28+P29+P30+P31+P32 -> 230
A10: UNID. N°3 LIBERTAD | B10: =C10+D10 -> 613 | C10: =E10+H10+K10+N10 -> 613 | D10: =F10+I10+L10+O10 -> 0 | E10: 81 | F10: 0 | G10: =E10+F10 -> 81 | H10: 531 | I10: 0 | J10: =H10+I10 -> 531 | K10: 1 | L10: 0 | M10: =K10+L10 -> 1
A11: UNID. N°4 SANTIAGO VÁZQUEZ | B11: =C11+D11 -> 612 | C11: =E11+H11+K11+N11 -> 612 | D11: 0 | E11: 284 | F11: 0 | G11: =E11+F11 -> 284 | H11: 325 | I11: 0 | J11: =H11+I11 -> 325 | K11: 3 | L11: 0 | M11: =K11+L11 -> 3 | N11: 0 | O11: 0 | P11: =N11+O11 -> 0
A12: UNID. N°5 FEMENINO | B12: 160 | C12: 0 | D12: 160 | E12: 0 | F12: 29 | G12: 29 | H12: 0 | I12: 110 | J12: 110 | K12: 0 | L12: 2 | M12: 2 | N12: 0 | O12: 19 | P12: =N12+O12 -> 19
A13: UNID. N°6 PUNTA DE RIELES | B13: 292 | C13: 290 | D13: 2 | E13: 47 | F13: 0 | G13: 47 | H13: 243 | I13: 0 | J13: 243 | K13: 0 | L13: 2 | M13: 2 | N13: 0 | O13: 0 | P13: 0
A14: UNID. N°7 CANELONES | B14: 241 | C14: 241 | D14: 0 | E14: 67 | F14: 0 | G14: 67 | H14: 144 | I14: 0 | J14: 144 | K14: 0 | L14: 0 | M14: 0 | N14: 30 | O14: 0 | P14: 30
A15: UNID. N°9 EL MOLINO | B15: 2 | C15: 0 | D15: 2 | E15: 0 | F15: 2 | G15: 2 | H15: 0 | I15: 0 | J15: 0 | K15: 0 | L15: 0 | M15: 0 | N15: 0 | O15: 0 | P15: 0
A16: UNID. N°10 JUAN SOLER | B16: 103 | C16: 103 | D16: 0 | E16: 13 | F16: 0 | G16: 13 | H16: 90 | I16: 0 | J16: 90 | K16: 0 | L16: 0 | M16: 0 | N16: 0 | O16: 0 | P16: 0
A17: UNIDAD N°11 TACUABÉ-SALTO | B17: 3 | C17: =H17+K17+N17 -> 2 | D17: =+I17+L17+O17 -> 1 | E17: S/D | F17: 0 | G17: S/D | H17: 2 | I17: 1 | J17: 3 | K17: 0 | L17: 0 | M17: 0 | N17: 0 | O17: 0 | P17: 0
A18: UNIDAD N°12 CERRO CARANCHO | B18: =C18+D18 -> 108 | C18: =E18+H18+K18+N18 -> 98 | D18: 10 | E18: 33 | F18: 3 | G18: 36 | H18: 65 | I18: 7 | J18: 72 | K18: 0 | L18: 0 | M18: 0 | N18: 0 | O18: 0 | P18: 0
A19: UNIDAD N°13 LAS ROSAS-MALDONADO | B19: 397 | C19: 374 | D19: 23 | E19: 27 | F19: 2 | G19: 29 | H19: 230 | I19: 11 | J19: 241 | K19: 4 | L19: 0 | M19: 4 | N19: 113 | O19: 10 | P19: 123
A20: UNIDAD N°14 PIEDRA DE LOS INDIOS | B20: 0 | C20: 0 | D20: 0 | E20: S/D | F20: S/D | G20: 0 | H20: S/D | I20: S/D | J20: 0 | K20: S/D | L20: S/D | M20: 0 | N20: S/D | O20: S/D | P20: 0
A21: UNIDAD N°15 CONVENTOS-CERRO LARGO | B21: =C21+D21 -> 49 | C21: =E21+H21 -> 44 | D21: =F21+I21 -> 5 | E21: 8 | F21: 0 | G21: 8 | H21: 36 | I21: 5 | J21: 41 | K21: S/D | L21: S/D | M21: 0 | N21: S/D | O21: S/D | P21: 0
A22: UNIDAD N°16 PAYSANDÚ | B22: 98 | C22: =E22+H22+K22+N22 -> 88 | D22: =F22+I22+L22+O22 -> 10 | E22: 26 | F22: 4 | G22: 30 | H22: 62 | I22: 6 | J22: 68 | K22: 0 | L22: 0 | M22: 0 | N22: 0 | O22: 0 | P22: 0
A23: UNIDAD N°17 CAMPANERO-LAVALLEJA | B23: 167 | C23: =E23+H23+K23+N23 -> 151 | D23: =F23+I23+L23+O23 -> 16 | E23: 10 | F23: 0 | G23: 10 | H23: 91 | I23: 8 | J23: 99 | K23: 0 | L23: 0 | M23: 0 | N23: 50 | O23: 8 | P23: 58
A24: UNIDAD N°18 DURAZNO | B24: 43 | C24: =E24+H24+K24+N24 -> 43 | D24: 0 | E24: 11 | F24: 0 | G24: 11 | H24: 32 | I24: 0 | J24: 32 | K24: 0 | L24: 0 | M24: 0 | N24: 0 | O24: 0 | P24: 0
A25: UNIDAD N°19 LAS CAÑITAS RIO NEGRO | B25: 48 | C25: 44 | D25: 4 | E25: 9 | F25: 0 | G25: 9 | H25: 35 | I25: 4 | J25: 39 | K25: 0 | L25: 0 | M25: 0 | N25: 0 | O25: 0 | P25: 0
A26: UNIDAD N°20 SALTO | B26: 132 | C26: 119 | D26: 13 | E26: 45 | F26: 3 | G26: 48 | H26: 74 | I26: 10 | J26: 84 | K26: 0 | L26: 0 | M26: 0 | N26: 0 | O26: 0 | P26: 0
A27: UNIDAD N° 21 ARTIGAS | B27: 76 | C27: 74 | D27: 2 | E27: 21 | F27: 0 | G27: 21 | H27: 53 | I27: 2 | J27: 55 | K27: 0 | L27: 0 | M27: 0 | N27: 0 | O27: 0 | P27: 0
A28: UNIDAD N° 22 ROCHA | B28: 38 | C28: 38 | D28: 0 | E28: 6 | F28: 0 | G28: 6 | H28: 32 | I28: 0 | J28: 32 | K28: 0 | L28: 0 | M28: 0 | N28: 0 | O28: 0 | P28: 0
A29: UNIDAD N° 23 TREINTA Y TRES | B29: 38 | C29: 34 | D29: 4 | E29: 4 | F29: 1 | G29: 5 | H29: 30 | I29: 3 | J29: 33 | K29: 0 | L29: 0 | M29: 0 | N29: 0 | O29: 0 | P29: 0
A30: UNIDAD N° 24 "PENSE" MERCEDES/ SORIANO | B30: 264 | C30: 233 | D30: 31 | E30: 35 | F30: 4 | G30: 39 | H30: 198 | I30: 27 | J30: 225 | K30: 0 | L30: 0 | M30: 0 | N30: 0 | O30: 0 | P30: 0
A31: UNIDAD N° 26 TACUAREMBÓ | B31: 51 | C31: =E31+H31+K31+N31 -> 40 | D31: =F31+I31+L31+O31 -> 11 | E31: 12 | F31: 3 | G31: 15 | H31: 28 | I31: 8 | J31: 36 | K31: 0 | L31: 0 | M31: 0 | N31: 0 | O31: 0 | P31: 0
A32: UNIDAD N.º 29 FLORIDA | B32: 51 | C32: =E32+H32+K32+N32 -> 51 | D32: =F32+I32+L32+O32 -> 0 | E32: 9 | F32: 0 | G32: 9 | H32: 42 | I32: 0 | J32: 42 | K32: 0 | L32: 0 | M32: 0 | N32: 0 | O32: 0 | P32: 0
A33: Fuente: INR

Sheet Gráfico 3.1.1
A1: Ministerio de Educación y Cultura Dirección de Educación
A3: Gráfico 3.1.1
A23: Fuente: Área de becas de la Dirección de Educación del Ministerio de Educación y Cultura
A24: Nota: Otras becas incluye becas Formación Docente, Bienestar estudiantil, ANII y Chamangá

Sheet Gráfico 3.1.2
A1: Ministerio de Educación y Cultura Dirección de Educación
A8: Gráfico 3.1.2
A53: Fuente : Fondo de Solidaridad

Sheet Gráfico 3.1.3
A1: Ministerio de Educación y Cultura Dirección de Educación
A3: Gráfico 3.1.3
A46: Fuente: Fondo de Solidaridad

Sheet Gráfico 3.1.4
A1: Ministerio de Educación y Cultura Dirección de Educación
A3: Gráfico 3.1.4
A38: Fuente: Procesamiento propio con base en información proporcionada por el Plan Ceibal.
A39: Nota: Todo el país, años 2007 a 2016.

Sheet Gráfico 3.1.5
A1: Ministerio de Educación y Cultura Dirección de Educación
A3: Gráfico 3.1.5
A29: Fuente: Elaboración propia con base en datos de DEE-CEIP.

Sheet Gráfico 3.1.6
A1: Ministerio de Educación y Cultura Dirección de Educación
A3: Gráfico 3.1.6
A29: Fuente: Elaboración propia con base en datos de DEE-CEIP.
A30: Nota: Los establecimientos que atienden discapacidades intelectuales, además de atender niños con disfunciones clásicamente tipificadas como “intelectuales”,
A31: atienden a niños con discapacidades de orden motriz o de carácter, lo que implica que la matrícula correspondiente los agrupa.

Sheet Gráfico 3.1.7
A1: Ministerio de Educación y Cultura Dirección de Educación
A3: Gráfico 3.1.7
A29: Fuente: Elaboración propia con base en datos de DEE-CEIP.

Sheet Gráfico 3.1.8
A1: Ministerio de Educación y Cultura Dirección de Educación
A3: Gráfico 3.1.8
A30: Fuente: Elaboración propia con base en datos de DEE-CEIP.

Sheet Gráfico 3.1.9
A1: Ministerio de Educación y Cultura Dirección de Educación
A3: Gráfico 3.1.9
A29: Fuente: Elaboración propia con base en datos de DEE-CEIP.

Sheet Gráfico 3.110
A1: Ministerio de Educación y Cultura Dirección de Educación
A3: Gráfico 3.1.10
A29: Fuente: Elaboración propia con base en datos de DEE-CEIP.

Sheet Gráfico 3.1.11
A1: Ministerio de Educación y Cultura Dirección de Educación
A3: Gráfico 3.1.11
A24: Fuente: Elaboración propia en base a datos del MEF, BCU e INE.

Sheet Gráfico 3.1.12
A1: Ministerio de Educación y Cultura Dirección de Educación
A3: Gráfico 3.1.12
A26: Fuente: Elaboración propia en base a datos del MEF y BCU.

Sheet Gráfico 3.1.13
A1: Ministerio de Educación y Cultura Dirección de Educación
A3: Gráfico 3.1.13
A29: Fuente: Elaboración propia en base a datos del MEF.
A30: Notas:
A31: (1) Se incluyen gastos en Dirección de Educación del MEC, ISEF, capacitación laboral, Centro de Diseño Industrial, escuelas de formación artística y otros componentes considerados en MIDES-DINEM (2006): "Identificación y análisis del gasto público social en Uruguay 2002-2005". Además, se incluye el subsidio al boleto estudiantil que realiza el MTOP.
A32: (2) Incluye subsidios a escuelas para niños con capacidades especiales, rentas afectadas al Fondo de Solidaridad y al Fondo de Reconversión Laboral.
A33: (3) Se considera la Dirección Nacional de Ciencia y Tecnología (DINACYT) y el Clemente Estable. La baja de recursos se explica por la finalización del Programa de Desarrollo Tecnológico (PDT) y el traspaso de algunos programas a la ANII.
A34: (4) Del presupuesto de la ANII se toma en cuenta solo el componente 2, de fortalecimiento y orientación de la investigación.

Sheet Gráfico 3.1.14
A1: Ministerio de Educación y Cultura Dirección de Educación
A3: Gráfico 3.1.14
A27: Fuente: Elaboración propia en base a datos del MEF y BCU.
A33: Fuente: Elaboración propia en base a datos del MEF y BCU.

Sheet Gráfico 3.1.15
A1: Ministerio de Educación y Cultura Dirección de Educación
A3: Gráfico 3.1.15
A27: Fuente: Elaboración propia en base a datos del MEF.

Sheet Gráfico 3.1.16
A1: Ministerio de Educación y Cultura Dirección de Educación
A3: Gráfico 3.1.16
A25: Fuente: Elaboración propia en base a datos del MEF.
A38: Fuente: Elaboración propia en base a datos del MEF.

Sheet Gráfico 3.1.17
A1: Ministerio de Educación y Cultura Dirección de Educación
A3: Gráfico 3.1.17
A32: Fuente: Elaboración propia en base a datos de ANEP.

Sheet Gráfico 3.1.18
A1: Ministerio de Educación y Cultura Dirección de Educación
A3: Gráfico 3.1.18
A32: Fuente: Elaboración propia en base a datos de ANEP.

Sheet Gráfico 3.1.19
A1: Ministerio de Educación y Cultura Dirección de Educación
A3: Gráfico 3.1.19
A33: Fuente: Elaboración propia en base a datos de ANEP.

Sheet Gráfico 3.1.20
A1: Ministerio de Educación y Cultura Dirección de Educación
A3: Gráfico 3.1.20
A28: Fuente: Elaboración propia en base a datos de ANEP.

Sheet UdelaR (hidden)
A1: UDLEAR | P1: IPC | Q1: 2004 | R1: 2005 | S1: 2006 | T1: 2007 | U1: 2008 | V1: 2009 | W1: 2010 | X1: 2011 | Y1: 2012 | Z1: 2013 | AA1: 2014 | AB1: 2015
P2: Nivel General. Total País. Base Dic 2010=100 | Q2: 65.56377824 | R2: 68.64480205 | S2: 73.03731665 | T2: 78.96372085 | U2: 85.1821049 | V2: 91.19758728 | W2: 97.3074843 | X2: 105.1833333 | Y2: 113.7008333 | Z2: 123.4508333 | AA2: 134.41 | AB2: 146.0583333
A4: A precios corrientes | P4: Millones de pesos, a precios constantes dic 2010
A5: Código Inciso | B5: Descripción Unidad Ejecutora | C5: 2004 | D5: 2005 | E5: 2006 | F5: 2007 | G5: 2008 | H5: 2009 | I5: 2010 | J5: 2011 | K5: 2012 | L5: 2013 | M5: 2014 | N5: 2015 | P5: Descripción Unidad Ejecutora | Q5: 2004 | R5: 2005 | S5: 2006 | T5: 2007 | U5: 2008 | V5: 2009 | W5: 2010 | X5: 2011 | Y5: 2012 | Z5: 2013 | AA5: 2014 | AB5: 2015 | AC5: Crec 04/15 | AD5: Crec anual | AE5: Crec 2014-2015
A6: 26 | B6: FACULTAD DE AGRONOMIA | C6: 140476092 | D6: 153740658 | E6: 180642276 | F6: 208311940 | G6: 283885420 | H6: 338655757 | I6: 357061978 | J6: 414572999 | K6: 446150853 | L6: 493716021 | M6: 566626530 | N6: 588975646 | P6: FACULTAD DE AGRONOMIA | Q6: =(C6/(Q$2/$AB$2))/1000000 -> 312.9426708 | R6: 327.1202422 | S6: 361.2442375 | T6: 385.3123237 | U6: 486.7669254 | V6: 542.3772374 | W6: 535.9492929 | X6: 575.6790488 | Y6: 573.1184908 | Z6: 584.1300315 | AA6: 615.7319142 | AB6: 588.975646 | AC6: =(AB6/Q6-1) -> 0.8820560472 | AD6: =((AB6/Q6)^(1/12))-1 -> 0.05411027349 | AE6: =AB6/AA6-1 -> -0.04345441194
B7: FACULTAD DE ARQUITECTURA | C7: 67015720 | D7: 75079843 | E7: 90019546 | F7: 101725516 | G7: 145020684 | H7: 199208844 | I7: 212737292 | J7: 253110097 | K7: 291452246 | L7: 336173027 | M7: 356793762 | N7: 384857501 | P7: FACULTAD DE ARQUITECTURA | Q7: 149.2928662 | R7: 159.7504313 | S7: 180.0190021 | T7: 188.1605776 | U7: 248.6611411 | V7: 319.0447534 | W7: 319.3182367 | X7: 351.4705015 | Y7: 374.395051 | Z7: 397.7362543 | AA7: 387.7144723 | AB7: 384.857501 | AC7: 1.577869331 | AD7: 0.08211082519 | AE7: -0.00736875072
B8: FACULTAD DE CIENCIAS | C8: 113382942 | D8: 128060928 | E8: 151329820 | F8: 176273153 | G8: 231391568 | H8: 301242039 | I8: 325151143 | J8: 384971768 | K8: 424418962 | L8: 478214737 | M8: 537360004 | N8: 608689204 | P8: FACULTAD DE CIENCIAS | Q8: 252.5864735 | R8: 272.4804377 | S8: 302.6258673 | T8: 326.0505288 | U8: 396.7578262 | V8: 482.4569537 | W8: 488.0511953 | X8: 534.5745665 | Y8: 545.2020395 | Z8: 565.7900038 | AA8: 583.9290721 | AB8: 608.689204 | AC8: 1.409825022 | AD8: 0.07604919215 | AE8: 0.04240263597
B9: FACULTAD DE CIENCIAS ECONOMICAS Y DE ADMINISTRACION | C9: 98990586 | D9: 111501569 | E9: 128782774 | F9: 143021983 | G9: 179580940 | H9: 222831586 | I9: 244832772 | J9: 280159816 | K9: 309800729 | L9: 340090051 | M9: 394088762 | N9: 414180790 | P9: FACULTAD DE CIENCIAS ECONOMICAS Y DE ADMINISTRACION | Q9: 220.524204 | R9: 237.246417 | S9: 257.5368072 | T9: 264.5462023 | U9: 307.9202237 | V9: 356.8779727 | W9: 367.493486 | X9: 389.0319359 | Y9: 397.9652287 | Z9: 402.3706012 | AA9: 428.2415576 | AB9: 414.18079 | AC9: 0.8781647661 | AD9: 0.05392848066 | AE9: -0.03283372992
B10: FACULTAD DE CIENCIAS SOCIALES | C10: 59793630 | D10: 70105381 | E10: 94814422 | F10: 116975681 | G10: 158976276 | H10: 196607370 | I10: 200868270 | J10: 228981883 | K10: 254607363 | L10: 288252466 | M10: 322072427 | N10: 343816565 | P10: FACULTAD DE CIENCIAS SOCIALES | Q10: 133.2040065 | R10: 149.1660665 | S10: 189.607684 | T10: 216.3686415 | U10: 272.5902341 | V10: 314.8783388 | W10: 301.5028592 | X10: 317.96589 | Y10: 327.0646837 | Z10: 341.0400208 | AA10: 349.9840927 | AB10: 343.816565 | AC10: 1.581127806 | AD10: 0.08222474324 | AE10: -0.01762230865
B11: FACULTAD DE DERECHO | C11: 76007790 | D11: 83483552 | E11: 100016552 | F11: 114426581 | G11: 155788322 | H11: 199636121 | I11: 214308714 | J11: 242509696 | K11: 273931975 | L11: 299460045 | M11: 335734716 | N11: 353663536 | P11: FACULTAD DE DERECHO | Q11: 169.3247617 | R11: 177.6313443 | S11: 200.010783 | T11: 211.653599 | U11: 267.1239774 | V11: 319.7290628 | W11: 321.6769379 | X11: 336.7507084 | Y11: 351.8887817 | Z11: 354.3000391 | AA11: 364.8303925 | AB11: 353.663536 | AC11: 1.088669917 | AD11: 0.06330000921 | AE11: -0.03060835053
B12: FACULTAD DE HUMANIDADES Y CIENCIAS DE LA EDUCACION | C12: 51470360 | D12: 56426867 | E12: 72266223 | F12: 82676657 | G12: 113881799 | H12: 144942259 | I12: 154711813 | J12: 176728258 | K12: 201396429 | L12: 218350751 | M12: 246221120 | N12: 256347105 | P12: FACULTAD DE HUMANIDADES Y CIENCIAS DE LA EDUCACION | Q12: 114.6620161 | R12: 120.0617367 | S12: 144.5163181 | T12: 152.9261108 | U12: 195.2685459 | V12: 232.1336058 | W12: 232.2221124 | X12: 245.4061304 | Y12: 258.7107403 | Z12: 258.3372336 | AA12: 267.5593067 | AB12: 256.347105 | AC12: 1.235675891 | AD12: 0.06934391784 | AE12: -0.0419054821
B13: FACULTAD DE INGENIERIA | C13: 135081214 | D13: 149561007 | E13: 190607331 | F13: 213631479 | G13: 265782470 | H13: 343296411 | I13: 381963079 | J13: 479872145 | K13: 503038653 | L13: 533287577 | M13: 609845745 | N13: 697968837 | P13: FACULTAD DE INGENIERIA | Q13: 300.9243444 | R13: 318.227029 | S13: 381.1721236 | T13: 395.151817 | U13: 455.7265243 | V13: 549.8095194 | W13: 573.3257942 | X13: 666.3539126 | Y13: 646.1956795 | Z13: 630.9483102 | AA13: 662.6966231 | AB13: 697.968837 | AC13: 1.319416325 | AD13: 0.07262576767 | AE13: 0.05322528094
B14: FACULTAD DE MEDICINA | C14: 147600974 | D14: 163049269 | E14: 200528061 | F14: 237527051 | G14: 318733227 | H14: 415122501 | I14: 419917003 | J14: 492529296 | K14: 573330545 | L14: 560011010 | M14: 624273855 | N14: 675471496 | P14: FACULTAD DE MEDICINA | Q14: 328.8149774 | R14: 346.9265519 | S14: 401.0113696 | T14: 439.3511959 | U14: 546.5190602 | V14: 664.8432534 | W14: 630.2945558 | X14: 683.9297236 | Y14: 736.4915577 | Z14: 662.5655944 | AA14: 678.375112 | AB14: 675.471496 | AC14: 1.054260123 | AD14: 0.06182909122 | AE14: -0.004280251377
B15: FACULTAD DE ODONTOLOGIA | C15: 59371663 | D15: 64272794 | E15: 79678013 | F15: 102364796 | G15: 134724687 | H15: 162516665 | I15: 185362494 | J15: 227130267 | K15: 214939328 | L15: 228540902 | M15: 264635935 | N15: 284364861 | P15: FACULTAD DE ODONTOLOGIA | Q15: 132.2639783 | R15: 136.7558342 | S15: 159.338244 | T15: 189.3430468 | U15: 231.0070086 | V15: 260.2800572 | W15: 278.2287214 | X15: 315.3947227 | Y15: 276.107739 | Z15: 270.3935028 | AA15: 287.5699993 | AB15: 284.364861 | AC15: 1.149979644 | AD15: 0.06586662199 | AE15: -0.01114559346
B16: FACULTAD DE PSICOLOGIA | C16: 43890661 | D16: 49120911 | E16: 56134805 | F16: 66799034 | G16: 89681290 | H16: 123783807 | I16: 140149627 | J16: 161857518 | K16: 180628050 | L16: 194888094 | M16: 231148477 | N16: 258187867 | P16: FACULTAD DE PSICOLOGIA | Q16: 97.77650048 | R16: 104.5165574 | S16: 112.2570822 | T16: 123.5574447 | U16: 153.7729053 | V16: 198.2470928 | W16: 210.3643012 | X16: 224.7565139 | Y16: 232.0320016 | Z16: 230.57787 | AA16: 251.1804278 | AB16: 258.187867 | AC16: 1.640592226 | AD16: 0.08428082703 | AE16: 0.02789803028
B17: FACULTAD DE QUIMICA | C17: 75395485 | D17: 86324037 | E17: 105313245 | F17: 137324962 | G17: 183190478 | H17: 225078914 | I17: 268847675 | J17: 270611780 | K17: 317353875 | L17: 355605881 | M17: 395371038 | N17: 422504016 | P17: FACULTAD DE QUIMICA | Q17: 167.9607121 | R17: 183.6751596 | S17: 210.6029869 | T17: 254.0084846 | U17: 314.1093535 | V17: 360.4772015 | W17: 403.5398059 | X17: 375.7734644 | Y17: 407.6678833 | Z17: 420.7278388 | AA17: 429.6349591 | AB17: 422.504016 | AC17: 1.515493122 | AD17: 0.07990427692 | AE17: -0.01659767901
B18: FACULTAD DE VETERINARIA | C18: 89925595 | D18: 96580445 | E18: 111757466 | F18: 133162709 | G18: 177427155 | H18: 224016531 | I18: 226410099 | J18: 262004240 | K18: 284192428 | L18: 308992550 | M18: 345370429 | N18: 381633735 | P18: FACULTAD DE VETERINARIA | Q18: 200.3298602 | R18: 205.4981354 | S18: 223.4899908 | T18: 246.3096107 | U18: 304.2272151 | V18: 358.7757323 | W18: 339.8410919 | X18: 363.8209725 | Y18: 365.069201 | Z18: 365.5782278 | AA18: 375.3011624 | AB18: 381.633735 | AC18: 0.9050267125 | AD18: 0.05517644835 | AE18: 0.01687330923
B19: HOSPITAL DE CLINICAS | C19: 535511911 | D19: 590707784 | E19: 691181194 | F19: 789734567 | G19: 1007261508 | H19: 1203764535 | I19: 1261073893 | J19: 1495650130 | K19: 1717805451 | L19: 1833447097 | M19: 2052737477 | N19: 2235774812 | P19: HOSPITAL DE CLINICAS | Q19: 1192.97544 | R19: 1256.872944 | S19: 1382.208135 | T19: 1460.763416 | U19: 1727.110844 | V19: 1927.900145 | W19: 1892.869314 | X19: 2076.87053 | Y19: 2206.666335 | Z19: 2169.205505 | AA19: 2230.633246 | AB19: 2235.774812 | AC19: 0.874116379 | AD19: 0.05373898133 | AE19: 0.002304980217
B20: INSTITUTO DE HIGIENE | C20: 16966001 | D20: 19598307 | E20: 21353649 | F20: 24024279 | G20: 33139916 | H20: 37200724 | I20: 43525523 | J20: 49643180 | K20: 60085914 | L20: 56806964 | M20: 63025800 | N20: 70958059 | P20: INSTITUTO DE HIGIENE | Q20: 37.79565327 | R20: 41.70011379 | S20: 42.70253244 | T20: 44.43744688 | U20: 56.82368267 | V20: 59.57916112 | W20: 65.33172029 | X20: 68.93487687 | Y20: 77.18543654 | Z20: 67.2099998 | AA20: 68.48778592 | AB20: 70.958059 | AC20: 0.8774132172 | AD20: 0.05389333003 | AE20: 0.03606881214
B21: INSTITUTO ESCUELA NACIONAL DE BELLAS ARTES | C21: 23960877 | P21: INSTITUTO ESCUELA NACIONAL DE BELLAS ARTES | Q21: =(C21/(Q$2/$AB$2))/1000000 -> 53.37834173
B22: INSTITUTO NACIONAL DE ENFERMERIA | C22: 29447208 | P22: INSTITUTO NACIONAL DE ENFERMERIA | Q22: =(C22/(Q$2/$AB$2))/1000000 -> 65.60040067
B23: OFICINAS CENTRALES Y ESCUELAS DEPENDIENTES DE RECTORADO | C23: 505073883 | D23: 471358651 | E23: 506845924 | F23: 746885815 | G23: 740243095 | H23: 853306719 | I23: 938902142 | J23: 1352339233 | K23: 1611452086 | L23: 1923428147 | M23: 2114935091 | N23: 2347115874 | P23: OFICINAS CENTRALES Y ESCUELAS DEPENDIENTES DE RECTORADO | Q23: =(C23/(Q$2/$AB$2))/1000000 -> 1125.167761 | R23: =(D23/(R$2/$AB$2))/1000000 -> 1002.928946 | S23: 1013.578734 | T23: 1381.506547 | U23: 1269.265098 | V23: 1366.621211 | W23: 1409.29018 | X23: 1877.867987 | Y23: 2070.046446 | Z23: 2275.664747 | AA23: 2298.221074 | AB23: 2347.115874 | AC23: =(AB23/Q23-1) -> 1.086014153 | AD23: =((AB23/Q23)^(1/12))-1 -> 0.06318727715 | AE23: =AB23/AA23-1 -> 0.021275064
B24: REGIONAL NORTE | C24: 15109279 | D24: 16859271 | E24: 20675408 | F24: 30777058 | G24: 41213523 | H24: 45921450 | I24: 48561202 | J24: 60456969 | K24: 73098893 | L24: 95531116 | M24: 123783838 | N24: 137139228 | P24: REGIONAL NORTE | Q24: =(C24/(Q$2/$AB$2))/1000000 -> 33.65937973 | R24: 35.87215565 | S24: 41.34620181 | T24: 56.92798855 | U24: 70.66717226 | V24: 73.54591993 | W24: 72.89026409 | X24: 83.95098207 | Y24: 93.90170826 | Z24: 113.0256897 | AA24: 134.5112795 | AB24: 137.139228 | AC24: =(AB24/Q24-1) -> 3.074324277 | AD24: =((AB24/Q24)^(1/12))-1 -> 0.1241854653 | AE24: =AB24/AA24-1 -> 0.01953701246
B25: FACULTAD DE ENFERMERIA | D25: 32446518 | E25: 40589766 | F25: 54216885 | G25: 73508417 | H25: 93340593 | I25: 101598427 | J25: 123867944 | K25: 138903120 | L25: 149225441 | M25: 176316657 | N25: 184413511 | P25: FACULTAD DE ENFERMERIA | R25: 69.03777417 | S25: 81.17047346 | T25: 100.2843809 | U25: 126.0419297 | V25: 149.4904838 | W25: 152.4990295 | X25: 172.0039181 | Y25: 178.4328013 | Z25: 176.5530342 | AA25: 191.5967343 | AB25: 184.413511 | AC25: =(AB25/R25-1) -> 1.671197228 | AD25: =((AB25/R25)^(1/11))-1 -> 0.09343117126 | AE25: =AB25/AA25-1 -> -0.03749136617
B26: INSTESCNALDE BELLAS ARTES Y ESCUELA UNIVDE MUSICA | D26: 36812912 | P26: INSTESCNALDE BELLAS ARTES Y ESCUELA UNIVDE MUSICA | R26: =(D26/(R$2/$AB$2))/1000000 -> 78.32832802
B27: IEMBAYEUMBELLAS ARTES Y MUSICA | E27: 46522563 | F27: 61982035 | G27: 79108197 | H27: 104878046 | I27: 126872416 | J27: 14682595 | P27: IEMBAYEUMBELLAS ARTES Y MUSICA | S27: =(E27/(S$2/$AB$2))/1000000 -> 93.03474342 | T27: 114.6474942 | U27: 135.6436475 | V27: 167.9683976 | W27: 190.4352349 | X27: 20.38835704
B28: IENBAYEUMBELLAS ARTES Y MUSICA | J28: 126614292 | K28: 140158662 | L28: 163866495 | M28: 185925317 | N28: 198958041 | P28: IENBAYEUMBELLAS ARTES Y MUSICA | X28: =(J28/(X$2/$AB$2))/1000000 -> 175.8175167 | Y28: =(K28/(Y$2/$AB$2))/1000000 -> 180.0456512 | Z28: =(L28/(Z$2/$AB$2))/1000000 -> 193.8752984 | AA28: =(M28/(AA$2/$AB$2))/1000000 -> 202.0381067 | AB28: =(N28/(AB$2/$AB$2))/1000000 -> 198.958041 | AC28: =(AB28/S27-1) -> 1.138534849 | AD28: =((AB28/S27)^(1/10))-1 -> 0.07897562372 | AE28: =AB28/AA28-1 -> -0.01524497422
B29: FACULTAD DE INFORMACION Y COMUNICACION | M29: 140505053 | N29: 159037901 | P29: FACULTAD DE INFORMACION Y COMUNICACION | AA29: =(M29/(AA$2/$AB$2))/1000000 -> 152.6816001 | AB29: =(N29/(AB$2/$AB$2))/1000000 -> 159.037901 | AE29: =AB29/AA29-1 -> 0.04163108667
B30: CENTRO UNIVERSITARIO REGIONAL ESTE | P30: CENTRO UNIVERSITARIO REGIONAL ESTE
B31: CENTRO UNIVERSITARIO REGIONAL LITORAL NORTE | P31: CENTRO UNIVERSITARIO REGIONAL LITORAL NORTE
B32: FACULTAD DE ARQUITECTURA DISEO Y URBANISMO | P32: FACULTAD DE ARQUITECTURA DISEO Y URBANISMO
B34: Distribución % | P34: Ordenado de mayor a menor
B35: FACULTAD DE AGRONOMIA | C35: =C6/SUM(C$6:C$29) -> 0.06149171447 | D35: 0.06262117231 | E35: 0.06252633595 | F35: 0.05881457427 | G35: 0.06433607087 | H35: 0.06230614453 | I35: 0.06100645646 | J35: 0.05840459592 | K35: 0.05565236536 | L35: 0.05573743993 | M35: 0.05617520929 | N35: 0.0535234924 | P35: Descripción Unidad Ejecutora | Q35: 2015 | R35: 1
B36: FACULTAD DE ARQUITECTURA | C36: 0.0293353229 | D36: 0.0305812909 | E36: 0.03115877689 | F36: 0.02872107531 | G36: 0.03286558712 | H36: 0.03665059509 | I36: 0.03634760669 | J36: 0.03565787684 | K36: 0.03635543173 | L36: 0.03795182473 | M36: 0.03537244233 | N36: 0.03497414141 | P36: OFICINAS CENTRALES Y ESCUELAS DEPENDIENTES DE RECTORADO | Q36: 2347.115874 | R36: =Q36/SUM(Q$36:Q$55) -> 0.2132954724
B37: FACULTAD DE CIENCIAS | C37: 0.04963201493 | D37: 0.05216138361 | E37: 0.05238031415 | F37: 0.04976877681 | G37: 0.05243955226 | H37: 0.05542274015 | I37: 0.05555427424 | J37: 0.0542344065 | K37: 0.05294155324 | L37: 0.05398744226 | M37: 0.05327373338 | N37: 0.05531497304 | P37: HOSPITAL DE CLINICAS | Q37: 2235.774812 | R37: 0.2031772909 | U37: Facultades por Áreas (sin contar Escuelas despendientes de Rectorado)
B38: FACULTAD DE CIENCIAS ECONOMICAS Y DE ADMINISTRACION | C38: 0.04333193473 | D38: 0.04541647639 | E38: 0.04457602711 | F38: 0.04038067641 | G38: 0.04069787058 | H38: 0.04099672519 | I38: 0.04183133676 | J38: 0.03946861201 | K38: 0.03864420127 | L38: 0.03839403216 | M38: 0.03906985909 | N38: 0.03763891175 | P38: FACULTAD DE INGENIERIA | Q38: 697.968837 | R38: 0.0634283098 | T38: =R38+R40+R41+R42+R44+R45 -> 0.2803173861 | U38: Área de las Tecnologías y las Ciencias Naturales y el Hábitab - está completa
B39: FACULTAD DE CIENCIAS SOCIALES | C39: 0.02617394014 | D39: 0.02855510832 | E39: 0.03281844391 | F39: 0.03302679087 | G39: 0.03602829958 | H39: 0.03617197392 | I39: 0.03431970392 | J39: 0.03225872013 | K39: 0.03175944166 | L39: 0.03254189417 | M39: 0.03193017805 | N39: 0.03124452331 | P39: FACULTAD DE MEDICINA | Q39: 675.471496 | R39: 0.06138385131 | T39: =R39+R48+R49+R52 -> 0.1274473163 | U39: Área Ciencias de la Salud - Falta: ISEF y Escuela de Nutrición
B40: FACULTAD DE DERECHO | C40: 0.03327149306 | D40: 0.03400426382 | E40: 0.03461907517 | F40: 0.03230708065 | G40: 0.03530582347 | H40: 0.03672920584 | I40: 0.03661609478 | J40: 0.03416450381 | K40: 0.03416997245 | L40: 0.0338071595 | M40: 0.03328465389 | N40: 0.03213937233 | P40: FACULTAD DE CIENCIAS | Q40: 608.689204 | R40: 0.05531497304 | T40: =R43+R46+R47+R50+R51+R53 -> 0.1568515766 | U40: Área Ciencias Sociales y Artísticas - Falta: Escuela Univ. De Bibliotecología y Ciencias Afines
B41: FACULTAD DE HUMANIDADES Y CIENCIAS DE LA EDUCACION | C41: 0.02253052911 | D41: 0.02298361804 | E41: 0.02501375778 | F41: 0.02334284047 | G41: 0.02580867834 | H41: 0.02666658739 | I41: 0.02643356074 | J41: 0.02489728593 | K41: 0.02512196844 | L41: 0.02465042929 | M41: 0.02441029887 | N41: 0.02329568704 | P41: FACULTAD DE AGRONOMIA | Q41: 588.975646 | R41: 0.0535234924
B42: FACULTAD DE INGENIERIA | C42: 0.05913017171 | D42: 0.06091872971 | E42: 0.06597557492 | F42: 0.06031648732 | G42: 0.06023345554 | H42: 0.06315993559 | I42: 0.06526097816 | J42: 0.06760386902 | K42: 0.06274848679 | L42: 0.06020482022 | M42: 0.06045995121 | N42: 0.0634283098 | P42: FACULTAD DE QUIMICA | Q42: 422.504016 | R42: 0.03839528959
B43: FACULTAD DE MEDICINA | C43: 0.0646105456 | D43: 0.06641272713 | E43: 0.06940947151 | F43: 0.06706313801 | G43: 0.07223352111 | H43: 0.07637455443 | I43: 0.07174566304 | J43: 0.06938699477 | K43: 0.07151661988 | L43: 0.06322172808 | M43: 0.06189035035 | N43: 0.06138385131 | P43: FACULTAD DE CIENCIAS ECONOMICAS Y DE ADMINISTRACION | Q43: 414.18079 | R43: 0.03763891175
B44: FACULTAD DE ODONTOLOGIA | C44: 0.02598922918 | D44: 0.02617939691 | E44: 0.0275792263 | F44: 0.02890156895 | G44: 0.0305322373 | H44: 0.02989994001 | I44: 0.03167043711 | J44: 0.03199786647 | K44: 0.02681129473 | L44: 0.02580083338 | M44: 0.02623593892 | N44: 0.02584181634 | P44: FACULTAD DE ARQUITECTURA | Q44: 384.857501 | R44: 0.03497414141
B45: FACULTAD DE PSICOLOGIA | C45: 0.01921260732 | D45: 0.0200077785 | E45: 0.01943013426 | F45: 0.01885996907 | G45: 0.02032419216 | H45: 0.02277383925 | I45: 0.02394551267 | J45: 0.02280231216 | K45: 0.02253134375 | L45: 0.02200164258 | M45: 0.0229160009 | N45: 0.02346296732 | P45: FACULTAD DE VETERINARIA | Q45: 381.633735 | R45: 0.03468117986
B46: FACULTAD DE QUIMICA | C46: 0.03300346393 | D46: 0.03516124144 | E46: 0.03645243784 | F46: 0.03877218548 | G46: 0.04151588896 | H46: 0.04141019031 | I46: 0.04593444553 | J46: 0.03812349502 | K46: 0.03958637237 | L46: 0.04014567198 | M46: 0.0391969836 | N46: 0.03839528959 | P46: FACULTAD DE DERECHO | Q46: 353.663536 | R46: 0.03213937233
B47: FACULTAD DE VETERINARIA | C47: 0.03936384428 | D47: 0.03933885002 | E47: 0.03868299835 | F47: 0.03759701935 | G47: 0.04020976497 | H47: 0.04121473227 | I47: 0.03868369834 | J47: 0.03691087409 | K47: 0.03544985004 | L47: 0.03488331948 | M47: 0.03423993601 | N47: 0.03468117986 | P47: FACULTAD DE CIENCIAS SOCIALES | Q47: 343.816565 | R47: 0.03124452331
B48: HOSPITAL DE CLINICAS | C48: 0.2344138782 | D48: 0.2406052791 | E48: 0.2392409379 | F48: 0.2229728279 | G48: 0.2282725466 | H48: 0.2214695175 | I48: 0.2154630128 | J48: 0.2107055734 | K48: 0.2142771574 | L48: 0.2069846695 | M48: 0.2035078686 | N48: 0.2031772909 | P48: FACULTAD DE ODONTOLOGIA | Q48: 284.364861 | R48: 0.02584181634
B49: INSTITUTO DE HIGIENE | C49: 0.007426662248 | D49: 0.007982722173 | E49: 0.007391212405 | F49: 0.006782989691 | G49: 0.007510396216 | H49: 0.006844217582 | I49: 0.007436630298 | J49: 0.006993677531 | K49: 0.007495050646 | L49: 0.006413149682 | M49: 0.006248361695 | N49: 0.006448353437 | P49: FACULTAD DE PSICOLOGIA | Q49: 258.187867 | R49: 0.02346296732
B50: INSTITUTO ESCUELA NACIONAL DE BELLAS ARTES | C50: 0.01048858483 | D50: 0 | E50: 0 | F50: 0 | G50: 0 | H50: 0 | I50: 0 | J50: 0 | K50: 0 | L50: 0 | M50: 0 | N50: 0 | P50: FACULTAD DE HUMANIDADES Y CIENCIAS DE LA EDUCACION | Q50: 256.347105 | R50: 0.02329568704
B51: INSTITUTO NACIONAL DE ENFERMERIA | C51: =C22/SUM(C$6:C$29) -> 0.01289016003 | D51: 0 | E51: 0 | F51: 0 | G51: 0 | H51: 0 | I51: 0 | J51: 0 | K51: 0 | L51: 0 | M51: 0 | N51: 0 | P51: IENBAYEUMBELLAS ARTES Y MUSICA | Q51: 198.958041 | R51: 0.01808042364
B52: OFICINAS CENTRALES Y ESCUELAS DEPENDIENTES DE RECTORADO | C52: 0.2210899987 | D52: 0.191992357 | E52: 0.1754363332 | F52: 0.2108749563 | G52: 0.1677589931 | H52: 0.1569920211 | I52: 0.1604177879 | J52: 0.1905160892 | K52: 0.201010756 | L52: 0.2171429653 | M52: 0.2096741241 | N52: 0.2132954724 | P52: FACULTAD DE ENFERMERIA | Q52: 184.413511 | R52: 0.01675868132
B53: REGIONAL NORTE | C53: 0.006613904593 | D53: 0.006867066448 | E53: 0.007156450501 | F53: 0.008689562219 | G53: 0.009340092691 | H53: 0.008448663404 | I53: 0.008297010149 | J53: 0.008517112435 | K53: 0.009118275294 | L53: 0.01078486339 | M53: 0.01227189805 | N53: 0.01246260431 | P53: FACULTAD DE INFORMACION Y COMUNICACION | Q53: 159.037901 | R53: 0.01445265851
B54: FACULTAD DE ENFERMERIA | C54: 0 | D54: 0.01321601599 | E54: 0.01404947613 | F54: 0.01530753835 | G54: 0.0166589842 | H54: 0.01717287351 | I54: 0.01735877913 | J54: 0.01745038204 | K54: 0.017326622 | L54: 0.01684661566 | M54: 0.01747998829 | N54: 0.01675868132 | P54: REGIONAL NORTE | Q54: 137.139228 | R54: 0.01246260431
B55: INSTESCNALDE BELLAS ARTES Y ESCUELA UNIVDE MUSICA | C55: 0 | D55: 0.01499452217 | E55: 0 | F55: 0 | G55: 0 | H55: 0 | I55: 0 | J55: 0 | K55: 0 | L55: 0 | M55: 0 | N55: 0 | P55: INSTITUTO DE HIGIENE | Q55: 70.958059 | R55: 0.006448353437
B56: IEMBAYEUMBELLAS ARTES Y MUSICA | C56: 0 | D56: 0 | E56: 0.01610301568 | F56: 0.01749994264 | G56: 0.01792804494 | H56: 0.01929554291 | I56: 0.02167701127 | J56: 0.002068468111 | K56: 0 | L56: 0 | M56: 0 | N56: 0 | P56: INSTITUTO ESCUELA NACIONAL DE BELLAS ARTES | Q56: 0
B57: IENBAYEUMBELLAS ARTES Y MUSICA | C57: 0 | D57: 0 | E57: 0 | F57: 0 | G57: 0 | H57: 0 | I57: 0 | J57: 0.01783728458 | K57: 0.01748323692 | L57: 0.01849949877 | M57: 0.01843258838 | N57: 0.01808042364 | P57: INSTITUTO NACIONAL DE ENFERMERIA | Q57: 0
B58: FACULTAD DE INFORMACION Y COMUNICACION | C58: 0 | D58: 0 | E58: 0 | F58: 0 | G58: 0 | H58: 0 | I58: 0 | J58: 0 | K58: 0 | L58: 0 | M58: 0.01392963502 | N58: 0.01445265851 | P58: INSTESCNALDE BELLAS ARTES Y ESCUELA UNIVDE MUSICA | Q58: 0
C59: =SUM(C35:C58) -> 1 | D59: 1 | E59: 1 | F59: 1 | G59: 1 | H59: 1 | I59: 1 | J59: 1 | K59: 1 | L59: 1 | M59: 1 | N59: 1 | P59: IEMBAYEUMBELLAS ARTES Y MUSICA | Q59: 0
P60: CENTRO UNIVERSITARIO REGIONAL ESTE | Q60: 0
P61: CENTRO UNIVERSITARIO REGIONAL LITORAL NORTE | Q61: 0
P62: FACULTAD DE ARQUITECTURA DISEO Y URBANISMO | Q62: 0
A64: Código Inciso | B64: Descripción Funcionamiento O Inversión | C64: 2004 | D64: 2005 | E64: 2006 | F64: 2007 | G64: 2008 | H64: 2009 | I64: 2010 | J64: 2011 | K64: 2012 | L64: 2013 | M64: 2014 | N64: 2015 | P64: Descripción Funcionamiento O Inversión | Q64: 2004 | R64: 2005 | S64: 2006 | T64: 2007 | U64: 2008 | V64: 2009 | W64: 2010 | X64: 2011 | Y64: 2012 | Z64: 2013 | AA64: 2014 | AB64: 2015 | AC64: Crec 04/15 | AD64: Crec anual | AE64: Crec 2014-2015
B65: Funcionamiento | C65: 487265030 | D65: 518155218 | E65: 518813318 | F65: 707313731 | G65: 705752967 | H65: 833785489 | I65: 808347037 | J65: 980054311 | K65: 1125239656 | L65: 1156921280 | M65: 1294879576 | N65: 1435246631 | P65: Funcionamiento | Q65: =(C65/(Q$2/$AB$2))/1000000 -> 1085.494462 | R65: 1102.499902 | S65: 1037.510851 | T65: 1308.310495 | U65: 1210.126261 | V65: 1335.356806 | W65: 1213.327236 | X65: 1360.910467 | Y65: 1445.465472 | Z65: 1368.787795 | AA65: 1407.097335 | AB65: 1435.246631 | AC65: =(AB65/Q65-1) -> 0.3222053926 | AD65: =((AB65/Q65)^(1/12))-1 -> 0.02354806989 | AE65: =AB65/AA65-1 -> 0.02000522334
B66: Remuneraciones | C66: 1715483648 | D66: 1861933954 | E66: 2265923344 | F66: 2608350661 | G66: 3416089756 | H66: 4207414525 | I66: 4631199112 | J66: 5447749252 | K66: 6187144299 | L66: 6972429551 | M66: 7995823438 | N66: 8719521653 | P66: Remuneraciones | Q66: 3821.632755 | R66: 3961.712497 | S66: 4531.340995 | T66: 4824.637773 | U66: 5857.431874 | V66: 6738.423368 | W66: 6951.42032 | X66: 7564.783801 | Y66: 7947.909949 | Z66: 8249.287688 | AA66: 8688.763076 | AB66: 8719.521653 | AC66: =(AB66/Q66-1) -> 1.281622074 | AD66: =((AB66/Q66)^(1/12))-1 -> 0.0711582634 | AE66: =AB66/AA66-1 -> 0.003540040994
B67: Inversiones | C67: 81723193 | D67: 75001532 | E67: 104322376 | F67: 226177789 | G67: 290696249 | H67: 394150858 | I67: 413309413 | J67: 670490543 | K67: 704361607 | L67: 728537541 | M67: 796069019 | N67: 849290301 | P67: Inversiones | Q67: 182.057131 | R67: 159.5838058 | S67: 208.6214701 | T67: 418.3585898 | U67: 498.4451803 | V67: 631.255926 | W67: 620.3765769 | X67: 931.0479914 | Y67: 904.8120349 | Z67: 861.9543193 | AA67: 865.0585085 | AB67: 849.290301 | AC67: =(AB67/Q67-1) -> 3.664965862 | AD67: =((AB67/Q67)^(1/12))-1 -> 0.1369395453 | AE67: =AB67/AA67-1 -> -0.01822790874
B69: Distribución %
B70: Funcionamiento | C70: =C65/SUM(C$65:C$67) -> 0.2132943882 | D70: 0.2110533909 | E70: 0.1795786487 | F70: 0.1997022156 | G70: 0.1599426025 | H70: 0.1534004904 | I70: 0.1381115643 | J70: 0.1380689918 | K70: 0.1403611537 | L70: 0.130609151 | M70: 0.12837403 | N70: 0.1304288431
B71: Remuneraciones | C71: 0.7509322701 | D71: 0.7583972156 | E71: 0.7843118864 | F71: 0.7364389851 | G71: 0.7741778096 | H71: 0.7740833341 | I71: 0.7912717242 | J71: 0.7674730253 | K71: 0.7717775563 | L71: 0.7871435333 | M71: 0.792703891 | N71: 0.7923914241
B72: Inversiones | C72: 0.03577334177 | D72: 0.0305493935 | E72: 0.03610946493 | F72: 0.0638587993 | G72: 0.06587958788 | H72: 0.07251617555 | I72: 0.07061671156 | J72: 0.09445798286 | K72: 0.08786129004 | L72: 0.08224731566 | M72: 0.07892207898 | N72: 0.07717973277
C73: =SUM(C70:C72) -> 1 | D73: 1 | E73: 1 | F73: 1 | G73: 1 | H73: 1 | I73: 1 | J73: 1 | K73: 1 | L73: 1 | M73: 1 | N73: 1

Sheet Gráfico 3.1.21
A1: Ministerio de Educación y Cultura Dirección de Educación
A3: Gráfico 3.1.21
A27: Fuente: Elaboración propia en base a datos del MEF.

Sheet ORGANIGRAMA 3.1
A1: Ministerio de Educación y Cultura Dirección de Educación
A3: Organigrama 3.1 | B3: OFERTAS EDUCATIVAS PARA EGRESADOS DE LA ESCUELA ESPECIAL
A39: Fuente: Elaboración propia en base al informe de la Comisión de Continuidad Educativa del MEC

Sheet CONTEXTO INTERNACIONAL
C5: CONTEXTO INTERNACIONAL
A9: Gráfico 4.1.1 TASA DE ANALFABETISMO DE PAÍSES DE LA REGIÓN SEGÚN AÑO LECTIVO (2000-2016)
A14: Gráfico 4.1.2 PORCENTAJE DE LA POBLACIÓN DE 25 AÑOS Y MÁS SEGÚN MÁXIMO NIVEL EDUCATIVO CULMINADO EN AMÉRICA LATINA Y EL CARIBE (Último dato disponible entre 2013 y 2015)
A15: Gráfico 4.1.3 PORCENTAJE DE LA POBLACIÓN DE 25 AÑOS Y MÁS SEGÚN MÁXIMO NIVEL EDUCATIVO CULMINADO EN EUROPA OCCIDENTAL, EE.UU Y URUGUAY (Último dato disponible entre 2013 y 2015)

Sheet Gráfico 4.1.1
A1: Ministerio de Educación y Cultura Dirección de Educación
A5: Gráfico 4.1.1
A34: Fuentes:
A35: Indicadores Educativos del Mercosur 2000 - 2012 (SEM) y Unidades Productoras de Estadísticas Oficiales de los países. Paraguay DGEEC, Encuesta Permanente de Hogares para años 2013 y 2015.Argentina Encuesta Anual de Hogares Urbanos (EAHU). Instituto Nacional de Estadísticas y Censo (INDEC) para años 2011 a 2015.Chile Encuesta Nacional de Caracterización Socioeconómica, CASEN para el año 2013.
A41: Notas:
A42: La Tasa de Analfabetismo se mide con base en personas con 15 y más años de edad, con excepción de Argentina, en que refiere a personas con 10 y más años de edad. Para 2015 y 2016 el dato de Brasil y Argentina corresponde a 2014. Para Chile en 2014 se replica el valor de 2013 y para el 2016 se replica el 2015, por ser los último datos disponibles. Para el caso de Paraguay la serie historica ha sido rectificada dado que la Encuestas Permanente de Hogares (fuente de información) ha utilizado una nueva metodología para el calculo del factor de expansión, por lo tanto para que los datos sean comparables se volvieron a calcular las tasas utilizando los nuevos factores de expansión.

Sheet Gráfico 4.1.2
A1: Ministerio de Educación y Cultura Dirección de Educación
A5: Gráfico 4.1.2
A30: Fuente: UNESCO UIS (consulta realizada al 27 de octubre de 2017).
A31: Nota: Para los países que no presentaban dato al 2015 se tomó el dato 2014 o 2013, aquellos sin dato en el período 2013-2015 no fueron incluidos. No se presenta información para algunos niveles en el caso de los países que incluían otras categorías en el nivel y tampoco se presenta el porcentaje de nivel desconocido (por esto no todos los países suman 100%). El nivel de postsecundaria se corresponde a terciaria completa de nivel de grado y completa e incompleta en los niveles de posgrado.

Sheet Gráfico 4.1.3
A1: Ministerio de Educación y Cultura Dirección de Educación
A5: Gráfico 4.1.3
A30: Fuente: UNESCO UIS (consulta realizada al 27 de octubre de 2017).
A31: Nota: Para los países que no presentaban dato al 2015 se tomó el dato 2014 o 2013, aquellos sin dato en el período 2013-2015 no fueron incluidos. No se presenta información para algunos niveles en el caso de los países que incluían otras categorías en el nivel y tampoco se presenta el porcentaje de nivel desconocido (por esto no todos los países suman 100%). El nivel de postsecundaria se corresponde a terciaria completa de nivel de grado y completa e incompleta en los niveles de posgrado.

Sheet CONTROL (hidden)
B1: PRIMER CUADRO | C1: SEGUNDO CUADRO
A2: MATRÍCULA | B2: II-1.2.1 | C2: II-1.2.2 | D2: =IF(#REF!, "OK", "INCONSISTENCIA") -> 
A3: MATRÍCULA | B3: II-1.2.1 | C3: II-1.2.3 | D3: =IF(#REF!=#REF!, "OK", "INCONSISTENCIA") -> 
A4: MATRÍCULA | B4: II-1.2.1 | C4: II-1.2.5 | D4: =IF(#REF!=#REF!, "OK", "INCONSISTENCIA") -> 
A5: MATRÍCULA | B5: II-1.2.1 | C5: II-1.2.6 | D5: =IF(#REF!=#REF!,"OK","INCONSISTENCIA") -> 
A6: MATRÍCULA | B6: II-1.2.4 | C6: II-1.2.5 | D6: =IF(#REF!, "OK", "INCONSISTENCIA") -> 
A7: MATRÍCULA | B7: II-1.2.4 | C7: II-1.2.6 | D7: =IF(#REF!=#REF!, "OK", "INCONSISTENCIA") -> 
A8: MATRÍCULA | B8: II-1.2.5 | C8: II-1.2.6 | D8: =IF(#REF!=#REF!,"OK","INCONSISTENCIA") -> 
A9: MATRÍCULA | B9: II-1.2.5 | C9: II-1.2.7 | D9: =IF(#REF! =#REF!, "OK", "INCONSISTENCIA") -> 
A10: PERSONAL | B10: II-1.3.3 | C10: II-1.3.4 | D10: =IF(#REF! =#REF!, "OK", "INCONSISTENCIA") -> 

Sheet CONTROL (hidden)
A1: DENTRO DE PRIMARIA | G1: EN SINOPSIS
B2: PRIMER CUADRO | C2: SEGUNDO CUADRO | D2: TERCER CUADRO | F2: Aclaración. | G2: PRIMER CUADRO | H2: SEGUNDO CUADRO | I2: TERCER CUADRO
A3: ESTABLEC. | B3: II-2.1.1 | C3: II-2.1.2 | E3: =IF(SUM(#REF!+#REF!+#REF!+#REF!+#REF! +#REF! =#REF!),"OK","INCONSISTENCIA") -> 
A4: ESTABLEC. | B4: II-2.1.1 | C4: II-2.1.4 | E4: =IF(#REF!=#REF!,"OK","INCONSISTENCIA") -> 
A5: ESTABLEC. | B5: II-2.1.1 | C5: II-2.1.4 | E5: =IF(#REF!=#REF!,"OK","INCONSISTENCIA") ->  | F5: =IF(E5="INCONSISTENCIA","Número de establecimiento de especial","") -> 
A6: MATRÍCULA | B6: II-2.2.1 | C6: II-2.2.2 | E6: =IF(#REF!=#REF!,"OK","INCONSISTENCIA") ->  | F6: =IF(E6="INCONSISTENCIA","Matrícula de Primaria Pública","") ->  | J6: =IF((#REF!+#REF!)=#REF!,"OK","INCONSISTENCIA") ->  | K6: =IF(J6="INCONSISTENCIA","Matrícula de Primaria Pública","") -> 
A7: MATRÍCULA | B7: II-2.2.2 | C7: II-2.2.3 | E7: =IF(#REF!=SUM(#REF!-#REF!),"OK","INCONSISTENCIA") ->  | J7: =IF((#REF!+#REF!)=#REF!,"OK","INCONSISTENCIA") -> 
A8: MATRÍCULA | B8: II-2.2.2 | C8: II-2.2.8 | E8: =IF(#REF!=#REF!,"OK","INCONSISTENCIA") -> 
A9: MATRÍCULA | B9: II-2.2.1 | C9: II-2.2.6 | E9: =IF(#REF!=#REF!,"OK","INCONSISTENCIA") -> 
A10: MATRÍCULA | B10: II-2.2.2 | C10: II-2.2.8 | E10: =IF(#REF!=#REF!,"OK","INCONSISTENCIA") -> 
A11: MATRÍCULA | B11: II-2.2.1 | C11: II-2.2.8 | E11: =IF(#REF!=#REF!,"OK","INCONSISTENCIA") -> 
A12: MATRÍCULA | B12: II-2.2.2 | C12: II-2.2.9 | E12: =IF(#REF!=#REF!,"OK","INCONSISTENCIA") -> 
A13: MATRÍCULA | B13: II-2.2.1 | C13: II-2.2.10 | E13: =IF(#REF!=#REF!,"OK","INCONSISTENCIA") -> 
A14: MATRÍCULA | B14: II-2.2.2 | C14: II-2.2.11 | E14: =IF(#REF!=#REF!,"OK","INCONSISTENCIA") -> 
A15: MATRÍCULA | B15: II-2.2.1 | C15: II-2.2.11 | E15: =IF(#REF!=#REF!,"OK","INCONSISTENCIA") -> 
A16: MATRÍCULA | B16: II-2.2.12 | C16: II-2.2.13 | E16: =IF(#REF!=#REF!,"OK","INCONSISTENCIA") -> 
A17: MATRÍCULA | B17: II-2.2.10 | C17: II-2.2.12 | E17: =IF(#REF!=#REF!,"OK","INCONSISTENCIA") -> 
A18: MATRÍCULA | B18: II-2.2.12 | C18: II-2.2.13 | E18: =IF(#REF!=#REF!,"OK","INCONSISTENCIA") -> 
A19: MATRÍCULA | B19: II-2.2.13 | C19: II-2.2.14 | E19: =IF(#REF!=#REF!,"OK","INCONSISTENCIA") -> 
A20: MATRÍCULA | B20: II-2.2.13 | C20: II-2.2.14 | E20: =IF(#REF!=#REF!,"OK","INCONSISTENCIA") -> 
A21: MATRÍCULA | B21: II-2.2.1 | C21: II-2.2.15 | E21: =IF(#REF!=#REF!+#REF!,"OK","INCONSISTENCIA") -> 
A22: MATRÍCULA | B22: II-2.2.16 | C22: II-2.2.17 | E22: =IF(#REF!=#REF!,"OK","INCONSISTENCIA") -> 
A23: MATRÍCULA | B23: II-2.2.1 | C23: II-2.2.18 | E23: =IF(#REF!=#REF!,"OK","INCONSISTENCIA") -> 

Sheet CONTROL Media Básica (hidden)
B1: PRIMER CUADRO | C1: SEGUNDO CUADRO
A2: MATRÍCULA | B2: II-3.2.1 | C2: II-3.2.4 | D2: =IF(#REF! =#REF!, "OK", "INCONSISTENCIA") -> 
A3: MATRÍCULA | B3: II-3.2.1 | C3: II-3.2.4 | D3: =IF(#REF! =#REF!, "OK", "INCONSISTENCIA") -> 
A4: MATRÍCULA | B4: II-3.2.1 | C4: II-3.2.4 | D4: =IF(#REF! =#REF!, "OK", "INCONSISTENCIA") -> 
A5: MATRÍCULA | B5: II-3.2.1 | C5: II-3.2.4 | D5: =IF(#REF! =#REF!, "OK", "INCONSISTENCIA") -> 
A6: MATRÍCULA | B6: II-3.2.1 | C6: II-3.2.4 | D6: =IF(#REF! =#REF!, "OK", "INCONSISTENCIA") -> 
A7: MATRÍCULA | B7: II-3.2.1 | C7: II-3.2.4 | D7: =IF(#REF! =#REF!, "OK", "INCONSISTENCIA") -> 
A8: MATRÍCULA | B8: II-3.2.2 | C8: II-3.2.5 | D8: =IF('[2]II-3.2.2'!C14=#REF!, "OK", "INCONSISTENCIA") -> 
A9: MATRÍCULA | B9: II-3.2.2 | C9: II-3.2.5 | D9: =IF('[2]II-3.2.2'!F14=#REF!, "OK", "INCONSISTENCIA") -> 
A10: MATRÍCULA | B10: II-3.2.2 | C10: II-3.2.5 | D10: =IF('[2]II-3.2.2'!I14=#REF!, "OK", "INCONSISTENCIA") -> 
A11: MATRÍCULA | B11: II-3.2.2 | C11: II-3.2.5 | D11: =IF('[2]II-3.2.2'!L14=#REF!, "OK", "INCONSISTENCIA") -> 
A12: MATRÍCULA | B12: II-3.2.5 | C12: II-3.2.6 | D12: =IF(#REF!=#REF!, "OK", "INCONSISTENCIA") -> 
A13: MATRÍCULA | B13: II-3.2.5 | C13: II-3.2.6 | D13: =IF(#REF!=#REF!, "OK", "INCONSISTENCIA") -> 
A14: MATRÍCULA | B14: II-3.2.5 | C14: II-3.2.6 | D14: =IF(#REF!=#REF!, "OK", "INCONSISTENCIA") -> 
A15: MATRÍCULA | B15: II-3.2.5 | C15: II-3.2.6 | D15: =IF(#REF!=#REF!, "OK", "INCONSISTENCIA") -> 

Sheet CONTROL Media Superior (hidden)
B1: PRIMER CUADRO | C1: SEGUNDO CUADRO
A2: MATRÍCULA | B2: II-4.2.1 | C2: II-4.2.5 | D2: =IF(#REF!=#REF!, "OK", "INCONSISTENCIA") -> 
A3: MATRÍCULA | B3: II-4.2.1 | C3: II-4.2.5 | D3: =IF(#REF!=#REF!,"OK","INCONSISTENCIA") -> 
A4: MATRÍCULA | B4: II-4.2.1 | C4: II-4.2.5 | D4: =IF(#REF!=#REF!, "OK", "INCONSISTENCIA") -> 
A5: MATRÍCULA | B5: II-4.2.1 | C5: II-4.2.5 | D5: =IF(#REF!=#REF!, "OK", "INCONSISTENCIA") -> 
A6: MATRÍCULA | B6: II-4.2.1 | C6: II-4.2.5 | D6: =IF(#REF!=#REF!, "OK", "INCONSISTENCIA") -> 
A7: MATRÍCULA | B7: II-4.2.1 | C7: II-4.2.5 | D7: =IF(#REF!=#REF!, "OK", "INCONSISTENCIA") -> 
A8: MATRÍCULA | B8: II-4.2.3 | C8: II-4.2.4 | D8: =IF(#REF!=#REF!, "OK", "INCONSISTENCIA") -> 
A9: MATRÍCULA | B9: II-4.2.3 | C9: II-4.2.4 | D9: =IF(#REF!=#REF!, "OK", "INCONSISTENCIA") -> 
A10: MATRÍCULA | B10: II-4.2.3 | C10: II-4.2.4 | D10: =IF(#REF!=#REF!, "OK", "INCONSISTENCIA") -> 
A11: MATRÍCULA | B11: II-4.2.3 | C11: II-4.2.4 | D11: =IF(#REF!=#REF!, "OK", "INCONSISTENCIA") -> 
A12: MATRÍCULA | B12: II-4.2.3 | C12: II-4.2.4 | D12: =IF(#REF!=#REF!, "OK", "INCONSISTENCIA") -> 
A13: MATRÍCULA | B13: II-4.2.1 | C13: II-4.2.6 | D13: =IF(#REF!=#REF!, "OK", "INCONSISTENCIA") -> 
A14: MATRÍCULA | B14: II-4.2.5 | C14: II-4.2.9 | D14: =IF(#REF!=#REF!, "OK", "INCONSISTENCIA") -> 
A15: MATRÍCULA | B15: II-4.2.5 | C15: II-4.2.9 | D15: =IF(#REF!=#REF!, "OK", "INCONSISTENCIA") -> 
A16: MATRÍCULA | B16: II-4.2.6 | C16: II-4.2.7 | D16: =IF(#REF!=#REF!, "OK", "INCONSISTENCIA") -> 
A17: MATRÍCULA | B17: II-4.2.6 | C17: II-4.2.8 | D17: =IF(#REF!=#REF!, "OK", "INCONSISTENCIA") -> 
A18: MATRÍCULA | B18: II-4.2.9 | C18: II-4.2.10 | D18: =IF(#REF!=#REF!, "OK", "INCONSISTENCIA") -> 
A19: MATRÍCULA | B19: II-4.2.9 | C19: II-4.2.10 | D19: =IF(#REF!=#REF!,"OK","INCONSISTENCIA") -> 
A20: MATRÍCULA | B20: II-4.2.9 | C20: II-4.2.10 | D20: =IF(#REF!=#REF!,"OK","INCONSISTENCIA") -> 
A21: MATRÍCULA | B21: II-4.2.9 | C21: II-4.2.11 | D21: =IF(#REF!=#REF!, "OK", "INCONSISTENCIA") -> 
